Workbook

Sheet TOT-0316
B2: ANEXO VI al Memorsndum D.T.E.E. N° 356 / 2017
A4: ENTE NACIONAL REGULADOR
A5: DE LA ELECTRICIDAD
B7: SISTEMA DE TRANSPORTE DE ENERGÍA ELÉCTRICA POR DISTRIBUCIÓN TRONCAL
B9: TRANSNOA S.A.
B11: TOTAL DE PENALIZACIONES
B13: 1
B14: Desde el 01 al 31 de Marzo de 2016
B16: Sanciones duplicadas por tasa de falla > 4 Sal. x año/100km.
C18: 1.- | D18: LÍNEAS
D19: 1.1.- | E19: Equipamiento propio | J19: ='LI-03 (2)'!AA41 -> 145628.88
D20: 1.2.- | E20: Equipamiento del T.I. TRANSPORTEL - La Rioja Sur | J20: ='LI-TRANSPORTEL-03 (1)'!AA42 -> 754.06
C22: 2.- | D22: CONEXIÓN
D23: 2.1.- | E23: Transformación
E24: 2.1.1.- | F24: Equipamiento propio | J24: ='T-03 (2)'!AC52 -> 30892.75
D25: 2.2.- | E25: Salidas
E26: 2.2.1.- | F26: Equipamiento propio | J26: ='SA-03 (1)'!V44 -> 242.12
C29: 3.1.- | D29: SUPERVISIÓN del T.I. TRANSPORTEL - La Rioja Sur | J29: ='SUP-TRANSPORTEL'!I44 -> 272.5775993
G32: TOTAL | H32: =SUM(J18:J30) -> 177790.3876
C34: Valores remuneratorios según Acuerdo SE - ENRE -TRANSNOA 2016-2017

Sheet LI-03 (1)
B2: =+'TOT-0316'!B2 -> ANEXO VI al Memorsndum D.T.E.E. N° 356 / 2017
A4: ENTE NACIONAL REGULADOR
A5: DE LA ELECTRICIDAD
F8: SISTEMA DE TRANSPORTE DE ENERGÍA ELÉCTRICA POR DISTRIBUCIÓN TRONCAL - TRANSNOA S.A.
F10: 1.- LÍNEAS
F12: 1.1.- Equipamiento propio
B14: ='TOT-0316'!B14 -> Desde el 01 al 31 de Marzo de 2016
F16: $/100 km-h : LINEAS 132 kV | G16: 514.204 | K16: FACTOR DE PENALIZACION K = | L16: =30*'TOT-0316'!B13 -> 30 | M16: =IF(L16=30," ",IF(L16=60,"Coeficiente duplicado por tasa de falla >4 Sal. x año/100 km.","REVISAR COEFICIENTE")) -> 
C17: 3 | D17: 4 | E17: 5 | F17: 6 | G17: 7 | H17: 8 | I17: 9 | J17: 10 | K17: 11 | L17: 12 | M17: 13 | N17: 14 | O17: 15 | P17: 16 | Q17: 17 | R17: 18 | S17: 19 | T17: 20 | U17: 21 | V17: 22 | W17: 23 | X17: 24 | Y17: 25 | Z17: 26 | AA17: 27
C18: N° | D18: INDISP | E18: ID EQUIPO | F18: LÍNEAS | G18: U [kV] | H18: Long. [km] | I18: $/h | J18: Salida | K18: Entrada | L18: Hs. Indisp | M18: Minutos Indisp. | N18: Tipo Sal.(²) | O18: C.R. % | P18: PENALIZ. PROGRAM. | Q18: REDUCC. PROGRAM. | R18: PENALIZACION FORZADA Por Salida 1ras. 3 hs. hs. Restantes | U18: REDUCC. FORZADA Por Salida 1ras. 3 hs. hs. Restantes | X18: RESTANTE FORZADA | Y18: REDUCC. RESTANTE | Z18: Informó en Térm. | AA18: TOTAL PENALIZAC.
C21: 1 | D21: 299985 | E21: 5522 | F21: SENDA HACHADA - TARTAGAL | G21: 132 | H21: 58.5 | I21: =$G$16/100*IF(H21>25,H21,25) -> 300.80934 | J21: 2016-03-01T02:44:00 | K21: 2016-03-01T02:47:00 | L21: =IF(F21="","",(K21-J21)*24) -> 0.04999999999 | M21: =IF(F21="","",ROUND((K21-J21)*24*60,0)) -> 3 | N21: F | O21: =IF(F21="","","--") -> -- | P21: =IF(N21="P",ROUND(M21/60,2)*I21*$L$16*0.01,"--") -> -- | Q21: =IF(N21="RP",I21*O21*ROUND(L21/60,2)*0.01*M21/100,"--") -> -- | R21: =IF(N21="F",I21*$L$16,"--") -> 9024.2802 | S21: =IF(AND(M21>10,N21="F"),I21*$L$16*IF(M21>180,3,ROUND((M21)/60,2)),"--") -> -- | T21: =IF(AND(M21>180,N21="F"),(ROUND(M21/60,2)-3)*I21*$L$16*0.1,"--") -> -- | U21: =IF(N21="R",I21*$L$16*O21/100,"--") -> -- | V21: =IF(AND(M21>10,N21="R"),I21*$L$16*O21/100*IF(M21>180,3,ROUND(M21/60,2)),"--") -> -- | W21: =IF(AND(M21>180,N21="R"),(ROUND(M21/60,2)-3)*I21*$L$16*0.1*O21/100,"--") -> -- | X21: =IF(N21="RF",ROUND(M21/60,2)*I21*$L$16*0.1,"--") -> -- | Y21: =IF(N21="RR",ROUND(M21/60,2)*I21*$L$16*0.1*O21/100,"--") -> -- | Z21: SI | AA21: =IF(F21="","",SUM(P21:Y21)*IF(Z21="SI",1,2)) -> 9024.2802
C22: 2 | D22: 299987 | E22: 5482 | F22: EL BRACHO - TERMAS NORTE | G22: 132 | H22: 78.4 | I22: 403.135936 | J22: 2016-03-01T08:11:00 | K22: 2016-03-01T15:26:00 | L22: 7.25 | M22: 435 | N22: P | O22: -- | P22: 876.8206608 | Q22: -- | R22: -- | S22: -- | T22: -- | U22: -- | V22: -- | W22: -- | X22: -- | Y22: -- | Z22: SI | AA22: 876.8206608
C23: 3 | D23: 299989 | E23: 5522 | F23: SENDA HACHADA - TARTAGAL | G23: 132 | H23: 58.5 | I23: 300.80934 | J23: 2016-03-02T06:39:00 | K23: 2016-03-02T06:44:00 | L23: 0.08333333326 | M23: 5 | N23: F | O23: -- | P23: -- | Q23: -- | R23: 9024.2802 | S23: -- | T23: -- | U23: -- | V23: -- | W23: -- | X23: -- | Y23: -- | Z23: SI | AA23: 9024.2802
C24: 4 | D24: 299992 | E24: 5482 | F24: EL BRACHO - TERMAS NORTE | G24: 132 | H24: 78.4 | I24: 403.135936 | J24: 2016-03-02T07:52:00 | K24: 2016-03-02T15:58:00 | L24: 8.1 | M24: 486 | N24: P | O24: -- | P24: 979.6203245 | Q24: -- | R24: -- | S24: -- | T24: -- | U24: -- | V24: -- | W24: -- | X24: -- | Y24: -- | Z24: SI | AA24: 979.6203245
C25: 5 | D25: 300007 | E25: 291 | F25: LIBERTADOR NOA - PICHANAL | G25: 132 | H25: 76 | I25: 390.79504 | J25: 2016-03-03T03:31:00 | K25: 2016-03-03T03:35:00 | L25: 0.06666666671 | M25: 4 | N25: F | O25: -- | P25: -- | Q25: -- | R25: 11723.8512 | S25: -- | T25: -- | U25: -- | V25: -- | W25: -- | X25: -- | Y25: -- | Z25: SI | AA25: 11723.8512
C26: 6 | D26: 300020 | E26: 5482 | F26: EL BRACHO - TERMAS NORTE | G26: 132 | H26: 78.4 | I26: 403.135936 | J26: 2016-03-03T07:53:00 | K26: 2016-03-03T15:54:00 | L26: 8.016666667 | M26: 481 | N26: P | O26: -- | P26: 969.945062 | Q26: -- | R26: -- | S26: -- | T26: -- | U26: -- | V26: -- | W26: -- | X26: -- | Y26: -- | Z26: SI | AA26: 969.945062
C27: 7 | D27: 300021 | E27: 5522 | F27: SENDA HACHADA - TARTAGAL | G27: 132 | H27: 58.5 | I27: 300.80934 | J27: 2016-03-04T05:06:00 | K27: 2016-03-04T06:38:00 | L27: 1.533333333 | M27: 92 | N27: P | O27: -- | P27: 138.0714871 | Q27: -- | R27: -- | S27: -- | T27: -- | U27: -- | V27: -- | W27: -- | X27: -- | Y27: -- | Z27: SI | AA27: 138.0714871
C28: 8 | D28: 300025 | E28: 5482 | F28: EL BRACHO - TERMAS NORTE | G28: 132 | H28: 78.4 | I28: 403.135936 | J28: 2016-03-04T08:20:00 | K28: 2016-03-04T15:28:00 | L28: 7.133333333 | M28: 428 | N28: P | O28: -- | P28: 862.3077671 | Q28: -- | R28: -- | S28: -- | T28: -- | U28: -- | V28: -- | W28: -- | X28: -- | Y28: -- | Z28: SI | AA28: 862.3077671
C29: 9 | D29: 300026 | E29: 309 | F29: TUCUMAN OESTE - TUCUMAN NORTE | G29: 132 | H29: 7 | I29: 128.551 | J29: 2016-03-04T23:42:00 | K29: 2016-03-05T00:43:00 | L29: 1.016666667 | M29: 61 | N29: F | O29: -- | P29: -- | Q29: -- | R29: 3856.53 | S29: 3933.6606 | T29: -- | U29: -- | V29: -- | W29: -- | X29: -- | Y29: -- | Z29: SI | AA29: 7790.1906
C30: 10 | D30: 300083 | E30: 5565 | F30: SANTIAGO CENTRO - SANTIAGO ESTE | G30: 132 | H30: 10.66 | I30: 128.551 | J30: 2016-03-07T07:59:00 | K30: 2016-03-07T09:42:00 | L30: =IF(F30="","",(K30-J30)*24) -> 1.716666667 | M30: =IF(F30="","",ROUND((K30-J30)*24*60,0)) -> 103 | N30: P | O30: -- | P30: 66.332316 | Q30: -- | R30: -- | S30: -- | T30: -- | U30: -- | V30: -- | W30: -- | X30: -- | Y30: -- | Z30: SI | AA30: 66.332316
C31: 11 | D31: 300084 | E31: 311 | F31: AGUILARES - VILLA QUINTEROS | G31: 132 | H31: 21 | I31: 128.551 | J31: 2016-03-07T09:02:00 | K31: 2016-03-07T17:03:00 | L31: 8.016666667 | M31: 481 | N31: P | O31: -- | P31: 309.293706 | Q31: -- | R31: -- | S31: -- | T31: -- | U31: -- | V31: -- | W31: -- | X31: -- | Y31: -- | Z31: SI | AA31: 309.293706
C32: 12 | D32: 300110 | E32: 308 | F32: C.H. EL CADILLAL - TUCUMAN NORTE | G32: 132 | H32: 21.78000069 | I32: 128.551 | J32: 2016-03-08T02:21:00 | K32: 2016-03-08T03:01:00 | L32: 0.6666666667 | M32: 40 | N32: F | O32: -- | P32: -- | Q32: -- | R32: 3856.53 | S32: 2583.8751 | T32: -- | U32: -- | V32: -- | W32: -- | X32: -- | Y32: -- | Z32: SI | AA32: 6440.4051
C33: 13 | D33: 300114 | E33: 4788 | F33: INDEPENDENCIA- LULES - PAPEL. TUC. | G33: 132 | H33: 19.29999924 | I33: 128.551 | J33: 2016-03-10T08:28:00 | K33: 2016-03-10T17:29:00 | L33: 9.016666667 | M33: 541 | N33: P | O33: -- | P33: 347.859006 | Q33: -- | R33: -- | S33: -- | T33: -- | U33: -- | V33: -- | W33: -- | X33: -- | Y33: -- | Z33: SI | AA33: 347.859006
C34: 14 | D34: 300115 | E34: 5295 | F34: EL BRACHO - LA GUARIDA - LA BANDA ESTE | G34: 132 | H34: 140.9 | I34: 724.513436 | J34: 2016-03-10T09:03:00 | K34: 2016-03-10T16:20:00 | L34: =IF(F34="","",(K34-J34)*24) -> 7.283333333 | M34: =IF(F34="","",ROUND((K34-J34)*24*60,0)) -> 437 | N34: P | O34: =IF(F34="","","--") -> -- | P34: =IF(N34="P",ROUND(M34/60,2)*I34*$L$16*0.01,"--") -> 1582.337344 | Q34: =IF(N34="RP",I34*O34*ROUND(L34/60,2)*0.01*M34/100,"--") -> -- | R34: =IF(N34="F",I34*$L$16,"--") -> -- | S34: =IF(AND(M34>10,N34="F"),I34*$L$16*IF(M34>180,3,ROUND((M34)/60,2)),"--") -> -- | T34: =IF(AND(M34>180,N34="F"),(ROUND(M34/60,2)-3)*I34*$L$16*0.1,"--") -> -- | U34: =IF(N34="R",I34*$L$16*O34/100,"--") -> -- | V34: =IF(AND(M34>10,N34="R"),I34*$L$16*O34/100*IF(M34>180,3,ROUND(M34/60,2)),"--") -> -- | W34: =IF(AND(M34>180,N34="R"),(ROUND(M34/60,2)-3)*I34*$L$16*0.1*O34/100,"--") -> -- | X34: =IF(N34="RF",ROUND(M34/60,2)*I34*$L$16*0.1,"--") -> -- | Y34: =IF(N34="RR",ROUND(M34/60,2)*I34*$L$16*0.1*O34/100,"--") -> -- | Z34: SI | AA34: =IF(F34="","",SUM(P34:Y34)*IF(Z34="SI",1,2)) -> 1582.337344
C35: 15 | D35: 300116 | E35: 4811 | F35: ROSARIO DE LA FRONTERA - COBOS | G35: 132 | H35: 130.4 | I35: 670.522016 | J35: 2016-03-10T10:04:00 | K35: 2016-03-10T13:21:00 | L35: =IF(F35="","",(K35-J35)*24) -> 3.283333333 | M35: =IF(F35="","",ROUND((K35-J35)*24*60,0)) -> 197 | N35: P | O35: =IF(F35="","","--") -> -- | P35: =IF(N35="P",ROUND(M35/60,2)*I35*$L$16*0.01,"--") -> 659.7936637 | Q35: =IF(N35="RP",I35*O35*ROUND(L35/60,2)*0.01*M35/100,"--") -> -- | R35: =IF(N35="F",I35*$L$16,"--") -> -- | S35: =IF(AND(M35>10,N35="F"),I35*$L$16*IF(M35>180,3,ROUND((M35)/60,2)),"--") -> -- | T35: =IF(AND(M35>180,N35="F"),(ROUND(M35/60,2)-3)*I35*$L$16*0.1,"--") -> -- | U35: =IF(N35="R",I35*$L$16*O35/100,"--") -> -- | V35: =IF(AND(M35>10,N35="R"),I35*$L$16*O35/100*IF(M35>180,3,ROUND(M35/60,2)),"--") -> -- | W35: =IF(AND(M35>180,N35="R"),(ROUND(M35/60,2)-3)*I35*$L$16*0.1*O35/100,"--") -> -- | X35: =IF(N35="RF",ROUND(M35/60,2)*I35*$L$16*0.1,"--") -> -- | Y35: =IF(N35="RR",ROUND(M35/60,2)*I35*$L$16*0.1*O35/100,"--") -> -- | Z35: SI | AA35: =IF(F35="","",SUM(P35:Y35)*IF(Z35="SI",1,2)) -> 659.7936637
C36: 16 | D36: 300119 | E36: 4558 | F36: SUNCHO CORRAL - ANATUYA | G36: 132 | H36: 81 | I36: 416.50524 | J36: 2016-03-10T14:28:00 | K36: 2016-03-10T16:50:00 | L36: =IF(F36="","",(K36-J36)*24) -> 2.366666667 | M36: =IF(F36="","",ROUND((K36-J36)*24*60,0)) -> 142 | N36: P | O36: =IF(F36="","","--") -> -- | P36: =IF(N36="P",ROUND(M36/60,2)*I36*$L$16*0.01,"--") -> 296.1352256 | Q36: =IF(N36="RP",I36*O36*ROUND(L36/60,2)*0.01*M36/100,"--") -> -- | R36: =IF(N36="F",I36*$L$16,"--") -> -- | S36: =IF(AND(M36>10,N36="F"),I36*$L$16*IF(M36>180,3,ROUND((M36)/60,2)),"--") -> -- | T36: =IF(AND(M36>180,N36="F"),(ROUND(M36/60,2)-3)*I36*$L$16*0.1,"--") -> -- | U36: =IF(N36="R",I36*$L$16*O36/100,"--") -> -- | V36: =IF(AND(M36>10,N36="R"),I36*$L$16*O36/100*IF(M36>180,3,ROUND(M36/60,2)),"--") -> -- | W36: =IF(AND(M36>180,N36="R"),(ROUND(M36/60,2)-3)*I36*$L$16*0.1*O36/100,"--") -> -- | X36: =IF(N36="RF",ROUND(M36/60,2)*I36*$L$16*0.1,"--") -> -- | Y36: =IF(N36="RR",ROUND(M36/60,2)*I36*$L$16*0.1*O36/100,"--") -> -- | Z36: SI | AA36: =IF(F36="","",SUM(P36:Y36)*IF(Z36="SI",1,2)) -> 296.1352256
C39: (²) | D39: P - PROGRAMADA ; F - FORZADA | P39: =SUM(P19:P38) -> 7088.516563 | Q39: 0 | R39: 37485.4716 | S39: 6517.5357 | T39: 0 | U39: 0 | V39: 0 | W39: 0 | X39: 0 | Y39: 0 | AA39: =ROUND(SUM(AA19:AA38),2) -> 51091.52

Sheet LI-03 (2)
B2: =+'TOT-0316'!B2 -> ANEXO VI al Memorsndum D.T.E.E. N° 356 / 2017
A4: ENTE NACIONAL REGULADOR
A5: DE LA ELECTRICIDAD
F8: SISTEMA DE TRANSPORTE DE ENERGÍA ELÉCTRICA POR DISTRIBUCIÓN TRONCAL - TRANSNOA S.A.
F10: 1.- LÍNEAS
F12: 1.1.- Equipamiento propio
B14: ='TOT-0316'!B14 -> Desde el 01 al 31 de Marzo de 2016
F16: $/100 km-h : LINEAS 132 kV | G16: 514.204 | K16: FACTOR DE PENALIZACION K = | L16: =30*'TOT-0316'!B13 -> 30 | M16: =IF(L16=30," ",IF(L16=60,"Coeficiente duplicado por tasa de falla >4 Sal. x año/100 km.","REVISAR COEFICIENTE")) -> 
C17: 3 | D17: 4 | E17: 5 | F17: 6 | G17: 7 | H17: 8 | I17: 9 | J17: 10 | K17: 11 | L17: 12 | M17: 13 | N17: 14 | O17: 15 | P17: 16 | Q17: 17 | R17: 18 | S17: 19 | T17: 20 | U17: 21 | V17: 22 | W17: 23 | X17: 24 | Y17: 25 | Z17: 26 | AA17: 27
C18: N° | D18: INDISP | E18: ID EQUIPO | F18: LÍNEAS | G18: U [kV] | H18: Long. [km] | I18: $/h | J18: Salida | K18: Entrada | L18: Hs. Indisp | M18: Minutos Indisp. | N18: Tipo Sal.(²) | O18: C.R. % | P18: PENALIZ. PROGRAM. | Q18: REDUCC. PROGRAM. | R18: PENALIZACION FORZADA Por Salida 1ras. 3 hs. hs. Restantes | U18: REDUCC. FORZADA Por Salida 1ras. 3 hs. hs. Restantes | X18: RESTANTE FORZADA | Y18: REDUCC. RESTANTE | Z18: Informó en Térm. | AA18: TOTAL PENALIZAC.
AA19: ='LI-03 (1)'!AA39 -> 51091.52
C21: 17 | D21: 300323 | E21: 5554 | F21: STGO. CENTRO - FERNANDEZ - SUNCHO CORRAL | G21: 132 | H21: 103 | I21: =$G$16/100*IF(H21>25,H21,25) -> 529.63012 | J21: 2016-03-17T12:39:00 | K21: 2016-03-17T13:09:00 | L21: =IF(F21="","",(K21-J21)*24) -> 0.5000000001 | M21: =IF(F21="","",ROUND((K21-J21)*24*60,0)) -> 30 | N21: F | O21: =IF(F21="","","--") -> -- | P21: =IF(N21="P",ROUND(M21/60,2)*I21*$L$16*0.01,"--") -> -- | Q21: =IF(N21="RP",I21*O21*ROUND(L21/60,2)*0.01*M21/100,"--") -> -- | R21: =IF(N21="F",I21*$L$16,"--") -> 15888.9036 | S21: =IF(AND(M21>10,N21="F"),I21*$L$16*IF(M21>180,3,ROUND((M21)/60,2)),"--") -> 7944.4518 | T21: =IF(AND(M21>180,N21="F"),(ROUND(M21/60,2)-3)*I21*$L$16*0.1,"--") -> -- | U21: =IF(N21="R",I21*$L$16*O21/100,"--") -> -- | V21: =IF(AND(M21>10,N21="R"),I21*$L$16*O21/100*IF(M21>180,3,ROUND(M21/60,2)),"--") -> -- | W21: =IF(AND(M21>180,N21="R"),(ROUND(M21/60,2)-3)*I21*$L$16*0.1*O21/100,"--") -> -- | X21: =IF(N21="RF",ROUND(M21/60,2)*I21*$L$16*0.1,"--") -> -- | Y21: =IF(N21="RR",ROUND(M21/60,2)*I21*$L$16*0.1*O21/100,"--") -> -- | Z21: SI | AA21: =IF(F21="","",SUM(P21:Y21)*IF(Z21="SI",1,2)) -> 23833.3554
C22: 18 | D22: 300324 | E22: 291 | F22: LIBERTADOR NOA - PICHANAL | G22: 132 | H22: 76 | I22: =$G$16/100*IF(H22>25,H22,25) -> 390.79504 | J22: 2016-03-18T06:09:00 | K22: 2016-03-18T06:16:00 | L22: =IF(F22="","",(K22-J22)*24) -> 0.1166666667 | M22: =IF(F22="","",ROUND((K22-J22)*24*60,0)) -> 7 | N22: F | O22: =IF(F22="","","--") -> -- | P22: =IF(N22="P",ROUND(M22/60,2)*I22*$L$16*0.01,"--") -> -- | Q22: =IF(N22="RP",I22*O22*ROUND(L22/60,2)*0.01*M22/100,"--") -> -- | R22: =IF(N22="F",I22*$L$16,"--") -> 11723.8512 | S22: =IF(AND(M22>10,N22="F"),I22*$L$16*IF(M22>180,3,ROUND((M22)/60,2)),"--") -> -- | T22: =IF(AND(M22>180,N22="F"),(ROUND(M22/60,2)-3)*I22*$L$16*0.1,"--") -> -- | U22: =IF(N22="R",I22*$L$16*O22/100,"--") -> -- | V22: =IF(AND(M22>10,N22="R"),I22*$L$16*O22/100*IF(M22>180,3,ROUND(M22/60,2)),"--") -> -- | W22: =IF(AND(M22>180,N22="R"),(ROUND(M22/60,2)-3)*I22*$L$16*0.1*O22/100,"--") -> -- | X22: =IF(N22="RF",ROUND(M22/60,2)*I22*$L$16*0.1,"--") -> -- | Y22: =IF(N22="RR",ROUND(M22/60,2)*I22*$L$16*0.1*O22/100,"--") -> -- | Z22: SI | AA22: =IF(F22="","",SUM(P22:Y22)*IF(Z22="SI",1,2)) -> 11723.8512
C23: 19 | D23: 300348 | E23: 4837 | F23: RIO HONDO - SANTIAGO OESTE | G23: 132 | H23: 69.80000305 | I23: 358.9144077 | J23: 2016-03-18T13:29:00 | K23: 2016-03-18T15:58:00 | L23: 2.483333333 | M23: 149 | N23: F | O23: -- | P23: -- | Q23: -- | R23: 10767.43223 | S23: 26703.23193 | T23: -- | U23: -- | V23: -- | W23: -- | X23: -- | Y23: -- | Z23: SI | AA23: 37470.66416
C24: 20 | D24: 300349 | E24: 281 | F24: GÜEMES - SAN JUANCITO | G24: 132 | H24: 36.2 | I24: 186.141848 | J24: 2016-03-18T18:27:00 | K24: 2016-03-18T18:28:00 | L24: 0.01666666655 | M24: 1 | N24: F | O24: -- | P24: -- | Q24: -- | R24: 5584.25544 | S24: -- | T24: -- | U24: -- | V24: -- | W24: -- | X24: -- | Y24: -- | Z24: SI | AA24: 5584.25544
C25: 21 | D25: 300356 | E25: 5521 | F25: SENDA HACHADA - PICHANAL | G25: 132 | H25: 46.5 | I25: 239.10486 | J25: 2016-03-20T01:34:00 | K25: 2016-03-20T01:38:00 | L25: 0.06666666671 | M25: 4 | N25: F | O25: -- | P25: -- | Q25: -- | R25: 7173.1458 | S25: -- | T25: -- | U25: -- | V25: -- | W25: -- | X25: -- | Y25: -- | Z25: SI | AA25: 7173.1458
C26: 22 | D26: 300534 | E26: 305 | F26: TUCUMAN NORTE - EL BRACHO | G26: 132 | H26: 31.5 | I26: 161.97426 | J26: 2016-03-23T08:17:00 | K26: 2016-03-23T15:23:00 | L26: 7.1 | M26: 426 | N26: P | O26: -- | P26: 345.0051738 | Q26: -- | R26: -- | S26: -- | T26: -- | U26: -- | V26: -- | W26: -- | X26: -- | Y26: -- | Z26: SI | AA26: 345.0051738
C27: 23 | D27: 300731 | E27: 283 | F27: HUACRA - LA CALERA | G27: 132 | H27: 21.39999962 | I27: 128.551 | J27: 2016-03-29T07:44:00 | K27: 2016-03-29T16:30:00 | L27: 8.766666667 | M27: 526 | N27: P | O27: -- | P27: 338.217681 | Q27: -- | R27: -- | S27: -- | T27: -- | U27: -- | V27: -- | W27: -- | X27: -- | Y27: -- | Z27: SI | AA27: 338.217681
C28: 24 | D28: 300738 | E28: 5139 | F28: CATAMARCA - V. VIEJO - HUACRA | G28: 132 | H28: 67.3 | I28: 346.059292 | J28: 2016-03-30T03:00:00 | K28: 2016-03-30T04:40:00 | L28: 1.666666667 | M28: 100 | N28: P | O28: -- | P28: 173.3757053 | Q28: -- | R28: -- | S28: -- | T28: -- | U28: -- | V28: -- | W28: -- | X28: -- | Y28: -- | Z28: SI | AA28: 173.3757053
C29: 25 | D29: 300742 | E29: 5521 | F29: SENDA HACHADA - PICHANAL | G29: 132 | H29: 46.5 | I29: 239.10486 | J29: 2016-03-30T06:53:00 | K29: 2016-03-30T07:02:00 | L29: 0.15 | M29: 9 | N29: F | O29: -- | P29: -- | Q29: -- | R29: 7173.1458 | S29: -- | T29: -- | U29: -- | V29: -- | W29: -- | X29: -- | Y29: -- | Z29: SI | AA29: 7173.1458
C30: 26 | D30: 300749 | E30: 283 | F30: HUACRA - LA CALERA | G30: 132 | H30: 21.39999962 | I30: 128.551 | J30: 2016-03-30T07:46:00 | K30: 2016-03-30T15:33:00 | L30: 7.783333333 | M30: 467 | N30: P | O30: -- | P30: 300.038034 | Q30: -- | R30: -- | S30: -- | T30: -- | U30: -- | V30: -- | W30: -- | X30: -- | Y30: -- | Z30: SI | AA30: 300.038034
C31: 27 | D31: 300753 | E31: 5139 | F31: CATAMARCA - V. VIEJO - HUACRA | G31: 132 | H31: 67.3 | I31: 346.059292 | J31: 2016-03-31T03:01:00 | K31: 2016-03-31T04:21:00 | L31: 1.333333333 | M31: 80 | N31: P | O31: -- | P31: 138.0776575 | Q31: -- | R31: -- | S31: -- | T31: -- | U31: -- | V31: -- | W31: -- | X31: -- | Y31: -- | Z31: SI | AA31: 138.0776575
C32: 28 | D32: 300754 | E32: 283 | F32: HUACRA - LA CALERA | G32: 132 | H32: 21.39999962 | I32: 128.551 | J32: 2016-03-31T07:49:00 | K32: 2016-03-31T15:11:00 | L32: 7.366666667 | M32: 442 | N32: P | O32: -- | P32: 284.226261 | Q32: -- | R32: -- | S32: -- | T32: -- | U32: -- | V32: -- | W32: -- | X32: -- | Y32: -- | Z32: SI | AA32: 284.226261
I33: 128.551 | P33: -- | Q33: -- | R33: -- | S33: -- | T33: -- | U33: -- | V33: -- | W33: -- | X33: -- | Y33: --
I34: 128.551 | P34: -- | Q34: -- | R34: -- | S34: -- | T34: -- | U34: -- | V34: -- | W34: -- | X34: -- | Y34: --
I35: 128.551 | P35: -- | Q35: -- | R35: -- | S35: -- | T35: -- | U35: -- | V35: -- | W35: -- | X35: -- | Y35: --
I36: 128.551 | P36: -- | Q36: -- | R36: -- | S36: -- | T36: -- | U36: -- | V36: -- | W36: -- | X36: -- | Y36: --
I37: 128.551 | L37: =IF(F37="","",(K37-J37)*24) ->  | M37: =IF(F37="","",ROUND((K37-J37)*24*60,0)) ->  | O37: =IF(F37="","","--") ->  | P37: =IF(N37="P",ROUND(M37/60,2)*I37*$L$16*0.01,"--") -> -- | Q37: =IF(N37="RP",I37*O37*ROUND(L37/60,2)*0.01*M37/100,"--") -> -- | R37: =IF(N37="F",I37*$L$16,"--") -> -- | S37: =IF(AND(M37>10,N37="F"),I37*$L$16*IF(M37>180,3,ROUND((M37)/60,2)),"--") -> -- | T37: =IF(AND(M37>180,N37="F"),(ROUND(M37/60,2)-3)*I37*$L$16*0.1,"--") -> -- | U37: =IF(N37="R",I37*$L$16*O37/100,"--") -> -- | V37: =IF(AND(M37>10,N37="R"),I37*$L$16*O37/100*IF(M37>180,3,ROUND(M37/60,2)),"--") -> -- | W37: =IF(AND(M37>180,N37="R"),(ROUND(M37/60,2)-3)*I37*$L$16*0.1*O37/100,"--") -> -- | X37: =IF(N37="RF",ROUND(M37/60,2)*I37*$L$16*0.1,"--") -> -- | Y37: =IF(N37="RR",ROUND(M37/60,2)*I37*$L$16*0.1*O37/100,"--") -> -- | AA37: =IF(F37="","",SUM(P37:Y37)*IF(Z37="SI",1,2)) -> 
I38: 128.551 | L38: =IF(F38="","",(K38-J38)*24) ->  | M38: =IF(F38="","",ROUND((K38-J38)*24*60,0)) ->  | O38: =IF(F38="","","--") ->  | P38: =IF(N38="P",ROUND(M38/60,2)*I38*$L$16*0.01,"--") -> -- | Q38: =IF(N38="RP",I38*O38*ROUND(L38/60,2)*0.01*M38/100,"--") -> -- | R38: =IF(N38="F",I38*$L$16,"--") -> -- | S38: =IF(AND(M38>10,N38="F"),I38*$L$16*IF(M38>180,3,ROUND((M38)/60,2)),"--") -> -- | T38: =IF(AND(M38>180,N38="F"),(ROUND(M38/60,2)-3)*I38*$L$16*0.1,"--") -> -- | U38: =IF(N38="R",I38*$L$16*O38/100,"--") -> -- | V38: =IF(AND(M38>10,N38="R"),I38*$L$16*O38/100*IF(M38>180,3,ROUND(M38/60,2)),"--") -> -- | W38: =IF(AND(M38>180,N38="R"),(ROUND(M38/60,2)-3)*I38*$L$16*0.1*O38/100,"--") -> -- | X38: =IF(N38="RF",ROUND(M38/60,2)*I38*$L$16*0.1,"--") -> -- | Y38: =IF(N38="RR",ROUND(M38/60,2)*I38*$L$16*0.1*O38/100,"--") -> -- | AA38: =IF(F38="","",SUM(P38:Y38)*IF(Z38="SI",1,2)) -> 
I39: 128.551 | L39: =IF(F39="","",(K39-J39)*24) ->  | M39: =IF(F39="","",ROUND((K39-J39)*24*60,0)) ->  | O39: =IF(F39="","","--") ->  | P39: =IF(N39="P",ROUND(M39/60,2)*I39*$L$16*0.01,"--") -> -- | Q39: =IF(N39="RP",I39*O39*ROUND(L39/60,2)*0.01*M39/100,"--") -> -- | R39: =IF(N39="F",I39*$L$16,"--") -> -- | S39: =IF(AND(M39>10,N39="F"),I39*$L$16*IF(M39>180,3,ROUND((M39)/60,2)),"--") -> -- | T39: =IF(AND(M39>180,N39="F"),(ROUND(M39/60,2)-3)*I39*$L$16*0.1,"--") -> -- | U39: =IF(N39="R",I39*$L$16*O39/100,"--") -> -- | V39: =IF(AND(M39>10,N39="R"),I39*$L$16*O39/100*IF(M39>180,3,ROUND(M39/60,2)),"--") -> -- | W39: =IF(AND(M39>180,N39="R"),(ROUND(M39/60,2)-3)*I39*$L$16*0.1*O39/100,"--") -> -- | X39: =IF(N39="RF",ROUND(M39/60,2)*I39*$L$16*0.1,"--") -> -- | Y39: =IF(N39="RR",ROUND(M39/60,2)*I39*$L$16*0.1*O39/100,"--") -> -- | AA39: =IF(F39="","",SUM(P39:Y39)*IF(Z39="SI",1,2)) -> 
C41: (²) | D41: P - PROGRAMADA ; F - FORZADA | P41: =SUM(P19:P40) -> 1578.940513 | Q41: 0 | R41: 58310.73407 | S41: 34647.68373 | T41: 0 | U41: 0 | V41: 0 | W41: 0 | X41: 0 | Y41: 0 | AA41: =ROUND(SUM(AA19:AA40),2) -> 145628.88

Sheet LI-TRANSPORTEL-03 (1)
B2: ='TOT-0316'!B2 -> ANEXO VI al Memorsndum D.T.E.E. N° 356 / 2017
A4: ENTE NACIONAL REGULADOR
A5: DE LA ELECTRICIDAD
F8: SISTEMA DE TRANSPORTE DE ENERGÍA ELÉCTRICA POR DISTRIBUCIÓN TRONCAL - TRANSNOA S.A.
F10: 1.- LÍNEAS
F12: 1.2.- Transp. Indep.TRANSPORTEL -La Rioja Sur.
B14: ='TOT-0316'!B14 -> Desde el 01 al 31 de Marzo de 2016
F16: $/100 km-h : LINEAS 132 kV | G16: 62.8386 | K16: FACTOR DE PENALIZACION K = | L16: =30*'TOT-0316'!B13 -> 30 | M16: =IF(L16=30," ",IF(L16=60,"Coeficiente duplicado por tasa de falla >4 Sal. x año/100 km.","REVISAR COEFICIENTE")) -> 
C17: 3 | D17: 4 | E17: 5 | F17: 6 | G17: 7 | H17: 8 | I17: 9 | J17: 10 | K17: 11 | L17: 12 | M17: 13 | N17: 14 | O17: 15 | P17: 16 | Q17: 17 | R17: 18 | S17: 19 | T17: 20 | U17: 21 | V17: 22 | W17: 23 | X17: 24 | Y17: 25 | Z17: 26 | AA17: 27
C18: N° | D18: INDISP | E18: ID EQUIPO | F18: LÍNEAS | G18: U [kV] | H18: Long. [km] | I18: $/h | J18: Salida | K18: Entrada | L18: Hs. Indisp | M18: Minutos Indisp. | N18: Tipo Sal.(²) | O18: C.R. % | P18: PENALIZ. PROGRAM. | Q18: REDUCC. PROGRAM. | R18: PENALIZACION FORZADA Por Salida 1ras. 3 hs. hs. Restantes | U18: REDUCC. FORZADA Por Salida 1ras. 3 hs. hs. Restantes | X18: RESTANTE FORZADA | Y18: REDUCC. RESTANTE | Z18: Informó en Térm. | AA18: TOTAL PENALIZAC.
C21: 29 | D21: 300109 | E21: 4942 | F21: LA RIOJA SUR - PI. PATQUIA | G21: 132 | H21: 40 | I21: =$G$16/100*IF(H21>25,H21,25) -> 25.13544 | J21: 2016-03-07T21:30:00 | K21: 2016-03-07T21:38:00 | L21: =IF(F21="","",(K21-J21)*24) -> 0.1333333332 | M21: =IF(F21="","",ROUND((K21-J21)*24*60,0)) -> 8 | N21: F | O21: =IF(F21="","","--") -> -- | P21: =IF(N21="P",ROUND(M21/60,2)*I21*$L$16*0.01,"--") -> -- | Q21: =IF(N21="RP",I21*O21*ROUND(L21/60,2)*0.01*M21/100,"--") -> -- | R21: =IF(N21="F",I21*$L$16,"--") -> 754.0632 | S21: =IF(AND(M21>10,N21="F"),I21*$L$16*IF(M21>180,3,ROUND((M21)/60,2)),"--") -> -- | T21: =IF(AND(M21>180,N21="F"),(ROUND(M21/60,2)-3)*I21*$L$16*0.1,"--") -> -- | U21: =IF(N21="R",I21*$L$16*O21/100,"--") -> -- | V21: =IF(AND(M21>10,N21="R"),I21*$L$16*O21/100*IF(M21>180,3,ROUND(M21/60,2)),"--") -> -- | W21: =IF(AND(M21>180,N21="R"),(ROUND(M21/60,2)-3)*I21*$L$16*0.1*O21/100,"--") -> -- | X21: =IF(N21="RF",ROUND(M21/60,2)*I21*$L$16*0.1,"--") -> -- | Y21: =IF(N21="RR",ROUND(M21/60,2)*I21*$L$16*0.1*O21/100,"--") -> -- | Z21: SI | AA21: =IF(F21="","",SUM(P21:Y21)*IF(Z21="SI",1,2)) -> 754.0632
I22: =$G$16/100*IF(H22>25,H22,25) -> 15.70965 | P22: -- | Q22: -- | R22: -- | S22: -- | T22: -- | U22: -- | V22: -- | W22: -- | X22: -- | Y22: -- | Z22: =IF(F22="","","SI") -> 
I23: 15.70965 | P23: -- | Q23: -- | R23: -- | S23: -- | T23: -- | U23: -- | V23: -- | W23: -- | X23: -- | Y23: --
I24: 15.70965 | P24: -- | Q24: -- | R24: -- | S24: -- | T24: -- | U24: -- | V24: -- | W24: -- | X24: -- | Y24: --
I25: 15.70965 | P25: -- | Q25: -- | R25: -- | S25: -- | T25: -- | U25: -- | V25: -- | W25: -- | X25: -- | Y25: --
I26: 15.70965 | P26: -- | Q26: -- | R26: -- | S26: -- | T26: -- | U26: -- | V26: -- | W26: -- | X26: -- | Y26: --
I27: 15.70965 | P27: -- | Q27: -- | R27: -- | S27: -- | T27: -- | U27: -- | V27: -- | W27: -- | X27: -- | Y27: --
I28: 15.70965 | P28: -- | Q28: -- | R28: -- | S28: -- | T28: -- | U28: -- | V28: -- | W28: -- | X28: -- | Y28: --
I29: 15.70965 | P29: -- | Q29: -- | R29: -- | S29: -- | T29: -- | U29: -- | V29: -- | W29: -- | X29: -- | Y29: --
I30: 15.70965 | P30: -- | Q30: -- | R30: -- | S30: -- | T30: -- | U30: -- | V30: -- | W30: -- | X30: -- | Y30: --
I31: 15.70965 | P31: -- | Q31: -- | R31: -- | S31: -- | T31: -- | U31: -- | V31: -- | W31: -- | X31: -- | Y31: --
I32: 15.70965 | P32: -- | Q32: -- | R32: -- | S32: -- | T32: -- | U32: -- | V32: -- | W32: -- | X32: -- | Y32: --
I33: 15.70965 | P33: -- | Q33: -- | R33: -- | S33: -- | T33: -- | U33: -- | V33: -- | W33: -- | X33: -- | Y33: --
I34: 15.70965 | P34: -- | Q34: -- | R34: -- | S34: -- | T34: -- | U34: -- | V34: -- | W34: -- | X34: -- | Y34: --
I35: 15.70965 | P35: -- | Q35: -- | R35: -- | S35: -- | T35: -- | U35: -- | V35: -- | W35: -- | X35: -- | Y35: --
I36: 15.70965 | P36: -- | Q36: -- | R36: -- | S36: -- | T36: -- | U36: -- | V36: -- | W36: -- | X36: -- | Y36: --
I37: 15.70965 | P37: -- | Q37: -- | R37: -- | S37: -- | T37: -- | U37: -- | V37: -- | W37: -- | X37: -- | Y37: --
I38: 15.70965 | P38: -- | Q38: -- | R38: -- | S38: -- | T38: -- | U38: -- | V38: -- | W38: -- | X38: -- | Y38: --
I39: 15.70965 | P39: -- | Q39: -- | R39: -- | S39: -- | T39: -- | U39: -- | V39: -- | W39: -- | X39: -- | Y39: --
I40: 15.70965 | P40: -- | Q40: -- | R40: -- | S40: -- | T40: -- | U40: -- | V40: -- | W40: -- | X40: -- | Y40: --
C42: (²) | D42: F - FORZADA | P42: =SUM(P19:P41) -> 0 | Q42: 0 | R42: 754.0632 | S42: 0 | T42: 0 | U42: 0 | V42: 0 | W42: 0 | X42: 0 | Y42: 0 | AA42: =ROUND(SUM(AA19:AA41),2) -> 754.06

Sheet T-03 (1)
B2: =+'TOT-0316'!B2 -> ANEXO VI al Memorsndum D.T.E.E. N° 356 / 2017
A4: ENTE NACIONAL REGULADOR
A5: DE LA ELECTRICIDAD
F8: SISTEMA DE TRANSPORTE DE ENERGÍA ELÉCTRICA POR DISTRIBUCIÓN TRONCAL - TRANSNOA S.A.
F10: 2.- CONEXIÓN
F12: 2.1.- Transformación
F14: 2.1.1.- Equipamiento propio
B16: ='TOT-0316'!B14 -> Desde el 01 al 31 de Marzo de 2016
F18: Por Transformador por MVA $ = | I18: 1.79
F19: Coeficiente de penalización por salida forzada = | I19: =30*'TOT-0316'!B13 -> 30 | K19: =IF(I19=30," ",IF(I19=60," Coeficiente duplicado por tasa de falla >4 Sal. x año/100 km.","REVISAR COEFICIENTE")) -> 
C20: 3 | D20: 4 | E20: 5 | F20: 6 | G20: 7 | H20: 8 | I20: 9 | J20: 10 | K20: 11 | L20: 12 | M20: 13 | N20: 14 | O20: 15 | P20: 16 | Q20: 17 | R20: 18 | S20: 19 | T20: 20 | U20: 21 | V20: 22 | W20: 23 | X20: 24 | Y20: 25 | Z20: 26 | AA20: 27 | AB20: 28 | AC20: 29
C21: N° | D21: INDISP | E21: ID EQUIPO | F21: ESTACIÓN TRANSFORMADORA | G21: EQUIPO | H21: POT. [MVA] | I21: U [kV] | J21: $/h | K21: Salida | L21: Entrada | M21: Hs Indisp. | N21: Mtos. Indisp. | O21: Tipo Sal.(²) | P21: AUT. | Q21: C.R. % | R21: E.N.S. | S21: K (P;ENS) | T21: PENALIZ. PROGRAM. | U21: REDUCC. PROGRAM. | V21: PENALIZAC. FORZADA Por Salida hs. Restantes | X21: REDUCC. FORZADA Por Salida hs. Restantes | Z21: RESTANTE FORZADA | AA21: REDUCC. RESTANTE | AB21: Informó en Térm. | AC21: TOTAL PENALIZAC.
C24: 30 | D24: 298245 | E24: 3105 | F24: SANTIAGO CENTRO | G24: TRAFO 2 | H24: 30 | I24: 132/33/13,2 | J24: =H24*$I$18 -> 53.7 | K24: 2016-03-01 | L24: 2016-03-31T23:59:59 | M24: =IF(F24="","",(L24-K24)*24) -> 743.9997222 | N24: =IF(F24="","",ROUND((L24-K24)*24*60,0)) -> 44640 | O24: RP | P24: =IF(F24="","",IF(OR(O24="P",O24="RP"),"--","NO")) -> -- | Q24: 40 | R24: NO | S24: =$I$19*IF(R24="SI",1,0.1)*IF(OR(O24="P",O24="RP"),0.1,1) -> 0.3 | T24: =IF(O24="P",J24*S24*ROUND(N24/60,2),"--") -> -- | U24: =IF(O24="RP",J24*S24*Q24/100*ROUND(N24/60,2),"--") -> 4794.336 | V24: =IF(AND(O24="F",P24="NO"),J24*S24,"--") -> -- | W24: =IF(O24="F",J24*S24*ROUND(N24/60,2),"--") -> -- | X24: =IF(AND(O24="R",P24="NO"),J24*S24*Q24/100,"--") -> -- | Y24: =IF(O24="R",J24*S24*ROUND(N24/60,2)*Q24/100,"--") -> -- | Z24: =IF(O24="RF",J24*S24*ROUND(N24/60,2),"--") -> -- | AA24: =IF(O24="RR",J24*S24*ROUND(N24/60,2)*Q24/100,"--") -> -- | AB24: SI | AC24: =IF(F24="","",SUM(T24:AA24)*IF(AB24="SI",1,2)) -> 4794.336
C25: 31 | D25: 297468 | E25: 5063 | F25: QUIMILI | G25: TRAFO 2 | H25: 15 | I25: 132/33/13,2 | J25: 26.85 | K25: 2016-03-01 | L25: 2016-03-31T23:59:59 | M25: 743.9997222 | N25: 44640 | O25: P | P25: -- | Q25: 0,000 | R25: NO | S25: 0.3 | T25: 5992.92 | U25: -- | V25: -- | W25: -- | X25: -- | Y25: -- | Z25: -- | AA25: -- | AB25: SI | AC25: 5992.92
C26: 32 | D26: 299993 | E26: 580 | F26: TARTAGAL | G26: TRAFO 1 | H26: 30 | I26: 132/33/13,2 | J26: 53.7 | K26: 2016-03-02T11:27:00 | L26: 2016-03-02T11:31:00 | M26: 0.06666666671 | N26: 4 | O26: RP | P26: -- | Q26: 40 | R26: NO | S26: 0.3 | T26: -- | U26: 0.45108 | V26: -- | W26: -- | X26: -- | Y26: -- | Z26: -- | AA26: -- | AB26: SI | AC26: 0.45108
C27: 33 | D27: 299996 | E27: 580 | F27: TARTAGAL | G27: TRAFO 1 | H27: 30 | I27: 132/33/13,2 | J27: 53.7 | K27: 2016-03-02T15:57:00 | L27: 2016-03-02T16:02:00 | M27: 0.08333333343 | N27: 5 | O27: F | P27: NO | Q27: 0,000 | R27: SI | S27: 30 | T27: -- | U27: -- | V27: 1611 | W27: 128.88 | X27: -- | Y27: -- | Z27: -- | AA27: -- | AB27: SI | AC27: 1739.88
C28: 34 | D28: 300052 | E28: 3946 | F28: CATAMARCA II | G28: TRAFO 1 | H28: 30 | I28: 132/33/13,2 | J28: 53.7 | K28: 2016-03-05T05:25:00 | L28: 2016-03-06T18:46:00 | M28: 37.35 | N28: 2241 | O28: P | P28: -- | Q28: 0,000 | R28: NO | S28: 0.3 | T28: 601.7085 | U28: -- | V28: -- | W28: -- | X28: -- | Y28: -- | Z28: -- | AA28: -- | AB28: SI | AC28: 601.7085
C29: 35 | D29: 300053 | E29: 4517 | F29: CATAMARCA II | G29: TRAFO 2 | H29: 30 | I29: 132/33/13,2 | J29: 53.7 | K29: 2016-03-05T05:25:00 | L29: 2016-03-06T18:46:00 | M29: 37.35 | N29: 2241 | O29: P | P29: -- | Q29: 0,000 | R29: NO | S29: 0.3 | T29: 601.7085 | U29: -- | V29: -- | W29: -- | X29: -- | Y29: -- | Z29: -- | AA29: -- | AB29: SI | AC29: 601.7085
C30: 36 | D30: 300054 | E30: 4062 | F30: JUJUY SUR | G30: TRAFO 2 | H30: 30 | I30: 132/33/13,2 | J30: 53.7 | K30: 2016-03-06T08:08:00 | L30: 2016-03-06T15:05:00 | M30: =IF(F30="","",(L30-K30)*24) -> 6.95 | N30: =IF(F30="","",ROUND((L30-K30)*24*60,0)) -> 417 | O30: P | P30: =IF(F30="","",IF(OR(O30="P",O30="RP"),"--","NO")) -> -- | Q30: 0,000 | R30: NO | S30: =$I$19*IF(R30="SI",1,0.1)*IF(OR(O30="P",O30="RP"),0.1,1) -> 0.3 | T30: =IF(O30="P",J30*S30*ROUND(N30/60,2),"--") -> 111.9645 | U30: =IF(O30="RP",J30*S30*Q30/100*ROUND(N30/60,2),"--") -> -- | V30: =IF(AND(O30="F",P30="NO"),J30*S30,"--") -> -- | W30: =IF(O30="F",J30*S30*ROUND(N30/60,2),"--") -> -- | X30: =IF(AND(O30="R",P30="NO"),J30*S30*Q30/100,"--") -> -- | Y30: =IF(O30="R",J30*S30*ROUND(N30/60,2)*Q30/100,"--") -> -- | Z30: =IF(O30="RF",J30*S30*ROUND(N30/60,2),"--") -> -- | AA30: =IF(O30="RR",J30*S30*ROUND(N30/60,2)*Q30/100,"--") -> -- | AB30: SI | AC30: 111.9645
C31: 37 | D31: 300082 | E31: 5616 | F31: PANTANILLO | G31: TRAFO 1 | H31: 30 | I31: 132/33/13,2 | J31: =H31*$I$18 -> 53.7 | K31: 2016-03-07T07:12:00 | L31: 2016-03-07T07:43:00 | M31: 0.5166666666 | N31: 31 | O31: F | P31: NO | Q31: 0,000 | R31: SI | S31: 30 | T31: -- | U31: -- | V31: 1611 | W31: 837.72 | X31: -- | Y31: -- | Z31: -- | AA31: -- | AB31: SI | AC31: =IF(F31="","",SUM(T31:AA31)*IF(AB31="SI",1,2)) -> 2448.72
C32: 38 | D32: 300111 | E32: 5062 | F32: QUIMILI | G32: TRAFO 1 | H32: 15 | I32: 132/33/13,2 | J32: =H32*$I$18 -> 26.85 | K32: 2016-03-08T17:38:00 | L32: 2016-03-08T18:28:00 | M32: 0.8333333333 | N32: 50 | O32: R | P32: NO | Q32: 40 | R32: SI | S32: 30 | T32: -- | U32: -- | V32: -- | W32: -- | X32: 322.2 | Y32: 267.426 | Z32: -- | AA32: -- | AB32: SI | AC32: 589.626
C33: 39 | D33: 300112 | E33: 3694 | F33: SANTIAGO CENTRO | G33: TRAFO 1 | H33: 30 | I33: 132/33/13,2 | J33: 53.7 | K33: 2016-03-09T09:10:00 | L33: 2016-03-09T10:13:00 | M33: 1.05 | N33: 63 | O33: P | P33: -- | Q33: 0,000 | R33: NO | S33: 0.3 | T33: 16.9155 | U33: -- | V33: -- | W33: -- | X33: -- | Y33: -- | Z33: -- | AA33: -- | AB33: SI | AC33: 16.9155
C34: 40 | D34: 300113 | E34: 5746 | F34: LULES | G34: TRAFO 1 | H34: 30 | I34: 132/33/13,2 | J34: 53.7 | K34: 2016-03-10T08:10:00 | L34: 2016-03-10T17:33:00 | M34: 9.383333333 | N34: 563 | O34: P | P34: -- | Q34: 0,000 | R34: NO | S34: 0.3 | T34: 151.1118 | U34: -- | V34: -- | W34: -- | X34: -- | Y34: -- | Z34: -- | AA34: -- | AB34: SI | AC34: 151.1118
C35: 41 | D35: 300117 | E35: 556 | F35: LA BANDA | G35: TRAFO 1 | H35: 30 | I35: 132/33/13,2 | J35: 53.7 | K35: 2016-03-10T11:28:00 | L35: 2016-03-10T12:16:00 | M35: 0.8 | N35: 48 | O35: RP | P35: -- | Q35: 40 | R35: NO | S35: 0.3 | T35: -- | U35: 5.1552 | V35: -- | W35: -- | X35: -- | Y35: -- | Z35: -- | AA35: -- | AB35: SI | AC35: 5.1552
C36: 42 | D36: 300118 | E36: 557 | F36: LA BANDA | G36: TRAFO 2 | H36: 30 | I36: 132/33/13,2 | J36: 53.7 | K36: 2016-03-10T12:22:00 | L36: 2016-03-10T12:59:00 | M36: 0.6166666668 | N36: 37 | O36: RP | P36: -- | Q36: 60 | R36: NO | S36: 0.3 | T36: -- | U36: 5.99292 | V36: -- | W36: -- | X36: -- | Y36: -- | Z36: -- | AA36: -- | AB36: SI | AC36: 5.99292
C37: 43 | D37: 300313 | E37: 4252 | F37: CAFAYATE | G37: TRAFO 1 | H37: 15 | I37: 132/33/13,2 | J37: 26.85 | K37: 2016-03-15T06:58:00 | L37: 2016-03-15T07:19:00 | M37: 0.3499999999 | N37: 21 | O37: F | P37: NO | Q37: 0,000 | R37: SI | S37: 30 | T37: -- | U37: -- | V37: 805.5 | W37: 281.925 | X37: -- | Y37: -- | Z37: -- | AA37: -- | AB37: SI | AC37: 1087.425
C38: 44 | D38: 300322 | E38: 557 | F38: LA BANDA | G38: TRAFO 2 | H38: 30 | I38: 132/33/13,2 | J38: 53.7 | K38: 2016-03-16T10:44:00 | L38: 2016-03-16T10:55:00 | M38: 0.1833333332 | N38: 11 | O38: R | P38: NO | Q38: 60 | R38: SI | S38: 30 | T38: -- | U38: -- | V38: -- | W38: -- | X38: 966.6 | Y38: 173.988 | Z38: -- | AA38: -- | AB38: SI | AC38: 1140.588
C39: 45 | D39: 300345 | E39: 5746 | F39: LULES | G39: TRAFO 1 | H39: 30 | I39: 132/33/13,2 | J39: 53.7 | K39: 2016-03-18T13:21:00 | L39: 2016-03-18T13:29:00 | M39: 0.1333333332 | N39: 8 | O39: R | P39: NO | Q39: 40 | R39: SI | S39: 30 | T39: -- | U39: -- | V39: -- | W39: -- | X39: 644.4 | Y39: 83.772 | Z39: -- | AA39: -- | AB39: SI | AC39: 728.172
C40: 46 | D40: 300350 | E40: 3941 | F40: SAN JUANCITO | G40: TRAFO 2 | H40: 15 | I40: 132/33/13,2 | J40: 26.85 | K40: 2016-03-18T21:02:00 | L40: 2016-03-18T21:15:00 | M40: 0.2166666667 | N40: 13 | O40: F | P40: NO | Q40: 0,000 | R40: SI | S40: 30 | T40: -- | U40: -- | V40: 805.5 | W40: 177.21 | X40: -- | Y40: -- | Z40: -- | AA40: -- | AB40: SI | AC40: 982.71
C41: 47 | D41: 300353 | E41: 4956 | F41: LA PAZ | G41: TRAFO 1 | H41: 10 | I41: 132/33/13,2 | J41: 17.9 | K41: 2016-03-19T18:42:00 | L41: 2016-03-19T19:23:00 | M41: 0.6833333333 | N41: 41 | O41: R | P41: NO | Q41: 60 | R41: SI | S41: 30 | T41: -- | U41: -- | V41: -- | W41: -- | X41: 322.2 | Y41: 219.096 | Z41: -- | AA41: -- | AB41: SI | AC41: 541.296
C42: 48 | D42: 300366 | E42: 3694 | F42: SANTIAGO CENTRO | G42: TRAFO 1 | H42: 30 | I42: 132/33/13,2 | J42: 53.7 | K42: 2016-03-20T08:01:00 | L42: 2016-03-20T12:16:00 | M42: 4.25 | N42: 255 | O42: RP | P42: -- | Q42: 40 | R42: NO | S42: 0.3 | T42: -- | U42: 27.387 | V42: -- | W42: -- | X42: -- | Y42: -- | Z42: -- | AA42: -- | AB42: SI | AC42: 27.387
C43: 49 | D43: 300528 | E43: 3947 | F43: CATAMARCA | G43: TRAFO 2 | H43: 30 | I43: 132/33/13,2 | J43: =H43*$I$18 -> 53.7 | K43: 2016-03-21T22:56:00 | L43: 2016-03-22T00:02:00 | M43: 1.1 | N43: 66 | O43: F | P43: NO | Q43: 0,000 | R43: SI | S43: 30 | T43: -- | U43: -- | V43: 1611 | W43: 1772.1 | X43: -- | Y43: -- | Z43: -- | AA43: -- | AB43: SI | AC43: 3383.1
C44: 50 | D44: 300533 | E44: 3947 | F44: CATAMARCA | G44: TRAFO 2 | H44: 30 | I44: 132/33/13,2 | J44: =H44*$I$18 -> 53.7 | K44: 2016-03-23 | L44: 2016-03-31T23:59:00 | M44: 215.9833333 | N44: 12959 | O44: RP | P44: -- | Q44: 60 | R44: NO | S44: 0.3 | T44: -- | U44: 2087.66268 | V44: -- | W44: -- | X44: -- | Y44: -- | Z44: -- | AA44: -- | AB44: SI | AC44: 2087.66268
C45: 51 | D45: 300537 | E45: 5062 | F45: QUIMILI | G45: TRAFO 1 | H45: 15 | I45: 132/33/13,2 | J45: 26.85 | K45: 2016-03-24T03:04:00 | L45: 2016-03-24T03:09:00 | M45: 0.08333333326 | N45: 5 | O45: R | P45: NO | Q45: 40 | R45: SI | S45: 30 | T45: -- | U45: -- | V45: -- | W45: -- | X45: 322.2 | Y45: 25.776 | Z45: -- | AA45: -- | AB45: SI | AC45: 347.976
C47: (²) | D47: P - PROGRAMADA ; F - FORZADA ; RP - REDUCCIÓN PROGRAMADA ; R - REDUCCIÓN FORZADA | T47: =SUM(T22:T46) -> 7476.3288 | U47: 6920.98488 | V47: 6444 | W47: 3197.835 | X47: 2577.6 | Y47: 770.058 | Z47: 0 | AA47: 0 | AC47: =ROUND(SUM(AC22:AC46),2) -> 27386.81

Sheet T-03 (2)
B2: =+'TOT-0316'!B2 -> ANEXO VI al Memorsndum D.T.E.E. N° 356 / 2017
A4: ENTE NACIONAL REGULADOR
A5: DE LA ELECTRICIDAD
F8: SISTEMA DE TRANSPORTE DE ENERGÍA ELÉCTRICA POR DISTRIBUCIÓN TRONCAL - TRANSNOA S.A.
F10: 2.- CONEXIÓN
F12: 2.1.- Transformación
F14: 2.1.1.- Equipamiento propio
B16: ='TOT-0316'!B14 -> Desde el 01 al 31 de Marzo de 2016
F18: Por Transformador por MVA $ = | I18: 1.79
F19: Coeficiente de penalización por salida forzada = | I19: =30*'TOT-0316'!B13 -> 30 | K19: =IF(I19=30," ",IF(I19=60," Coeficiente duplicado por tasa de falla >4 Sal. x año/100 km.","REVISAR COEFICIENTE")) -> 
C20: 3 | D20: 4 | E20: 5 | F20: 6 | G20: 7 | H20: 8 | I20: 9 | J20: 10 | K20: 11 | L20: 12 | M20: 13 | N20: 14 | O20: 15 | P20: 16 | Q20: 17 | R20: 18 | S20: 19 | T20: 20 | U20: 21 | V20: 22 | W20: 23 | X20: 24 | Y20: 25 | Z20: 26 | AA20: 27 | AB20: 28 | AC20: 29
C21: N° | D21: INDISP | E21: ID EQUIPO | F21: ESTACIÓN TRANSFORMADORA | G21: EQUIPO | H21: POT. [MVA] | I21: U [kV] | J21: $/h | K21: Salida | L21: Entrada | M21: Hs Indisp. | N21: Mtos. Indisp. | O21: Tipo Sal.(²) | P21: AUT. | Q21: C.R. % | R21: E.N.S. | S21: K (P;ENS) | T21: PENALIZ. PROGRAM. | U21: REDUCC. PROGRAM. | V21: PENALIZAC. FORZADA Por Salida hs. Restantes | X21: REDUCC. FORZADA Por Salida hs. Restantes | Z21: RESTANTE FORZADA | AA21: REDUCC. RESTANTE | AB21: Informó en Térm. | AC21: TOTAL PENALIZAC.
AC22: ='T-03 (1)'!AC47 -> 27386.81
C24: 52 | D24: 300542 | E24: 5410 | F24: TERMAS NORTE | G24: TRAFO 1 | H24: 15 | I24: 132/33/13,2 | J24: =H24*$I$18 -> 26.85 | K24: 2016-03-27T16:32:00 | L24: 2016-03-27T16:59:00 | M24: =IF(F24="","",(L24-K24)*24) -> 0.4500000001 | N24: =IF(F24="","",ROUND((L24-K24)*24*60,0)) -> 27 | O24: F | P24: =IF(F24="","",IF(OR(O24="P",O24="RP"),"--","NO")) -> NO | Q24: 0,000 | R24: SI | S24: =$I$19*IF(R24="SI",1,0.1)*IF(OR(O24="P",O24="RP"),0.1,1) -> 30 | T24: =IF(O24="P",J24*S24*ROUND(N24/60,2),"--") -> -- | U24: =IF(O24="RP",J24*S24*Q24/100*ROUND(N24/60,2),"--") -> -- | V24: =IF(AND(O24="F",P24="NO"),J24*S24,"--") -> 805.5 | W24: =IF(O24="F",J24*S24*ROUND(N24/60,2),"--") -> 362.475 | X24: =IF(AND(O24="R",P24="NO"),J24*S24*Q24/100,"--") -> -- | Y24: =IF(O24="R",J24*S24*ROUND(N24/60,2)*Q24/100,"--") -> -- | Z24: =IF(O24="RF",J24*S24*ROUND(N24/60,2),"--") -> -- | AA24: =IF(O24="RR",J24*S24*ROUND(N24/60,2)*Q24/100,"--") -> -- | AB24: SI | AC24: =IF(F24="","",SUM(T24:AA24)*IF(AB24="SI",1,2)) -> 1167.975
C25: 53 | D25: 300547 | E25: 5410 | F25: TERMAS NORTE | G25: TRAFO 1 | H25: 15 | I25: 132/33/13,2 | J25: =H25*$I$18 -> 26.85 | K25: 2016-03-27T18:13:00 | L25: 2016-03-27T18:20:00 | M25: =IF(F25="","",(L25-K25)*24) -> 0.1166666667 | N25: =IF(F25="","",ROUND((L25-K25)*24*60,0)) -> 7 | O25: F | P25: =IF(F25="","",IF(OR(O25="P",O25="RP"),"--","NO")) -> NO | Q25: 0,000 | R25: SI | S25: =$I$19*IF(R25="SI",1,0.1)*IF(OR(O25="P",O25="RP"),0.1,1) -> 30 | T25: =IF(O25="P",J25*S25*ROUND(N25/60,2),"--") -> -- | U25: =IF(O25="RP",J25*S25*Q25/100*ROUND(N25/60,2),"--") -> -- | V25: =IF(AND(O25="F",P25="NO"),J25*S25,"--") -> 805.5 | W25: =IF(O25="F",J25*S25*ROUND(N25/60,2),"--") -> 96.66 | X25: =IF(AND(O25="R",P25="NO"),J25*S25*Q25/100,"--") -> -- | Y25: =IF(O25="R",J25*S25*ROUND(N25/60,2)*Q25/100,"--") -> -- | Z25: =IF(O25="RF",J25*S25*ROUND(N25/60,2),"--") -> -- | AA25: =IF(O25="RR",J25*S25*ROUND(N25/60,2)*Q25/100,"--") -> -- | AB25: SI | AC25: =IF(F25="","",SUM(T25:AA25)*IF(AB25="SI",1,2)) -> 902.16
C26: 54 | D26: 300548 | E26: 5410 | F26: TERMAS NORTE | G26: TRAFO 1 | H26: 15 | I26: 132/33/13,2 | J26: 26.85 | K26: 2016-03-27T20:02:00 | L26: 2016-03-27T21:33:00 | M26: 1.516666667 | N26: 91 | O26: F | P26: NO | Q26: 0,000 | R26: NO | S26: 3 | T26: -- | U26: -- | V26: 80.55 | W26: 122.436 | X26: -- | Y26: -- | Z26: -- | AA26: -- | AB26: SI | AC26: 202.986
C27: 55 | D27: 300732 | E27: 3226 | F27: AVELLANEDA | G27: TRAFO 1 | H27: 30 | I27: 132/33/13,2 | J27: 53.7 | K27: 2016-03-29T09:05:00 | L27: 2016-03-29T12:38:00 | M27: 3.55 | N27: 213 | O27: P | P27: -- | Q27: 0,000 | R27: NO | S27: 0.3 | T27: 57.1905 | U27: -- | V27: -- | W27: -- | X27: -- | Y27: -- | Z27: -- | AA27: -- | AB27: SI | AC27: 57.1905
C28: 56 | D28: 300733 | E28: 5569 | F28: SANTIAGO ESTE | G28: TRAFO 1 | H28: 30 | I28: 132/13,2 | J28: 53.7 | K28: 2016-03-29T11:23:00 | L28: 2016-03-29T13:36:00 | M28: 2.216666667 | N28: 133 | O28: RP | P28: -- | Q28: 60 | R28: NO | S28: 0.3 | T28: -- | U28: 21.45852 | V28: -- | W28: -- | X28: -- | Y28: -- | Z28: -- | AA28: -- | AB28: SI | AC28: 21.45852
C29: 57 | D29: 300734 | E29: 5570 | F29: SANTIAGO ESTE | G29: TRAFO 2 | H29: 30 | I29: 132/13,2 | J29: 53.7 | K29: 2016-03-29T13:38:00 | L29: 2016-03-29T14:40:00 | M29: 1.033333333 | N29: 62 | O29: RP | P29: -- | Q29: 60 | R29: NO | S29: 0.3 | T29: -- | U29: 9.95598 | V29: -- | W29: -- | X29: -- | Y29: -- | Z29: -- | AA29: -- | AB29: SI | AC29: 9.95598
C30: 58 | D30: 300737 | E30: 5130 | F30: VALLE VIEJO | G30: TRAFO 1 | H30: 30 | I30: 132/33/13,2 | J30: 53.7 | K30: 2016-03-30T03:00:00 | L30: 2016-03-30T04:40:00 | M30: 1.666666667 | N30: 100 | O30: P | P30: -- | Q30: 0,000 | R30: NO | S30: 0.3 | T30: 26.9037 | U30: =IF(O30="RP",J30*S30*Q30/100*ROUND(N30/60,2),"--") -> -- | V30: =IF(AND(O30="F",P30="NO"),J30*S30,"--") -> -- | W30: =IF(O30="F",J30*S30*ROUND(N30/60,2),"--") -> -- | X30: =IF(AND(O30="R",P30="NO"),J30*S30*Q30/100,"--") -> -- | Y30: =IF(O30="R",J30*S30*ROUND(N30/60,2)*Q30/100,"--") -> -- | Z30: =IF(O30="RF",J30*S30*ROUND(N30/60,2),"--") -> -- | AA30: =IF(O30="RR",J30*S30*ROUND(N30/60,2)*Q30/100,"--") -> -- | AB30: SI | AC30: =IF(F30="","",SUM(T30:AA30)*IF(AB30="SI",1,2)) -> 26.9037
C31: 59 | D31: 300750 | E31: 5130 | F31: VALLE VIEJO | G31: TRAFO 1 | H31: 30 | I31: 132/33/13,2 | J31: 53.7 | K31: 2016-03-31T03:01:00 | L31: 2016-03-31T04:21:00 | M31: 1.333333333 | N31: 80 | O31: P | P31: -- | Q31: 0,000 | R31: NO | S31: 0.3 | T31: 21.4263 | U31: =IF(O31="RP",J31*S31*Q31/100*ROUND(N31/60,2),"--") -> -- | V31: =IF(AND(O31="F",P31="NO"),J31*S31,"--") -> -- | W31: =IF(O31="F",J31*S31*ROUND(N31/60,2),"--") -> -- | X31: =IF(AND(O31="R",P31="NO"),J31*S31*Q31/100,"--") -> -- | Y31: =IF(O31="R",J31*S31*ROUND(N31/60,2)*Q31/100,"--") -> -- | Z31: =IF(O31="RF",J31*S31*ROUND(N31/60,2),"--") -> -- | AA31: =IF(O31="RR",J31*S31*ROUND(N31/60,2)*Q31/100,"--") -> -- | AB31: SI | AC31: =IF(F31="","",SUM(T31:AA31)*IF(AB31="SI",1,2)) -> 21.4263
C32: 60 | D32: 300755 | E32: 5445 | F32: AIMOGASTA | G32: TRAFO 2 | H32: 30 | I32: 132/33/13,2 | J32: 53.7 | K32: 2016-03-31T08:12:00 | L32: 2016-03-31T13:15:00 | M32: 5.05 | N32: 303 | O32: P | P32: -- | Q32: 0,000 | R32: NO | S32: 0.3 | T32: 81.3555 | U32: -- | V32: -- | W32: -- | X32: -- | Y32: -- | Z32: -- | AA32: -- | AB32: SI | AC32: 81.3555
C33: 61 | D33: 300756 | E33: 5753 | F33: TUCUMAN NORTE | G33: TRAFO 4 | H33: 15 | I33: 132/33/13,2 | J33: 26.85 | K33: 2016-03-31T09:02:00 | L33: 2016-03-31T12:59:00 | M33: 3.95 | N33: 237 | O33: P | P33: -- | Q33: 0,000 | R33: NO | S33: 0.3 | T33: 31.81725 | U33: -- | V33: -- | W33: -- | X33: -- | Y33: -- | Z33: -- | AA33: -- | AB33: SI | AC33: 31.81725
C34: 62 | D34: 300759 | E34: 5584 | F34: FERNANDEZ | G34: TRAFO 1 | H34: 15 | I34: 132/33/13,2 | J34: 26.85 | K34: 2016-03-31T19:32:00 | L34: 2016-03-31T19:45:00 | M34: 0.2166666667 | N34: 13 | O34: F | P34: NO | Q34: 0,000 | R34: SI | S34: 30 | T34: -- | U34: -- | V34: 805.5 | W34: 177.21 | X34: -- | Y34: -- | Z34: -- | AA34: -- | AB34: SI | AC34: 982.71
J35: =H35*$I$18 -> 0 | S35: 3 | T35: -- | U35: -- | V35: -- | W35: -- | X35: -- | Y35: -- | Z35: -- | AA35: -- | AC35: =IF(F35="","",SUM(T35:AA35)*IF(AB35="SI",1,2)) -> 
J36: 0 | S36: 3 | T36: -- | U36: -- | V36: -- | W36: -- | X36: -- | Y36: -- | Z36: -- | AA36: --
J37: 0 | S37: 3 | T37: -- | U37: -- | V37: -- | W37: -- | X37: -- | Y37: -- | Z37: -- | AA37: --
J38: 0 | S38: 3 | T38: -- | U38: -- | V38: -- | W38: -- | X38: -- | Y38: -- | Z38: -- | AA38: --
J39: 0 | S39: =$I$19*IF(R39="SI",1,0.1)*IF(OR(O39="P",O39="RP"),0.1,1) -> 3 | T39: =IF(O39="P",J39*S39*ROUND(N39/60,2),"--") -> -- | U39: =IF(O39="RP",J39*S39*Q39/100*ROUND(N39/60,2),"--") -> -- | V39: =IF(AND(O39="F",P39="NO"),J39*S39,"--") -> -- | W39: =IF(O39="F",J39*S39*ROUND(N39/60,2),"--") -> -- | X39: =IF(AND(O39="R",P39="NO"),J39*S39*Q39/100,"--") -> -- | Y39: =IF(O39="R",J39*S39*ROUND(N39/60,2)*Q39/100,"--") -> -- | Z39: =IF(O39="RF",J39*S39*ROUND(N39/60,2),"--") -> -- | AA39: =IF(O39="RR",J39*S39*ROUND(N39/60,2)*Q39/100,"--") -> --
J40: 0 | S40: 3 | T40: -- | U40: -- | V40: -- | W40: -- | X40: -- | Y40: -- | Z40: -- | AA40: --
J41: 0 | S41: 3 | T41: -- | U41: -- | V41: -- | W41: -- | X41: -- | Y41: -- | Z41: -- | AA41: --
J42: 0 | S42: =$I$19*IF(R42="SI",1,0.1)*IF(OR(O42="P",O42="RP"),0.1,1) -> 3 | T42: =IF(O42="P",J42*S42*ROUND(N42/60,2),"--") -> -- | U42: =IF(O42="RP",J42*S42*Q42/100*ROUND(N42/60,2),"--") -> -- | V42: =IF(AND(O42="F",P42="NO"),J42*S42,"--") -> -- | W42: =IF(O42="F",J42*S42*ROUND(N42/60,2),"--") -> -- | X42: =IF(AND(O42="R",P42="NO"),J42*S42*Q42/100,"--") -> -- | Y42: =IF(O42="R",J42*S42*ROUND(N42/60,2)*Q42/100,"--") -> -- | Z42: =IF(O42="RF",J42*S42*ROUND(N42/60,2),"--") -> -- | AA42: =IF(O42="RR",J42*S42*ROUND(N42/60,2)*Q42/100,"--") -> --
J43: 0 | S43: =$I$19*IF(R43="SI",1,0.1)*IF(OR(O43="P",O43="RP"),0.1,1) -> 3 | T43: =IF(O43="P",J43*S43*ROUND(N43/60,2),"--") -> -- | U43: =IF(O43="RP",J43*S43*Q43/100*ROUND(N43/60,2),"--") -> -- | V43: =IF(AND(O43="F",P43="NO"),J43*S43,"--") -> -- | W43: =IF(O43="F",J43*S43*ROUND(N43/60,2),"--") -> -- | X43: =IF(AND(O43="R",P43="NO"),J43*S43*Q43/100,"--") -> -- | Y43: =IF(O43="R",J43*S43*ROUND(N43/60,2)*Q43/100,"--") -> -- | Z43: =IF(O43="RF",J43*S43*ROUND(N43/60,2),"--") -> -- | AA43: =IF(O43="RR",J43*S43*ROUND(N43/60,2)*Q43/100,"--") -> --
J44: =H44*$I$18 -> 0 | M44: =IF(F44="","",(L44-K44)*24) ->  | N44: =IF(F44="","",ROUND((L44-K44)*24*60,0)) ->  | S44: =$I$19*IF(R44="SI",1,0.1)*IF(OR(O44="P",O44="RP"),0.1,1) -> 3 | T44: =IF(O44="P",J44*S44*ROUND(N44/60,2),"--") -> -- | U44: =IF(O44="RP",J44*S44*Q44/100*ROUND(N44/60,2),"--") -> -- | V44: =IF(AND(O44="F",P44="NO"),J44*S44,"--") -> -- | W44: =IF(O44="F",J44*S44*ROUND(N44/60,2),"--") -> -- | X44: =IF(AND(O44="R",P44="NO"),J44*S44*Q44/100,"--") -> -- | Y44: =IF(O44="R",J44*S44*ROUND(N44/60,2)*Q44/100,"--") -> -- | Z44: =IF(O44="RF",J44*S44*ROUND(N44/60,2),"--") -> -- | AA44: =IF(O44="RR",J44*S44*ROUND(N44/60,2)*Q44/100,"--") -> --
J45: 0 | S45: 3 | T45: -- | U45: -- | V45: -- | W45: -- | X45: -- | Y45: -- | Z45: -- | AA45: --
J46: 0 | S46: 3 | T46: -- | U46: -- | V46: -- | W46: -- | X46: -- | Y46: -- | Z46: -- | AA46: --
J47: 0 | S47: 3 | T47: -- | U47: -- | V47: -- | W47: -- | X47: -- | Y47: -- | Z47: -- | AA47: -- | AC47: =IF(F47="","",SUM(T47:AA47)*IF(AB47="SI",1,2)) -> 
J48: 0 | S48: =$I$19*IF(R48="SI",1,0.1)*IF(OR(O48="P",O48="RP"),0.1,1) -> 3 | T48: =IF(O48="P",J48*S48*ROUND(N48/60,2),"--") -> -- | U48: =IF(O48="RP",J48*S48*Q48/100*ROUND(N48/60,2),"--") -> -- | V48: =IF(AND(O48="F",P48="NO"),J48*S48,"--") -> -- | W48: =IF(O48="F",J48*S48*ROUND(N48/60,2),"--") -> -- | X48: =IF(AND(O48="R",P48="NO"),J48*S48*Q48/100,"--") -> -- | Y48: =IF(O48="R",J48*S48*ROUND(N48/60,2)*Q48/100,"--") -> -- | Z48: =IF(O48="RF",J48*S48*ROUND(N48/60,2),"--") -> -- | AA48: =IF(O48="RR",J48*S48*ROUND(N48/60,2)*Q48/100,"--") -> -- | AC48: =IF(F48="","",SUM(T48:AA48)*IF(AB48="SI",1,2)) -> 
J49: 0 | S49: 3 | T49: -- | U49: -- | V49: -- | W49: -- | X49: -- | Y49: -- | Z49: -- | AA49: --
J50: 0 | M50: =IF(F50="","",(L50-K50)*24) ->  | N50: =IF(F50="","",ROUND((L50-K50)*24*60,0)) ->  | S50: 3 | T50: -- | U50: -- | V50: -- | W50: -- | X50: -- | Y50: -- | Z50: -- | AA50: --
J51: 0 | M51: =IF(F51="","",(L51-K51)*24) ->  | N51: =IF(F51="","",ROUND((L51-K51)*24*60,0)) ->  | P51: =IF(F51="","",IF(OR(O51="P",O51="RP"),"--","NO")) ->  | S51: 3 | T51: -- | U51: -- | V51: -- | W51: -- | X51: -- | Y51: -- | Z51: -- | AA51: --
C52: (²) | D52: P - PROGRAMADA ; F - FORZADA ; R - REDUCCIÓN FORZADA | T52: =SUM(T22:T51) -> 218.69325 | U52: 31.4145 | V52: 2497.05 | W52: 758.781 | X52: 0 | Y52: 0 | Z52: 0 | AA52: 0 | AC52: =ROUND(SUM(AC22:AC51),2) -> 30892.75

Sheet SA-03 (1)
B2: ='TOT-0316'!B2 -> ANEXO VI al Memorsndum D.T.E.E. N° 356 / 2017
A4: ENTE NACIONAL REGULADOR
A5: DE LA ELECTRICIDAD
F8: SISTEMA DE TRANSPORTE DE ENERGÍA ELÉCTRICA POR DISTRIBUCIÓN TRONCAL - TRANSNOA S.A.
F10: 2.2.- Salidas
F12: 2.2.1.- Equipamiento propio
B14: ='TOT-0316'!B14 -> Desde el 01 al 31 de Marzo de 2016
F16: Salida en 132 kV o 66 kV = | G16: 23.905 | H16: =50*'TOT-0316'!B13 -> 50 | J16: =IF(H16=50," ",IF(H16=100," Coeficiente duplicado por tasa de falla >4 Sal. x año/100 km.","REVISAR COEFICIENTE")) -> 
F17: Salida en 33 kV | G17: 17.935 | H17: =25*'TOT-0316'!B13 -> 25 | J17: =IF(H17=25," ",IF(H17=50," Coeficiente duplicado por tasa de falla >4 Sal. x año/100 km.","REVISAR COEFICIENTE")) -> 
F18: Salida en 13,2 kV = | G18: 17.935 | H18: =20*'TOT-0316'!B13 -> 20 | J18: =IF(H18=20," ",IF(H18=40," Coeficiente duplicado por tasa de falla >4 Sal. x año/100 km.","REVISAR COEFICIENTE")) -> 
C19: 3 | D19: 4 | E19: 5 | F19: 6 | G19: 7 | H19: 8 | I19: 9 | J19: 10 | K19: 11 | L19: 12 | M19: 13 | N19: 14 | O19: 15 | P19: 16 | Q19: 17 | R19: 18 | S19: 19 | T19: 20 | U19: 21 | V19: 22
C20: N° | D20: INDISP | E20: ID EQUIPO | F20: ESTACIÓN TRANSFORMADORA | G20: EQUIPO | H20: U [kV] | I20: $/h | J20: Salida | K20: Entrada | L20: Hs. Indisp. | M20: Mtos. Indisp. | N20: Tipo Sal.(²) | O20: AUT. | P20: K | Q20: PENALIZ. PROGRAM. | R20: PENALIZAC. FORZADA Por Salida hs. Restantes | T20: RESTANTE FORZADA | U20: Informó en Térm. | V20: TOTAL PENALIZAC.
C23: 63 | D23: 300735 | E23: 5131 | F23: VALLE VIEJO | G23: SALIDA ALIMENTADOR LOS POZOS | H23: 13.2 | I23: =IF(OR(H23=132,H23=66),$G$16,IF(H23=33,$G$17,$G$18)) -> 17.935 | J23: 2016-03-30T03:00:00 | K23: 2016-03-30T04:40:00 | L23: =IF(F23="","",(K23-J23)*24) -> 1.666666667 | M23: =IF(F23="","",ROUND((K23-J23)*24*60,0)) -> 100 | N23: P | O23: =IF(F23="","",IF(OR(N23="P",N23="RP"),"--","NO")) -> -- | P23: =IF(H23>33,$H$16,IF(H23=33,$H$17,$H$18)) -> 20 | Q23: =IF(N23="P",I23*P23*ROUND(M23/60,2)*0.1,"--") -> 59.9029 | R23: =IF(AND(N23="F",O23="NO"),I23*P23,"--") -> -- | S23: =IF(N23="F",I23*P23*ROUND(M23/60,2),"--") -> -- | T23: =IF(N23="RF",I23*P23*ROUND(M23/60,2),"--") -> -- | U23: =IF(F23="","","SI") -> SI | V23: =IF(F23="","",SUM(Q23:T23)*IF(U23="SI",1,2)*IF(H23="500/220",0,1)) -> 59.9029
C24: 64 | D24: 300736 | E24: 5132 | F24: VALLE VIEJO | G24: SALIDA ALIMEN. LA MERCED | H24: 33 | I24: 17.935 | J24: 2016-03-30T03:00:00 | K24: 2016-03-30T04:40:00 | L24: 1.666666667 | M24: 100 | N24: P | O24: -- | P24: 25 | Q24: 74.878625 | R24: -- | S24: -- | T24: -- | U24: SI | V24: 74.878625
C25: 65 | D25: 300751 | E25: 5131 | F25: VALLE VIEJO | G25: SALIDA ALIMENTADOR LOS POZOS | H25: 13.2 | I25: 17.935 | J25: 2016-03-31T03:01:00 | K25: 2016-03-31T04:21:00 | L25: =IF(F25="","",(K25-J25)*24) -> 1.333333333 | M25: =IF(F25="","",ROUND((K25-J25)*24*60,0)) -> 80 | N25: P | O25: =IF(F25="","",IF(OR(N25="P",N25="RP"),"--","NO")) -> -- | P25: =IF(H25>33,$H$16,IF(H25=33,$H$17,$H$18)) -> 20 | Q25: =IF(N25="P",I25*P25*ROUND(M25/60,2)*0.1,"--") -> 47.7071 | R25: =IF(AND(N25="F",O25="NO"),I25*P25,"--") -> -- | S25: =IF(N25="F",I25*P25*ROUND(M25/60,2),"--") -> -- | T25: =IF(N25="RF",I25*P25*ROUND(M25/60,2),"--") -> -- | U25: =IF(F25="","","SI") -> SI | V25: 47.7071
C26: 66 | D26: 300752 | E26: 5132 | F26: VALLE VIEJO | G26: SALIDA ALIMEN. LA MERCED | H26: 33 | I26: 17.935 | J26: 2016-03-31T03:01:00 | K26: 2016-03-31T04:21:00 | L26: 1.333333333 | M26: 80 | N26: P | O26: =IF(F26="","",IF(OR(N26="P",N26="RP"),"--","NO")) -> -- | P26: =IF(H26>33,$H$16,IF(H26=33,$H$17,$H$18)) -> 25 | Q26: =IF(N26="P",I26*P26*ROUND(M26/60,2)*0.1,"--") -> 59.633875 | R26: =IF(AND(N26="F",O26="NO"),I26*P26,"--") -> -- | S26: =IF(N26="F",I26*P26*ROUND(M26/60,2),"--") -> -- | T26: =IF(N26="RF",I26*P26*ROUND(M26/60,2),"--") -> -- | U26: =IF(F26="","","SI") -> SI | V26: 59.633875
I27: 17.935 | P27: 20 | Q27: -- | R27: -- | S27: -- | T27: -- | U27: =IF(F27="","","SI") -> 
I28: 17.935 | P28: 20 | Q28: -- | R28: -- | S28: -- | T28: --
I29: 17.935 | P29: 20 | Q29: -- | R29: -- | S29: -- | T29: --
I30: 17.935 | P30: 20 | Q30: -- | R30: -- | S30: -- | T30: --
I31: 17.935 | P31: 20 | Q31: -- | R31: -- | S31: -- | T31: --
I32: 17.935 | P32: 20 | Q32: -- | R32: -- | S32: -- | T32: --
I33: 17.935 | P33: 20 | Q33: -- | R33: -- | S33: -- | T33: --
I34: 17.935 | P34: 20 | Q34: -- | R34: -- | S34: -- | T34: --
I35: 17.935 | P35: 20 | Q35: -- | R35: -- | S35: -- | T35: --
I36: 17.935 | P36: 20 | Q36: -- | R36: -- | S36: -- | T36: --
I37: 17.935 | P37: 20 | Q37: -- | R37: -- | S37: -- | T37: --
I38: 17.935 | P38: 20 | Q38: -- | R38: -- | S38: -- | T38: --
I39: 17.935 | P39: 20 | Q39: -- | R39: -- | S39: -- | T39: --
I40: 17.935 | L40: =IF(F40="","",(K40-J40)*24) ->  | M40: =IF(F40="","",ROUND((K40-J40)*24*60,0)) ->  | P40: =IF(H40>33,$H$16,IF(H40=33,$H$17,$H$18)) -> 20 | Q40: =IF(N40="P",I40*P40*ROUND(M40/60,2)*0.1,"--") -> -- | R40: =IF(AND(N40="F",O40="NO"),I40*P40,"--") -> -- | S40: =IF(N40="F",I40*P40*ROUND(M40/60,2),"--") -> -- | T40: =IF(N40="RF",I40*P40*ROUND(M40/60,2),"--") -> -- | U40: =IF(F40="","","SI") ->  | V40: =IF(F40="","",SUM(Q40:T40)*IF(U40="SI",1,2)*IF(H40="500/220",0,1)) -> 
I41: 17.935 | L41: =IF(F41="","",(K41-J41)*24) ->  | M41: =IF(F41="","",ROUND((K41-J41)*24*60,0)) ->  | P41: =IF(H41>33,$H$16,IF(H41=33,$H$17,$H$18)) -> 20 | Q41: =IF(N41="P",I41*P41*ROUND(M41/60,2)*0.1,"--") -> -- | R41: =IF(AND(N41="F",O41="NO"),I41*P41,"--") -> -- | S41: =IF(N41="F",I41*P41*ROUND(M41/60,2),"--") -> -- | T41: =IF(N41="RF",I41*P41*ROUND(M41/60,2),"--") -> -- | U41: =IF(F41="","","SI") ->  | V41: =IF(F41="","",SUM(Q41:T41)*IF(U41="SI",1,2)*IF(H41="500/220",0,1)) -> 
I42: 17.935 | L42: =IF(F42="","",(K42-J42)*24) ->  | M42: =IF(F42="","",ROUND((K42-J42)*24*60,0)) ->  | P42: =IF(H42>33,$H$16,IF(H42=33,$H$17,$H$18)) -> 20 | Q42: =IF(N42="P",I42*P42*ROUND(M42/60,2)*0.1,"--") -> -- | R42: =IF(AND(N42="F",O42="NO"),I42*P42,"--") -> -- | S42: =IF(N42="F",I42*P42*ROUND(M42/60,2),"--") -> -- | T42: =IF(N42="RF",I42*P42*ROUND(M42/60,2),"--") -> -- | U42: =IF(F42="","","SI") ->  | V42: =IF(F42="","",SUM(Q42:T42)*IF(U42="SI",1,2)*IF(H42="500/220",0,1)) -> 
C44: (²) | D44: P - PROGRAMADA | Q44: =SUM(Q21:Q43) -> 242.1225 | R44: =SUM(R21:R43) -> 0 | S44: =SUM(S21:S43) -> 0 | T44: =SUM(T21:T43) -> 0 | V44: =ROUND(SUM(V21:V43),2) -> 242.12

Sheet SUP-TRANSPORTEL
B2: ='TOT-0316'!B2 -> ANEXO VI al Memorsndum D.T.E.E. N° 356 / 2017
A3: ENTE NACIONAL REGULADOR
A4: DE LA ELECTRICIDAD
D7: SISTEMA DE TRANSPORTE DE ENERGÍA ELÉCTRICA POR DISTRIBUCIÓN TRONCAL - TRANSNOA S.A.
D9: 3.1- SUPERVISIÓN - Transportista Independiente TRANSPORTEL La Rioja Sur
B11: ='TOT-0316'!B14 -> Desde el 01 al 31 de Marzo de 2016
C15: a) Datos
L16: Salida en 132 kV o 66 kV = | M16: 2.414
D17: Tiempo de servicio = | E17: =MID(B11,16,2)*24 -> 744 | F17: hs | I17: $/100 km-h : LÍNEAS 132 kV | J17: 514.204 | L17: Salida en 33 kV | M17: 1.811
D18: Porcentaje por Supervisión = | E18: 0.04 | L18: Salida en 13,2 kV = | M18: 1.811
C20: b) SM: es la suma de las sanciones a que en cada mes se hiciere pasible el Transportista Independiente, valorizadas con idénticos criterios que los que se aplican a la Concesionaria.
D23: SANCIÓN al T.I. | F23: LÍNEAS | H23: SM = | I23: 5576.21 | L23: SEGÚN 1.2.
C25: c) RM : es la remuneración que mensualmente recibiría el Transportista Independiente, si su servicio fuera valorizado conforme al régimen remuneratorio que se aplica a la Concesionaria.
D27: Cargo por Capacidad de Transporte | E27: U [kV] | F27: Long [km] | H27: Cargo por C. T. | I27: ="Cargo por E.E.T." -> Cargo por E.E.T. | L27: TOTAL
D28: LA RIOJA SUR P.I.LA RIOJA | E28: 132 | F28: 40 | H28: =F28*$J$17*$E$17/100 -> 153027.1104 | I28: 0 | J28: ="(DTE 0316)" -> (DTE 0316) | L28: =SUM(H28:K28) -> 153027.1104
D29: LA RIOJA SUR P.I.PATQUIA | E29: 132 | F29: 40 | H29: =F29*$J$17*$E$17/100 -> 153027.1104 | I29: 0 | J29: ="(DTE 0316)" -> (DTE 0316) | L29: =SUM(H29:K29) -> 153027.1104
L30: =SUM(L28:L29) -> 306054.2208
H33: RM = | I33: =+L30 -> 306054.2208 | K33: RM * = | L33: 37401.53472
C35: d) CS: Es el cargo por Supervisión de la Operación que la Transportista percibe por supervisar la operación y mantenimiento del Transportista Independiente.
D37: Cargo por Supervisión afectado a la sanción | H37: CS = | I37: =E18*L33 -> 1496.061389
C39: e) SANCIÓN
D40: Sanción Calculada | E40: =10*I23*I37/I33 -> 272.5775993
D42: TOTAL A PENALIZAR A TRANSNOA S.A. POR SUPERVISIÓN A SU TI
H44: SANCIÓN = | I44: =IF($E$40>3*I37,3*I37,$E$40) -> 272.5775993 | K44: RM * = VALOR EMPLEADO PARA CALCULAR CS

Sheet Tasa de Falla
B2: ='TOT-0316'!B2 -> ANEXO VI al Memorsndum D.T.E.E. N° 356 / 2017
A3: ENTE NACIONAL REGULADOR
A4: DE LA ELECTRICIDAD
B6: SISTEMA DE TRANSPORTE DE ENERGÍA ELÉCTRICA POR DISTRIBUCIÓN TRONCAL
B8: TRANSNOA S.A.
B10: INDISPONIBILIDADES FORZADAS DE LÍNEAS - TASA DE FALLA
B13: y | D13: ='TOT-0316'!B14 -> Desde el 01 al 31 de Marzo de 2016
C15: N° | D15: LÍNEAS | E15: U [kV] | F15: Long. [km] | G15: 2015-03-01 | H15: 2015-04-01 | I15: 2015-05-01 | J15: 2015-06-01 | K15: 2015-07-01 | L15: 2015-08-01 | M15: 2015-09-01 | N15: 2015-10-01 | O15: 2015-11-01 | P15: 2015-12-01 | Q15: 2016-01-01 | R15: 2016-02-01 | S15: 2016-03-01
C17: ='[3]Tasa de Falla'!C17 -> 1 | D17: ='[3]Tasa de Falla'!D17 -> AGUA BLANCA - VILLA QUINTEROS | E17: ='[3]Tasa de Falla'!E17 -> 132 | F17: ='[3]Tasa de Falla'!F17 -> 23.8 | G17: =IF('[3]Tasa de Falla'!IV17=0,"",'[3]Tasa de Falla'!IV17) ->  | H17: =IF('[3]Tasa de Falla'!IW17=0,"",'[3]Tasa de Falla'!IW17) ->  | I17: =IF('[3]Tasa de Falla'!IX17=0,"",'[3]Tasa de Falla'!IX17) ->  | J17: =IF('[3]Tasa de Falla'!IY17=0,"",'[3]Tasa de Falla'!IY17) ->  | K17: =IF('[3]Tasa de Falla'!IZ17=0,"",'[3]Tasa de Falla'!IZ17) ->  | L17: =IF('[3]Tasa de Falla'!JA17=0,"",'[3]Tasa de Falla'!JA17) ->  | M17: =IF('[3]Tasa de Falla'!JB17=0,"",'[3]Tasa de Falla'!JB17) ->  | N17: =IF('[3]Tasa de Falla'!JC17=0,"",'[3]Tasa de Falla'!JC17) ->  | O17: =IF('[3]Tasa de Falla'!JD17=0,"",'[3]Tasa de Falla'!JD17) ->  | P17: =IF('[3]Tasa de Falla'!JE17=0,"",'[3]Tasa de Falla'!JE17) ->  | Q17: =IF('[3]Tasa de Falla'!JF17=0,"",'[3]Tasa de Falla'!JF17) ->  | R17: =IF('[3]Tasa de Falla'!JG17=0,"",'[3]Tasa de Falla'!JG17) -> 
C18: ='[3]Tasa de Falla'!C18 -> 2 | D18: ='[3]Tasa de Falla'!D18 -> AGUILARES - ESCABA | E18: ='[3]Tasa de Falla'!E18 -> 132 | F18: ='[3]Tasa de Falla'!F18 -> 27 | G18: =IF('[3]Tasa de Falla'!IV18=0,"",'[3]Tasa de Falla'!IV18) ->  | H18: =IF('[3]Tasa de Falla'!IW18=0,"",'[3]Tasa de Falla'!IW18) ->  | I18: =IF('[3]Tasa de Falla'!IX18=0,"",'[3]Tasa de Falla'!IX18) ->  | J18: =IF('[3]Tasa de Falla'!IY18=0,"",'[3]Tasa de Falla'!IY18) ->  | K18: =IF('[3]Tasa de Falla'!IZ18=0,"",'[3]Tasa de Falla'!IZ18) ->  | L18: =IF('[3]Tasa de Falla'!JA18=0,"",'[3]Tasa de Falla'!JA18) -> 2 | M18: =IF('[3]Tasa de Falla'!JB18=0,"",'[3]Tasa de Falla'!JB18) ->  | N18: =IF('[3]Tasa de Falla'!JC18=0,"",'[3]Tasa de Falla'!JC18) ->  | O18: =IF('[3]Tasa de Falla'!JD18=0,"",'[3]Tasa de Falla'!JD18) ->  | P18: =IF('[3]Tasa de Falla'!JE18=0,"",'[3]Tasa de Falla'!JE18) ->  | Q18: =IF('[3]Tasa de Falla'!JF18=0,"",'[3]Tasa de Falla'!JF18) ->  | R18: =IF('[3]Tasa de Falla'!JG18=0,"",'[3]Tasa de Falla'!JG18) -> 
C19: ='[3]Tasa de Falla'!C19 -> 3 | D19: ='[3]Tasa de Falla'!D19 -> CABRA CORRAL - SALTA SUR | E19: ='[3]Tasa de Falla'!E19 -> 132 | F19: ='[3]Tasa de Falla'!F19 -> 62 | G19: =IF('[3]Tasa de Falla'!IV19=0,"",'[3]Tasa de Falla'!IV19) -> XXXX | H19: =IF('[3]Tasa de Falla'!IW19=0,"",'[3]Tasa de Falla'!IW19) -> XXXX | I19: =IF('[3]Tasa de Falla'!IX19=0,"",'[3]Tasa de Falla'!IX19) -> XXXX | J19: =IF('[3]Tasa de Falla'!IY19=0,"",'[3]Tasa de Falla'!IY19) -> XXXX | K19: =IF('[3]Tasa de Falla'!IZ19=0,"",'[3]Tasa de Falla'!IZ19) -> XXXX | L19: =IF('[3]Tasa de Falla'!JA19=0,"",'[3]Tasa de Falla'!JA19) -> XXXX | M19: =IF('[3]Tasa de Falla'!JB19=0,"",'[3]Tasa de Falla'!JB19) -> XXXX | N19: =IF('[3]Tasa de Falla'!JC19=0,"",'[3]Tasa de Falla'!JC19) -> XXXX | O19: =IF('[3]Tasa de Falla'!JD19=0,"",'[3]Tasa de Falla'!JD19) -> XXXX | P19: =IF('[3]Tasa de Falla'!JE19=0,"",'[3]Tasa de Falla'!JE19) -> XXXX | Q19: =IF('[3]Tasa de Falla'!JF19=0,"",'[3]Tasa de Falla'!JF19) -> XXXX | R19: =IF('[3]Tasa de Falla'!JG19=0,"",'[3]Tasa de Falla'!JG19) -> XXXX
C20: ='[3]Tasa de Falla'!C20 -> 4 | D20: ='[3]Tasa de Falla'!D20 -> CEVIL POZO - TUCUMAN NORTE | E20: ='[3]Tasa de Falla'!E20 -> 132 | F20: ='[3]Tasa de Falla'!F20 -> 14.5 | G20: =IF('[3]Tasa de Falla'!IV20=0,"",'[3]Tasa de Falla'!IV20) ->  | H20: =IF('[3]Tasa de Falla'!IW20=0,"",'[3]Tasa de Falla'!IW20) ->  | I20: =IF('[3]Tasa de Falla'!IX20=0,"",'[3]Tasa de Falla'!IX20) ->  | J20: =IF('[3]Tasa de Falla'!IY20=0,"",'[3]Tasa de Falla'!IY20) ->  | K20: =IF('[3]Tasa de Falla'!IZ20=0,"",'[3]Tasa de Falla'!IZ20) ->  | L20: =IF('[3]Tasa de Falla'!JA20=0,"",'[3]Tasa de Falla'!JA20) ->  | M20: =IF('[3]Tasa de Falla'!JB20=0,"",'[3]Tasa de Falla'!JB20) ->  | N20: =IF('[3]Tasa de Falla'!JC20=0,"",'[3]Tasa de Falla'!JC20) ->  | O20: =IF('[3]Tasa de Falla'!JD20=0,"",'[3]Tasa de Falla'!JD20) ->  | P20: =IF('[3]Tasa de Falla'!JE20=0,"",'[3]Tasa de Falla'!JE20) ->  | Q20: =IF('[3]Tasa de Falla'!JF20=0,"",'[3]Tasa de Falla'!JF20) ->  | R20: =IF('[3]Tasa de Falla'!JG20=0,"",'[3]Tasa de Falla'!JG20) -> 
C21: ='[3]Tasa de Falla'!C21 -> 5 | D21: ='[3]Tasa de Falla'!D21 -> CAMPO SANTO - MINETTI | E21: ='[3]Tasa de Falla'!E21 -> 132 | F21: ='[3]Tasa de Falla'!F21 -> 29.9 | G21: =IF('[3]Tasa de Falla'!IV21=0,"",'[3]Tasa de Falla'!IV21) -> XXXX | H21: =IF('[3]Tasa de Falla'!IW21=0,"",'[3]Tasa de Falla'!IW21) -> XXXX | I21: =IF('[3]Tasa de Falla'!IX21=0,"",'[3]Tasa de Falla'!IX21) -> XXXX | J21: =IF('[3]Tasa de Falla'!IY21=0,"",'[3]Tasa de Falla'!IY21) -> XXXX | K21: =IF('[3]Tasa de Falla'!IZ21=0,"",'[3]Tasa de Falla'!IZ21) -> XXXX | L21: =IF('[3]Tasa de Falla'!JA21=0,"",'[3]Tasa de Falla'!JA21) -> XXXX | M21: =IF('[3]Tasa de Falla'!JB21=0,"",'[3]Tasa de Falla'!JB21) -> XXXX | N21: =IF('[3]Tasa de Falla'!JC21=0,"",'[3]Tasa de Falla'!JC21) -> XXXX | O21: =IF('[3]Tasa de Falla'!JD21=0,"",'[3]Tasa de Falla'!JD21) -> XXXX | P21: =IF('[3]Tasa de Falla'!JE21=0,"",'[3]Tasa de Falla'!JE21) -> XXXX | Q21: =IF('[3]Tasa de Falla'!JF21=0,"",'[3]Tasa de Falla'!JF21) -> XXXX | R21: =IF('[3]Tasa de Falla'!JG21=0,"",'[3]Tasa de Falla'!JG21) -> XXXX
C22: ='[3]Tasa de Falla'!C22 -> 6 | D22: ='[3]Tasa de Falla'!D22 -> ESCABA - HUACRA | E22: ='[3]Tasa de Falla'!E22 -> 132 | F22: ='[3]Tasa de Falla'!F22 -> 49.9 | G22: =IF('[3]Tasa de Falla'!IV22=0,"",'[3]Tasa de Falla'!IV22) -> XXXX | H22: =IF('[3]Tasa de Falla'!IW22=0,"",'[3]Tasa de Falla'!IW22) -> XXXX | I22: =IF('[3]Tasa de Falla'!IX22=0,"",'[3]Tasa de Falla'!IX22) -> XXXX | J22: =IF('[3]Tasa de Falla'!IY22=0,"",'[3]Tasa de Falla'!IY22) -> XXXX | K22: =IF('[3]Tasa de Falla'!IZ22=0,"",'[3]Tasa de Falla'!IZ22) -> XXXX | L22: =IF('[3]Tasa de Falla'!JA22=0,"",'[3]Tasa de Falla'!JA22) -> XXXX | M22: =IF('[3]Tasa de Falla'!JB22=0,"",'[3]Tasa de Falla'!JB22) -> XXXX | N22: =IF('[3]Tasa de Falla'!JC22=0,"",'[3]Tasa de Falla'!JC22) -> XXXX | O22: =IF('[3]Tasa de Falla'!JD22=0,"",'[3]Tasa de Falla'!JD22) -> XXXX | P22: =IF('[3]Tasa de Falla'!JE22=0,"",'[3]Tasa de Falla'!JE22) -> XXXX | Q22: =IF('[3]Tasa de Falla'!JF22=0,"",'[3]Tasa de Falla'!JF22) -> XXXX | R22: =IF('[3]Tasa de Falla'!JG22=0,"",'[3]Tasa de Falla'!JG22) -> XXXX
C23: ='[3]Tasa de Falla'!C23 -> 7 | D23: ='[3]Tasa de Falla'!D23 -> ESTATICA SUR - EL BRACHO | E23: ='[3]Tasa de Falla'!E23 -> 132 | F23: ='[3]Tasa de Falla'!F23 -> 19.6 | G23: =IF('[3]Tasa de Falla'!IV23=0,"",'[3]Tasa de Falla'!IV23) -> XXXX | H23: =IF('[3]Tasa de Falla'!IW23=0,"",'[3]Tasa de Falla'!IW23) -> XXXX | I23: =IF('[3]Tasa de Falla'!IX23=0,"",'[3]Tasa de Falla'!IX23) -> XXXX | J23: =IF('[3]Tasa de Falla'!IY23=0,"",'[3]Tasa de Falla'!IY23) -> XXXX | K23: =IF('[3]Tasa de Falla'!IZ23=0,"",'[3]Tasa de Falla'!IZ23) -> XXXX | L23: =IF('[3]Tasa de Falla'!JA23=0,"",'[3]Tasa de Falla'!JA23) -> XXXX | M23: =IF('[3]Tasa de Falla'!JB23=0,"",'[3]Tasa de Falla'!JB23) -> XXXX | N23: =IF('[3]Tasa de Falla'!JC23=0,"",'[3]Tasa de Falla'!JC23) -> XXXX | O23: =IF('[3]Tasa de Falla'!JD23=0,"",'[3]Tasa de Falla'!JD23) -> XXXX | P23: =IF('[3]Tasa de Falla'!JE23=0,"",'[3]Tasa de Falla'!JE23) -> XXXX | Q23: =IF('[3]Tasa de Falla'!JF23=0,"",'[3]Tasa de Falla'!JF23) -> XXXX | R23: =IF('[3]Tasa de Falla'!JG23=0,"",'[3]Tasa de Falla'!JG23) -> XXXX
C24: ='[3]Tasa de Falla'!C24 -> 8 | D24: ='[3]Tasa de Falla'!D24 -> ESTATICA SUR - INDEPENDENCIA 1 (O.F.) | E24: ='[3]Tasa de Falla'!E24 -> 132 | F24: ='[3]Tasa de Falla'!F24 -> 2.6 | G24: =IF('[3]Tasa de Falla'!IV24=0,"",'[3]Tasa de Falla'!IV24) ->  | H24: =IF('[3]Tasa de Falla'!IW24=0,"",'[3]Tasa de Falla'!IW24) ->  | I24: =IF('[3]Tasa de Falla'!IX24=0,"",'[3]Tasa de Falla'!IX24) ->  | J24: =IF('[3]Tasa de Falla'!IY24=0,"",'[3]Tasa de Falla'!IY24) ->  | K24: =IF('[3]Tasa de Falla'!IZ24=0,"",'[3]Tasa de Falla'!IZ24) -> 1 | L24: =IF('[3]Tasa de Falla'!JA24=0,"",'[3]Tasa de Falla'!JA24) ->  | M24: =IF('[3]Tasa de Falla'!JB24=0,"",'[3]Tasa de Falla'!JB24) ->  | N24: =IF('[3]Tasa de Falla'!JC24=0,"",'[3]Tasa de Falla'!JC24) ->  | O24: =IF('[3]Tasa de Falla'!JD24=0,"",'[3]Tasa de Falla'!JD24) ->  | P24: =IF('[3]Tasa de Falla'!JE24=0,"",'[3]Tasa de Falla'!JE24) ->  | Q24: =IF('[3]Tasa de Falla'!JF24=0,"",'[3]Tasa de Falla'!JF24) ->  | R24: =IF('[3]Tasa de Falla'!JG24=0,"",'[3]Tasa de Falla'!JG24) -> 
C25: ='[3]Tasa de Falla'!C25 -> 9 | D25: ='[3]Tasa de Falla'!D25 -> ESTATICA SUR - SARMIENTO "TRANSNOA S.A." | E25: ='[3]Tasa de Falla'!E25 -> 132 | F25: ='[3]Tasa de Falla'!F25 -> 4.4 | G25: =IF('[3]Tasa de Falla'!IV25=0,"",'[3]Tasa de Falla'!IV25) ->  | H25: =IF('[3]Tasa de Falla'!IW25=0,"",'[3]Tasa de Falla'!IW25) ->  | I25: =IF('[3]Tasa de Falla'!IX25=0,"",'[3]Tasa de Falla'!IX25) ->  | J25: =IF('[3]Tasa de Falla'!IY25=0,"",'[3]Tasa de Falla'!IY25) ->  | K25: =IF('[3]Tasa de Falla'!IZ25=0,"",'[3]Tasa de Falla'!IZ25) ->  | L25: =IF('[3]Tasa de Falla'!JA25=0,"",'[3]Tasa de Falla'!JA25) ->  | M25: =IF('[3]Tasa de Falla'!JB25=0,"",'[3]Tasa de Falla'!JB25) ->  | N25: =IF('[3]Tasa de Falla'!JC25=0,"",'[3]Tasa de Falla'!JC25) ->  | O25: =IF('[3]Tasa de Falla'!JD25=0,"",'[3]Tasa de Falla'!JD25) ->  | P25: =IF('[3]Tasa de Falla'!JE25=0,"",'[3]Tasa de Falla'!JE25) ->  | Q25: =IF('[3]Tasa de Falla'!JF25=0,"",'[3]Tasa de Falla'!JF25) ->  | R25: =IF('[3]Tasa de Falla'!JG25=0,"",'[3]Tasa de Falla'!JG25) -> 
C26: ='[3]Tasa de Falla'!C26 -> 10 | D26: ='[3]Tasa de Falla'!D26 -> GÜEMES - EL BRACHO | E26: ='[3]Tasa de Falla'!E26 -> 132 | F26: ='[3]Tasa de Falla'!F26 -> 308 | G26: =IF('[3]Tasa de Falla'!IV26=0,"",'[3]Tasa de Falla'!IV26) -> XXXX | H26: =IF('[3]Tasa de Falla'!IW26=0,"",'[3]Tasa de Falla'!IW26) -> XXXX | I26: =IF('[3]Tasa de Falla'!IX26=0,"",'[3]Tasa de Falla'!IX26) -> XXXX | J26: =IF('[3]Tasa de Falla'!IY26=0,"",'[3]Tasa de Falla'!IY26) -> XXXX | K26: =IF('[3]Tasa de Falla'!IZ26=0,"",'[3]Tasa de Falla'!IZ26) -> XXXX | L26: =IF('[3]Tasa de Falla'!JA26=0,"",'[3]Tasa de Falla'!JA26) -> XXXX | M26: =IF('[3]Tasa de Falla'!JB26=0,"",'[3]Tasa de Falla'!JB26) -> XXXX | N26: =IF('[3]Tasa de Falla'!JC26=0,"",'[3]Tasa de Falla'!JC26) -> XXXX | O26: =IF('[3]Tasa de Falla'!JD26=0,"",'[3]Tasa de Falla'!JD26) -> XXXX | P26: =IF('[3]Tasa de Falla'!JE26=0,"",'[3]Tasa de Falla'!JE26) -> XXXX | Q26: =IF('[3]Tasa de Falla'!JF26=0,"",'[3]Tasa de Falla'!JF26) -> XXXX | R26: =IF('[3]Tasa de Falla'!JG26=0,"",'[3]Tasa de Falla'!JG26) -> XXXX
C27: ='[3]Tasa de Falla'!C27 -> 11 | D27: ='[3]Tasa de Falla'!D27 -> CAMPO SANTO - GÜEMES | E27: ='[3]Tasa de Falla'!E27 -> 132 | F27: ='[3]Tasa de Falla'!F27 -> 6.2 | G27: =IF('[3]Tasa de Falla'!IV27=0,"",'[3]Tasa de Falla'!IV27) -> XXXX | H27: =IF('[3]Tasa de Falla'!IW27=0,"",'[3]Tasa de Falla'!IW27) -> XXXX | I27: =IF('[3]Tasa de Falla'!IX27=0,"",'[3]Tasa de Falla'!IX27) -> XXXX | J27: =IF('[3]Tasa de Falla'!IY27=0,"",'[3]Tasa de Falla'!IY27) -> XXXX | K27: =IF('[3]Tasa de Falla'!IZ27=0,"",'[3]Tasa de Falla'!IZ27) -> XXXX | L27: =IF('[3]Tasa de Falla'!JA27=0,"",'[3]Tasa de Falla'!JA27) -> XXXX | M27: =IF('[3]Tasa de Falla'!JB27=0,"",'[3]Tasa de Falla'!JB27) -> XXXX | N27: =IF('[3]Tasa de Falla'!JC27=0,"",'[3]Tasa de Falla'!JC27) -> XXXX | O27: =IF('[3]Tasa de Falla'!JD27=0,"",'[3]Tasa de Falla'!JD27) -> XXXX | P27: =IF('[3]Tasa de Falla'!JE27=0,"",'[3]Tasa de Falla'!JE27) -> XXXX | Q27: =IF('[3]Tasa de Falla'!JF27=0,"",'[3]Tasa de Falla'!JF27) -> XXXX | R27: =IF('[3]Tasa de Falla'!JG27=0,"",'[3]Tasa de Falla'!JG27) -> XXXX
C28: ='[3]Tasa de Falla'!C28 -> 12 | D28: ='[3]Tasa de Falla'!D28 -> GÜEMES - SAN JUANCITO | E28: ='[3]Tasa de Falla'!E28 -> 132 | F28: ='[3]Tasa de Falla'!F28 -> 36.24 | G28: =IF('[3]Tasa de Falla'!IV28=0,"",'[3]Tasa de Falla'!IV28) ->  | H28: =IF('[3]Tasa de Falla'!IW28=0,"",'[3]Tasa de Falla'!IW28) -> 3 | I28: =IF('[3]Tasa de Falla'!IX28=0,"",'[3]Tasa de Falla'!IX28) -> 1 | J28: =IF('[3]Tasa de Falla'!IY28=0,"",'[3]Tasa de Falla'!IY28) ->  | K28: =IF('[3]Tasa de Falla'!IZ28=0,"",'[3]Tasa de Falla'!IZ28) ->  | L28: =IF('[3]Tasa de Falla'!JA28=0,"",'[3]Tasa de Falla'!JA28) ->  | M28: =IF('[3]Tasa de Falla'!JB28=0,"",'[3]Tasa de Falla'!JB28) ->  | N28: =IF('[3]Tasa de Falla'!JC28=0,"",'[3]Tasa de Falla'!JC28) ->  | O28: =IF('[3]Tasa de Falla'!JD28=0,"",'[3]Tasa de Falla'!JD28) ->  | P28: =IF('[3]Tasa de Falla'!JE28=0,"",'[3]Tasa de Falla'!JE28) -> 2 | Q28: =IF('[3]Tasa de Falla'!JF28=0,"",'[3]Tasa de Falla'!JF28) -> 2 | R28: =IF('[3]Tasa de Falla'!JG28=0,"",'[3]Tasa de Falla'!JG28) -> 2
C29: ='[3]Tasa de Falla'!C29 -> 13 | D29: ='[3]Tasa de Falla'!D29 -> CATAMARCA - HUACRA | E29: ='[3]Tasa de Falla'!E29 -> 132 | F29: ='[3]Tasa de Falla'!F29 -> 67.3 | G29: =IF('[3]Tasa de Falla'!IV29=0,"",'[3]Tasa de Falla'!IV29) ->  | H29: =IF('[3]Tasa de Falla'!IW29=0,"",'[3]Tasa de Falla'!IW29) -> 1 | I29: =IF('[3]Tasa de Falla'!IX29=0,"",'[3]Tasa de Falla'!IX29) ->  | J29: =IF('[3]Tasa de Falla'!IY29=0,"",'[3]Tasa de Falla'!IY29) ->  | K29: =IF('[3]Tasa de Falla'!IZ29=0,"",'[3]Tasa de Falla'!IZ29) ->  | L29: =IF('[3]Tasa de Falla'!JA29=0,"",'[3]Tasa de Falla'!JA29) ->  | M29: =IF('[3]Tasa de Falla'!JB29=0,"",'[3]Tasa de Falla'!JB29) ->  | N29: =IF('[3]Tasa de Falla'!JC29=0,"",'[3]Tasa de Falla'!JC29) ->  | O29: =IF('[3]Tasa de Falla'!JD29=0,"",'[3]Tasa de Falla'!JD29) ->  | P29: =IF('[3]Tasa de Falla'!JE29=0,"",'[3]Tasa de Falla'!JE29) -> 2 | Q29: =IF('[3]Tasa de Falla'!JF29=0,"",'[3]Tasa de Falla'!JF29) ->  | R29: =IF('[3]Tasa de Falla'!JG29=0,"",'[3]Tasa de Falla'!JG29) -> 
C30: ='[3]Tasa de Falla'!C30 -> 14 | D30: ='[3]Tasa de Falla'!D30 -> HUACRA - LA CALERA | E30: ='[3]Tasa de Falla'!E30 -> 132 | F30: ='[3]Tasa de Falla'!F30 -> 91.2 | G30: =IF('[3]Tasa de Falla'!IV30=0,"",'[3]Tasa de Falla'!IV30) ->  | H30: =IF('[3]Tasa de Falla'!IW30=0,"",'[3]Tasa de Falla'!IW30) ->  | I30: =IF('[3]Tasa de Falla'!IX30=0,"",'[3]Tasa de Falla'!IX30) -> 1 | J30: =IF('[3]Tasa de Falla'!IY30=0,"",'[3]Tasa de Falla'!IY30) ->  | K30: =IF('[3]Tasa de Falla'!IZ30=0,"",'[3]Tasa de Falla'!IZ30) ->  | L30: =IF('[3]Tasa de Falla'!JA30=0,"",'[3]Tasa de Falla'!JA30) ->  | M30: =IF('[3]Tasa de Falla'!JB30=0,"",'[3]Tasa de Falla'!JB30) ->  | N30: =IF('[3]Tasa de Falla'!JC30=0,"",'[3]Tasa de Falla'!JC30) ->  | O30: =IF('[3]Tasa de Falla'!JD30=0,"",'[3]Tasa de Falla'!JD30) ->  | P30: =IF('[3]Tasa de Falla'!JE30=0,"",'[3]Tasa de Falla'!JE30) ->  | Q30: =IF('[3]Tasa de Falla'!JF30=0,"",'[3]Tasa de Falla'!JF30) ->  | R30: =IF('[3]Tasa de Falla'!JG30=0,"",'[3]Tasa de Falla'!JG30) -> 
C31: ='[3]Tasa de Falla'!C31 -> 15 | D31: ='[3]Tasa de Falla'!D31 -> AGUA BLANCA - INDEPENDENCIA | E31: ='[3]Tasa de Falla'!E31 -> 132 | F31: ='[3]Tasa de Falla'!F31 -> 34.14 | G31: =IF('[3]Tasa de Falla'!IV31=0,"",'[3]Tasa de Falla'!IV31) ->  | H31: =IF('[3]Tasa de Falla'!IW31=0,"",'[3]Tasa de Falla'!IW31) ->  | I31: =IF('[3]Tasa de Falla'!IX31=0,"",'[3]Tasa de Falla'!IX31) ->  | J31: =IF('[3]Tasa de Falla'!IY31=0,"",'[3]Tasa de Falla'!IY31) ->  | K31: =IF('[3]Tasa de Falla'!IZ31=0,"",'[3]Tasa de Falla'!IZ31) ->  | L31: =IF('[3]Tasa de Falla'!JA31=0,"",'[3]Tasa de Falla'!JA31) ->  | M31: =IF('[3]Tasa de Falla'!JB31=0,"",'[3]Tasa de Falla'!JB31) -> 1 | N31: =IF('[3]Tasa de Falla'!JC31=0,"",'[3]Tasa de Falla'!JC31) ->  | O31: =IF('[3]Tasa de Falla'!JD31=0,"",'[3]Tasa de Falla'!JD31) ->  | P31: =IF('[3]Tasa de Falla'!JE31=0,"",'[3]Tasa de Falla'!JE31) ->  | Q31: =IF('[3]Tasa de Falla'!JF31=0,"",'[3]Tasa de Falla'!JF31) ->  | R31: =IF('[3]Tasa de Falla'!JG31=0,"",'[3]Tasa de Falla'!JG31) -> 1
C32: ='[3]Tasa de Falla'!C32 -> 16 | D32: ='[3]Tasa de Falla'!D32 -> INDEPENDENCIA - EL BRACHO 1 | E32: ='[3]Tasa de Falla'!E32 -> 132 | F32: ='[3]Tasa de Falla'!F32 -> 17.1 | G32: =IF('[3]Tasa de Falla'!IV32=0,"",'[3]Tasa de Falla'!IV32) ->  | H32: =IF('[3]Tasa de Falla'!IW32=0,"",'[3]Tasa de Falla'!IW32) ->  | I32: =IF('[3]Tasa de Falla'!IX32=0,"",'[3]Tasa de Falla'!IX32) ->  | J32: =IF('[3]Tasa de Falla'!IY32=0,"",'[3]Tasa de Falla'!IY32) ->  | K32: =IF('[3]Tasa de Falla'!IZ32=0,"",'[3]Tasa de Falla'!IZ32) ->  | L32: =IF('[3]Tasa de Falla'!JA32=0,"",'[3]Tasa de Falla'!JA32) -> 1 | M32: =IF('[3]Tasa de Falla'!JB32=0,"",'[3]Tasa de Falla'!JB32) ->  | N32: =IF('[3]Tasa de Falla'!JC32=0,"",'[3]Tasa de Falla'!JC32) ->  | O32: =IF('[3]Tasa de Falla'!JD32=0,"",'[3]Tasa de Falla'!JD32) ->  | P32: =IF('[3]Tasa de Falla'!JE32=0,"",'[3]Tasa de Falla'!JE32) ->  | Q32: =IF('[3]Tasa de Falla'!JF32=0,"",'[3]Tasa de Falla'!JF32) ->  | R32: =IF('[3]Tasa de Falla'!JG32=0,"",'[3]Tasa de Falla'!JG32) -> 
C33: ='[3]Tasa de Falla'!C33 -> 17 | D33: ='[3]Tasa de Falla'!D33 -> INDEPENDENCIA - LULES - PAPEL TUCUMAN | E33: ='[3]Tasa de Falla'!E33 -> 132 | F33: ='[3]Tasa de Falla'!F33 -> 19.3 | G33: =IF('[3]Tasa de Falla'!IV33=0,"",'[3]Tasa de Falla'!IV33) ->  | H33: =IF('[3]Tasa de Falla'!IW33=0,"",'[3]Tasa de Falla'!IW33) ->  | I33: =IF('[3]Tasa de Falla'!IX33=0,"",'[3]Tasa de Falla'!IX33) ->  | J33: =IF('[3]Tasa de Falla'!IY33=0,"",'[3]Tasa de Falla'!IY33) ->  | K33: =IF('[3]Tasa de Falla'!IZ33=0,"",'[3]Tasa de Falla'!IZ33) ->  | L33: =IF('[3]Tasa de Falla'!JA33=0,"",'[3]Tasa de Falla'!JA33) ->  | M33: =IF('[3]Tasa de Falla'!JB33=0,"",'[3]Tasa de Falla'!JB33) ->  | N33: =IF('[3]Tasa de Falla'!JC33=0,"",'[3]Tasa de Falla'!JC33) ->  | O33: =IF('[3]Tasa de Falla'!JD33=0,"",'[3]Tasa de Falla'!JD33) ->  | P33: =IF('[3]Tasa de Falla'!JE33=0,"",'[3]Tasa de Falla'!JE33) ->  | Q33: =IF('[3]Tasa de Falla'!JF33=0,"",'[3]Tasa de Falla'!JF33) ->  | R33: =IF('[3]Tasa de Falla'!JG33=0,"",'[3]Tasa de Falla'!JG33) -> 
C34: ='[3]Tasa de Falla'!C34 -> 18 | D34: ='[3]Tasa de Falla'!D34 -> FRIAS - LA CALERA NOA. | E34: ='[3]Tasa de Falla'!E34 -> 132 | F34: ='[3]Tasa de Falla'!F34 -> 27.3 | G34: =IF('[3]Tasa de Falla'!IV34=0,"",'[3]Tasa de Falla'!IV34) ->  | H34: =IF('[3]Tasa de Falla'!IW34=0,"",'[3]Tasa de Falla'!IW34) ->  | I34: =IF('[3]Tasa de Falla'!IX34=0,"",'[3]Tasa de Falla'!IX34) ->  | J34: =IF('[3]Tasa de Falla'!IY34=0,"",'[3]Tasa de Falla'!IY34) ->  | K34: =IF('[3]Tasa de Falla'!IZ34=0,"",'[3]Tasa de Falla'!IZ34) ->  | L34: =IF('[3]Tasa de Falla'!JA34=0,"",'[3]Tasa de Falla'!JA34) ->  | M34: =IF('[3]Tasa de Falla'!JB34=0,"",'[3]Tasa de Falla'!JB34) ->  | N34: =IF('[3]Tasa de Falla'!JC34=0,"",'[3]Tasa de Falla'!JC34) ->  | O34: =IF('[3]Tasa de Falla'!JD34=0,"",'[3]Tasa de Falla'!JD34) ->  | P34: =IF('[3]Tasa de Falla'!JE34=0,"",'[3]Tasa de Falla'!JE34) ->  | Q34: =IF('[3]Tasa de Falla'!JF34=0,"",'[3]Tasa de Falla'!JF34) ->  | R34: =IF('[3]Tasa de Falla'!JG34=0,"",'[3]Tasa de Falla'!JG34) -> 
C35: ='[3]Tasa de Falla'!C35 -> 19 | D35: ='[3]Tasa de Falla'!D35 -> LA BANDA - SANTIAGO CENTRO | E35: ='[3]Tasa de Falla'!E35 -> 132 | F35: ='[3]Tasa de Falla'!F35 -> 10.91 | G35: =IF('[3]Tasa de Falla'!IV35=0,"",'[3]Tasa de Falla'!IV35) -> 1 | H35: =IF('[3]Tasa de Falla'!IW35=0,"",'[3]Tasa de Falla'!IW35) ->  | I35: =IF('[3]Tasa de Falla'!IX35=0,"",'[3]Tasa de Falla'!IX35) ->  | J35: =IF('[3]Tasa de Falla'!IY35=0,"",'[3]Tasa de Falla'!IY35) -> XXXX | K35: =IF('[3]Tasa de Falla'!IZ35=0,"",'[3]Tasa de Falla'!IZ35) -> XXXX | L35: =IF('[3]Tasa de Falla'!JA35=0,"",'[3]Tasa de Falla'!JA35) -> XXXX | M35: =IF('[3]Tasa de Falla'!JB35=0,"",'[3]Tasa de Falla'!JB35) -> XXXX | N35: =IF('[3]Tasa de Falla'!JC35=0,"",'[3]Tasa de Falla'!JC35) -> XXXX | O35: =IF('[3]Tasa de Falla'!JD35=0,"",'[3]Tasa de Falla'!JD35) -> XXXX | P35: =IF('[3]Tasa de Falla'!JE35=0,"",'[3]Tasa de Falla'!JE35) -> XXXX | Q35: =IF('[3]Tasa de Falla'!JF35=0,"",'[3]Tasa de Falla'!JF35) -> XXXX | R35: =IF('[3]Tasa de Falla'!JG35=0,"",'[3]Tasa de Falla'!JG35) -> XXXX
C36: ='[3]Tasa de Falla'!C36 -> 20 | D36: ='[3]Tasa de Falla'!D36 -> LIBERTADOR NOA. - PICHANAL | E36: ='[3]Tasa de Falla'!E36 -> 132 | F36: ='[3]Tasa de Falla'!F36 -> 76 | G36: =IF('[3]Tasa de Falla'!IV36=0,"",'[3]Tasa de Falla'!IV36) -> 4 | H36: =IF('[3]Tasa de Falla'!IW36=0,"",'[3]Tasa de Falla'!IW36) ->  | I36: =IF('[3]Tasa de Falla'!IX36=0,"",'[3]Tasa de Falla'!IX36) ->  | J36: =IF('[3]Tasa de Falla'!IY36=0,"",'[3]Tasa de Falla'!IY36) ->  | K36: =IF('[3]Tasa de Falla'!IZ36=0,"",'[3]Tasa de Falla'!IZ36) ->  | L36: =IF('[3]Tasa de Falla'!JA36=0,"",'[3]Tasa de Falla'!JA36) ->  | M36: =IF('[3]Tasa de Falla'!JB36=0,"",'[3]Tasa de Falla'!JB36) ->  | N36: =IF('[3]Tasa de Falla'!JC36=0,"",'[3]Tasa de Falla'!JC36) ->  | O36: =IF('[3]Tasa de Falla'!JD36=0,"",'[3]Tasa de Falla'!JD36) -> 1 | P36: =IF('[3]Tasa de Falla'!JE36=0,"",'[3]Tasa de Falla'!JE36) -> 1 | Q36: =IF('[3]Tasa de Falla'!JF36=0,"",'[3]Tasa de Falla'!JF36) -> 1 | R36: =IF('[3]Tasa de Falla'!JG36=0,"",'[3]Tasa de Falla'!JG36) -> 
C37: ='[3]Tasa de Falla'!C37 -> 21 | D37: ='[3]Tasa de Falla'!D37 -> GÜEMES - METAN | E37: ='[3]Tasa de Falla'!E37 -> 132 | F37: ='[3]Tasa de Falla'!F37 -> 97.13 | G37: =IF('[3]Tasa de Falla'!IV37=0,"",'[3]Tasa de Falla'!IV37) -> XXXX | H37: =IF('[3]Tasa de Falla'!IW37=0,"",'[3]Tasa de Falla'!IW37) -> XXXX | I37: =IF('[3]Tasa de Falla'!IX37=0,"",'[3]Tasa de Falla'!IX37) -> XXXX | J37: =IF('[3]Tasa de Falla'!IY37=0,"",'[3]Tasa de Falla'!IY37) -> XXXX | K37: =IF('[3]Tasa de Falla'!IZ37=0,"",'[3]Tasa de Falla'!IZ37) -> XXXX | L37: =IF('[3]Tasa de Falla'!JA37=0,"",'[3]Tasa de Falla'!JA37) -> XXXX | M37: =IF('[3]Tasa de Falla'!JB37=0,"",'[3]Tasa de Falla'!JB37) -> XXXX | N37: =IF('[3]Tasa de Falla'!JC37=0,"",'[3]Tasa de Falla'!JC37) -> XXXX | O37: =IF('[3]Tasa de Falla'!JD37=0,"",'[3]Tasa de Falla'!JD37) -> XXXX | P37: =IF('[3]Tasa de Falla'!JE37=0,"",'[3]Tasa de Falla'!JE37) -> XXXX | Q37: =IF('[3]Tasa de Falla'!JF37=0,"",'[3]Tasa de Falla'!JF37) -> XXXX | R37: =IF('[3]Tasa de Falla'!JG37=0,"",'[3]Tasa de Falla'!JG37) -> XXXX
C38: ='[3]Tasa de Falla'!C38 -> 22 | D38: ='[3]Tasa de Falla'!D38 -> MINETTI - SAN JUANCITO | E38: ='[3]Tasa de Falla'!E38 -> 132 | F38: ='[3]Tasa de Falla'!F38 -> 26 | G38: =IF('[3]Tasa de Falla'!IV38=0,"",'[3]Tasa de Falla'!IV38) ->  | H38: =IF('[3]Tasa de Falla'!IW38=0,"",'[3]Tasa de Falla'!IW38) ->  | I38: =IF('[3]Tasa de Falla'!IX38=0,"",'[3]Tasa de Falla'!IX38) -> 2 | J38: =IF('[3]Tasa de Falla'!IY38=0,"",'[3]Tasa de Falla'!IY38) ->  | K38: =IF('[3]Tasa de Falla'!IZ38=0,"",'[3]Tasa de Falla'!IZ38) ->  | L38: =IF('[3]Tasa de Falla'!JA38=0,"",'[3]Tasa de Falla'!JA38) -> 1 | M38: =IF('[3]Tasa de Falla'!JB38=0,"",'[3]Tasa de Falla'!JB38) ->  | N38: =IF('[3]Tasa de Falla'!JC38=0,"",'[3]Tasa de Falla'!JC38) ->  | O38: =IF('[3]Tasa de Falla'!JD38=0,"",'[3]Tasa de Falla'!JD38) ->  | P38: =IF('[3]Tasa de Falla'!JE38=0,"",'[3]Tasa de Falla'!JE38) ->  | Q38: =IF('[3]Tasa de Falla'!JF38=0,"",'[3]Tasa de Falla'!JF38) ->  | R38: =IF('[3]Tasa de Falla'!JG38=0,"",'[3]Tasa de Falla'!JG38) -> 
C39: ='[3]Tasa de Falla'!C39 -> 23 | D39: ='[3]Tasa de Falla'!D39 -> PALPALA - JUJUY SUR | E39: ='[3]Tasa de Falla'!E39 -> 132 | F39: ='[3]Tasa de Falla'!F39 -> 14 | G39: =IF('[3]Tasa de Falla'!IV39=0,"",'[3]Tasa de Falla'!IV39) -> XXXX | H39: =IF('[3]Tasa de Falla'!IW39=0,"",'[3]Tasa de Falla'!IW39) -> XXXX | I39: =IF('[3]Tasa de Falla'!IX39=0,"",'[3]Tasa de Falla'!IX39) -> XXXX | J39: =IF('[3]Tasa de Falla'!IY39=0,"",'[3]Tasa de Falla'!IY39) -> XXXX | K39: =IF('[3]Tasa de Falla'!IZ39=0,"",'[3]Tasa de Falla'!IZ39) -> XXXX | L39: =IF('[3]Tasa de Falla'!JA39=0,"",'[3]Tasa de Falla'!JA39) -> XXXX | M39: =IF('[3]Tasa de Falla'!JB39=0,"",'[3]Tasa de Falla'!JB39) -> XXXX | N39: =IF('[3]Tasa de Falla'!JC39=0,"",'[3]Tasa de Falla'!JC39) -> XXXX | O39: =IF('[3]Tasa de Falla'!JD39=0,"",'[3]Tasa de Falla'!JD39) -> XXXX | P39: =IF('[3]Tasa de Falla'!JE39=0,"",'[3]Tasa de Falla'!JE39) -> XXXX | Q39: =IF('[3]Tasa de Falla'!JF39=0,"",'[3]Tasa de Falla'!JF39) -> XXXX | R39: =IF('[3]Tasa de Falla'!JG39=0,"",'[3]Tasa de Falla'!JG39) -> XXXX
C40: ='[3]Tasa de Falla'!C40 -> 24 | D40: ='[3]Tasa de Falla'!D40 -> ORAN - PICHANAL | E40: ='[3]Tasa de Falla'!E40 -> 132 | F40: ='[3]Tasa de Falla'!F40 -> 17 | G40: =IF('[3]Tasa de Falla'!IV40=0,"",'[3]Tasa de Falla'!IV40) -> XXXX | H40: =IF('[3]Tasa de Falla'!IW40=0,"",'[3]Tasa de Falla'!IW40) -> XXXX | I40: =IF('[3]Tasa de Falla'!IX40=0,"",'[3]Tasa de Falla'!IX40) -> XXXX | J40: =IF('[3]Tasa de Falla'!IY40=0,"",'[3]Tasa de Falla'!IY40) -> XXXX | K40: =IF('[3]Tasa de Falla'!IZ40=0,"",'[3]Tasa de Falla'!IZ40) -> XXXX | L40: =IF('[3]Tasa de Falla'!JA40=0,"",'[3]Tasa de Falla'!JA40) -> XXXX | M40: =IF('[3]Tasa de Falla'!JB40=0,"",'[3]Tasa de Falla'!JB40) -> XXXX | N40: =IF('[3]Tasa de Falla'!JC40=0,"",'[3]Tasa de Falla'!JC40) -> XXXX | O40: =IF('[3]Tasa de Falla'!JD40=0,"",'[3]Tasa de Falla'!JD40) -> XXXX | P40: =IF('[3]Tasa de Falla'!JE40=0,"",'[3]Tasa de Falla'!JE40) -> XXXX | Q40: =IF('[3]Tasa de Falla'!JF40=0,"",'[3]Tasa de Falla'!JF40) -> XXXX | R40: =IF('[3]Tasa de Falla'!JG40=0,"",'[3]Tasa de Falla'!JG40) -> XXXX
C41: ='[3]Tasa de Falla'!C41 -> 25 | D41: ='[3]Tasa de Falla'!D41 -> PICHANAL - TARTAGAL | E41: ='[3]Tasa de Falla'!E41 -> 132 | F41: ='[3]Tasa de Falla'!F41 -> 105 | G41: =IF('[3]Tasa de Falla'!IV41=0,"",'[3]Tasa de Falla'!IV41) -> XXXX | H41: =IF('[3]Tasa de Falla'!IW41=0,"",'[3]Tasa de Falla'!IW41) -> XXXX | I41: =IF('[3]Tasa de Falla'!IX41=0,"",'[3]Tasa de Falla'!IX41) -> XXXX | J41: =IF('[3]Tasa de Falla'!IY41=0,"",'[3]Tasa de Falla'!IY41) -> XXXX | K41: =IF('[3]Tasa de Falla'!IZ41=0,"",'[3]Tasa de Falla'!IZ41) -> XXXX | L41: =IF('[3]Tasa de Falla'!JA41=0,"",'[3]Tasa de Falla'!JA41) -> XXXX | M41: =IF('[3]Tasa de Falla'!JB41=0,"",'[3]Tasa de Falla'!JB41) -> XXXX | N41: =IF('[3]Tasa de Falla'!JC41=0,"",'[3]Tasa de Falla'!JC41) -> XXXX | O41: =IF('[3]Tasa de Falla'!JD41=0,"",'[3]Tasa de Falla'!JD41) -> XXXX | P41: =IF('[3]Tasa de Falla'!JE41=0,"",'[3]Tasa de Falla'!JE41) -> XXXX | Q41: =IF('[3]Tasa de Falla'!JF41=0,"",'[3]Tasa de Falla'!JF41) -> XXXX | R41: =IF('[3]Tasa de Falla'!JG41=0,"",'[3]Tasa de Falla'!JG41) -> XXXX
C42: ='[3]Tasa de Falla'!C42 -> 26 | D42: ='[3]Tasa de Falla'!D42 -> C.H. RIO HONDO - LA BANDA | E42: ='[3]Tasa de Falla'!E42 -> 132 | F42: ='[3]Tasa de Falla'!F42 -> 76.5 | G42: =IF('[3]Tasa de Falla'!IV42=0,"",'[3]Tasa de Falla'!IV42) -> 1 | H42: =IF('[3]Tasa de Falla'!IW42=0,"",'[3]Tasa de Falla'!IW42) ->  | I42: =IF('[3]Tasa de Falla'!IX42=0,"",'[3]Tasa de Falla'!IX42) ->  | J42: =IF('[3]Tasa de Falla'!IY42=0,"",'[3]Tasa de Falla'!IY42) ->  | K42: =IF('[3]Tasa de Falla'!IZ42=0,"",'[3]Tasa de Falla'!IZ42) ->  | L42: =IF('[3]Tasa de Falla'!JA42=0,"",'[3]Tasa de Falla'!JA42) ->  | M42: =IF('[3]Tasa de Falla'!JB42=0,"",'[3]Tasa de Falla'!JB42) ->  | N42: =IF('[3]Tasa de Falla'!JC42=0,"",'[3]Tasa de Falla'!JC42) ->  | O42: =IF('[3]Tasa de Falla'!JD42=0,"",'[3]Tasa de Falla'!JD42) -> 1 | P42: =IF('[3]Tasa de Falla'!JE42=0,"",'[3]Tasa de Falla'!JE42) ->  | Q42: =IF('[3]Tasa de Falla'!JF42=0,"",'[3]Tasa de Falla'!JF42) ->  | R42: =IF('[3]Tasa de Falla'!JG42=0,"",'[3]Tasa de Falla'!JG42) -> 
C43: ='[3]Tasa de Falla'!C43 -> 27 | D43: ='[3]Tasa de Falla'!D43 -> LA RIOJA - RECREO 2 | E43: ='[3]Tasa de Falla'!E43 -> 132 | F43: ='[3]Tasa de Falla'!F43 -> 220 | G43: =IF('[3]Tasa de Falla'!IV43=0,"",'[3]Tasa de Falla'!IV43) -> XXXX | H43: =IF('[3]Tasa de Falla'!IW43=0,"",'[3]Tasa de Falla'!IW43) -> XXXX | I43: =IF('[3]Tasa de Falla'!IX43=0,"",'[3]Tasa de Falla'!IX43) -> XXXX | J43: =IF('[3]Tasa de Falla'!IY43=0,"",'[3]Tasa de Falla'!IY43) -> XXXX | K43: =IF('[3]Tasa de Falla'!IZ43=0,"",'[3]Tasa de Falla'!IZ43) -> XXXX | L43: =IF('[3]Tasa de Falla'!JA43=0,"",'[3]Tasa de Falla'!JA43) -> XXXX | M43: =IF('[3]Tasa de Falla'!JB43=0,"",'[3]Tasa de Falla'!JB43) -> XXXX | N43: =IF('[3]Tasa de Falla'!JC43=0,"",'[3]Tasa de Falla'!JC43) -> XXXX | O43: =IF('[3]Tasa de Falla'!JD43=0,"",'[3]Tasa de Falla'!JD43) -> XXXX | P43: =IF('[3]Tasa de Falla'!JE43=0,"",'[3]Tasa de Falla'!JE43) -> XXXX | Q43: =IF('[3]Tasa de Falla'!JF43=0,"",'[3]Tasa de Falla'!JF43) -> XXXX | R43: =IF('[3]Tasa de Falla'!JG43=0,"",'[3]Tasa de Falla'!JG43) -> XXXX
C44: ='[3]Tasa de Falla'!C44 -> 28 | D44: ='[3]Tasa de Falla'!D44 -> CAMPO SANTO - SALTA SUR | E44: ='[3]Tasa de Falla'!E44 -> 132 | F44: ='[3]Tasa de Falla'!F44 -> 40.92 | G44: =IF('[3]Tasa de Falla'!IV44=0,"",'[3]Tasa de Falla'!IV44) -> XXXX | H44: =IF('[3]Tasa de Falla'!IW44=0,"",'[3]Tasa de Falla'!IW44) -> XXXX | I44: =IF('[3]Tasa de Falla'!IX44=0,"",'[3]Tasa de Falla'!IX44) -> XXXX | J44: =IF('[3]Tasa de Falla'!IY44=0,"",'[3]Tasa de Falla'!IY44) -> XXXX | K44: =IF('[3]Tasa de Falla'!IZ44=0,"",'[3]Tasa de Falla'!IZ44) -> XXXX | L44: =IF('[3]Tasa de Falla'!JA44=0,"",'[3]Tasa de Falla'!JA44) -> XXXX | M44: =IF('[3]Tasa de Falla'!JB44=0,"",'[3]Tasa de Falla'!JB44) -> XXXX | N44: =IF('[3]Tasa de Falla'!JC44=0,"",'[3]Tasa de Falla'!JC44) -> XXXX | O44: =IF('[3]Tasa de Falla'!JD44=0,"",'[3]Tasa de Falla'!JD44) -> XXXX | P44: =IF('[3]Tasa de Falla'!JE44=0,"",'[3]Tasa de Falla'!JE44) -> XXXX | Q44: =IF('[3]Tasa de Falla'!JF44=0,"",'[3]Tasa de Falla'!JF44) -> XXXX | R44: =IF('[3]Tasa de Falla'!JG44=0,"",'[3]Tasa de Falla'!JG44) -> XXXX
C45: ='[3]Tasa de Falla'!C45 -> 29 | D45: ='[3]Tasa de Falla'!D45 -> PALPALA - SAN JUANCITO | E45: ='[3]Tasa de Falla'!E45 -> 132 | F45: ='[3]Tasa de Falla'!F45 -> 23.9 | G45: =IF('[3]Tasa de Falla'!IV45=0,"",'[3]Tasa de Falla'!IV45) ->  | H45: =IF('[3]Tasa de Falla'!IW45=0,"",'[3]Tasa de Falla'!IW45) -> 2 | I45: =IF('[3]Tasa de Falla'!IX45=0,"",'[3]Tasa de Falla'!IX45) -> 2 | J45: =IF('[3]Tasa de Falla'!IY45=0,"",'[3]Tasa de Falla'!IY45) ->  | K45: =IF('[3]Tasa de Falla'!IZ45=0,"",'[3]Tasa de Falla'!IZ45) ->  | L45: =IF('[3]Tasa de Falla'!JA45=0,"",'[3]Tasa de Falla'!JA45) ->  | M45: =IF('[3]Tasa de Falla'!JB45=0,"",'[3]Tasa de Falla'!JB45) ->  | N45: =IF('[3]Tasa de Falla'!JC45=0,"",'[3]Tasa de Falla'!JC45) ->  | O45: =IF('[3]Tasa de Falla'!JD45=0,"",'[3]Tasa de Falla'!JD45) -> 2 | P45: =IF('[3]Tasa de Falla'!JE45=0,"",'[3]Tasa de Falla'!JE45) ->  | Q45: =IF('[3]Tasa de Falla'!JF45=0,"",'[3]Tasa de Falla'!JF45) ->  | R45: =IF('[3]Tasa de Falla'!JG45=0,"",'[3]Tasa de Falla'!JG45) -> 1
C46: ='[3]Tasa de Falla'!C46 -> 30 | D46: ='[3]Tasa de Falla'!D46 -> SAN JUANCITO - SAN PEDRO JUJUY | E46: ='[3]Tasa de Falla'!E46 -> 132 | F46: ='[3]Tasa de Falla'!F46 -> 27 | G46: =IF('[3]Tasa de Falla'!IV46=0,"",'[3]Tasa de Falla'!IV46) ->  | H46: =IF('[3]Tasa de Falla'!IW46=0,"",'[3]Tasa de Falla'!IW46) ->  | I46: =IF('[3]Tasa de Falla'!IX46=0,"",'[3]Tasa de Falla'!IX46) ->  | J46: =IF('[3]Tasa de Falla'!IY46=0,"",'[3]Tasa de Falla'!IY46) ->  | K46: =IF('[3]Tasa de Falla'!IZ46=0,"",'[3]Tasa de Falla'!IZ46) ->  | L46: =IF('[3]Tasa de Falla'!JA46=0,"",'[3]Tasa de Falla'!JA46) ->  | M46: =IF('[3]Tasa de Falla'!JB46=0,"",'[3]Tasa de Falla'!JB46) ->  | N46: =IF('[3]Tasa de Falla'!JC46=0,"",'[3]Tasa de Falla'!JC46) ->  | O46: =IF('[3]Tasa de Falla'!JD46=0,"",'[3]Tasa de Falla'!JD46) ->  | P46: =IF('[3]Tasa de Falla'!JE46=0,"",'[3]Tasa de Falla'!JE46) ->  | Q46: =IF('[3]Tasa de Falla'!JF46=0,"",'[3]Tasa de Falla'!JF46) ->  | R46: =IF('[3]Tasa de Falla'!JG46=0,"",'[3]Tasa de Falla'!JG46) -> 
C47: ='[3]Tasa de Falla'!C47 -> 31 | D47: ='[3]Tasa de Falla'!D47 -> SAN MARTIN - CATAMARCA | E47: ='[3]Tasa de Falla'!E47 -> 132 | F47: ='[3]Tasa de Falla'!F47 -> 88 | G47: =IF('[3]Tasa de Falla'!IV47=0,"",'[3]Tasa de Falla'!IV47) -> XXXX | H47: =IF('[3]Tasa de Falla'!IW47=0,"",'[3]Tasa de Falla'!IW47) -> XXXX | I47: =IF('[3]Tasa de Falla'!IX47=0,"",'[3]Tasa de Falla'!IX47) -> XXXX | J47: =IF('[3]Tasa de Falla'!IY47=0,"",'[3]Tasa de Falla'!IY47) -> XXXX | K47: =IF('[3]Tasa de Falla'!IZ47=0,"",'[3]Tasa de Falla'!IZ47) -> XXXX | L47: =IF('[3]Tasa de Falla'!JA47=0,"",'[3]Tasa de Falla'!JA47) -> XXXX | M47: =IF('[3]Tasa de Falla'!JB47=0,"",'[3]Tasa de Falla'!JB47) -> XXXX | N47: =IF('[3]Tasa de Falla'!JC47=0,"",'[3]Tasa de Falla'!JC47) -> XXXX | O47: =IF('[3]Tasa de Falla'!JD47=0,"",'[3]Tasa de Falla'!JD47) -> XXXX | P47: =IF('[3]Tasa de Falla'!JE47=0,"",'[3]Tasa de Falla'!JE47) -> XXXX | Q47: =IF('[3]Tasa de Falla'!JF47=0,"",'[3]Tasa de Falla'!JF47) -> XXXX | R47: =IF('[3]Tasa de Falla'!JG47=0,"",'[3]Tasa de Falla'!JG47) -> XXXX
C48: ='[3]Tasa de Falla'!C48 -> 32 | D48: ='[3]Tasa de Falla'!D48 -> SAN MARTIN - RECREO | E48: ='[3]Tasa de Falla'!E48 -> 132 | F48: ='[3]Tasa de Falla'!F48 -> 115 | G48: =IF('[3]Tasa de Falla'!IV48=0,"",'[3]Tasa de Falla'!IV48) -> XXXX | H48: =IF('[3]Tasa de Falla'!IW48=0,"",'[3]Tasa de Falla'!IW48) -> XXXX | I48: =IF('[3]Tasa de Falla'!IX48=0,"",'[3]Tasa de Falla'!IX48) -> XXXX | J48: =IF('[3]Tasa de Falla'!IY48=0,"",'[3]Tasa de Falla'!IY48) -> XXXX | K48: =IF('[3]Tasa de Falla'!IZ48=0,"",'[3]Tasa de Falla'!IZ48) -> XXXX | L48: =IF('[3]Tasa de Falla'!JA48=0,"",'[3]Tasa de Falla'!JA48) -> XXXX | M48: =IF('[3]Tasa de Falla'!JB48=0,"",'[3]Tasa de Falla'!JB48) -> XXXX | N48: =IF('[3]Tasa de Falla'!JC48=0,"",'[3]Tasa de Falla'!JC48) -> XXXX | O48: =IF('[3]Tasa de Falla'!JD48=0,"",'[3]Tasa de Falla'!JD48) -> XXXX | P48: =IF('[3]Tasa de Falla'!JE48=0,"",'[3]Tasa de Falla'!JE48) -> XXXX | Q48: =IF('[3]Tasa de Falla'!JF48=0,"",'[3]Tasa de Falla'!JF48) -> XXXX | R48: =IF('[3]Tasa de Falla'!JG48=0,"",'[3]Tasa de Falla'!JG48) -> XXXX
C49: ='[3]Tasa de Falla'!C49 -> 33 | D49: ='[3]Tasa de Falla'!D49 -> SAN MARTIN C. - LA RIOJA | E49: ='[3]Tasa de Falla'!E49 -> 132 | F49: ='[3]Tasa de Falla'!F49 -> 105 | G49: =IF('[3]Tasa de Falla'!IV49=0,"",'[3]Tasa de Falla'!IV49) -> XXXX | H49: =IF('[3]Tasa de Falla'!IW49=0,"",'[3]Tasa de Falla'!IW49) -> XXXX | I49: =IF('[3]Tasa de Falla'!IX49=0,"",'[3]Tasa de Falla'!IX49) -> XXXX | J49: =IF('[3]Tasa de Falla'!IY49=0,"",'[3]Tasa de Falla'!IY49) -> XXXX | K49: =IF('[3]Tasa de Falla'!IZ49=0,"",'[3]Tasa de Falla'!IZ49) -> XXXX | L49: =IF('[3]Tasa de Falla'!JA49=0,"",'[3]Tasa de Falla'!JA49) -> XXXX | M49: =IF('[3]Tasa de Falla'!JB49=0,"",'[3]Tasa de Falla'!JB49) -> XXXX | N49: =IF('[3]Tasa de Falla'!JC49=0,"",'[3]Tasa de Falla'!JC49) -> XXXX | O49: =IF('[3]Tasa de Falla'!JD49=0,"",'[3]Tasa de Falla'!JD49) -> XXXX | P49: =IF('[3]Tasa de Falla'!JE49=0,"",'[3]Tasa de Falla'!JE49) -> XXXX | Q49: =IF('[3]Tasa de Falla'!JF49=0,"",'[3]Tasa de Falla'!JF49) -> XXXX | R49: =IF('[3]Tasa de Falla'!JG49=0,"",'[3]Tasa de Falla'!JG49) -> XXXX
C50: ='[3]Tasa de Falla'!C50 -> 34 | D50: ='[3]Tasa de Falla'!D50 -> SAN PEDRO JUJUY - LIBERTADOR NOA. | E50: ='[3]Tasa de Falla'!E50 -> 132 | F50: ='[3]Tasa de Falla'!F50 -> 49 | G50: =IF('[3]Tasa de Falla'!IV50=0,"",'[3]Tasa de Falla'!IV50) ->  | H50: =IF('[3]Tasa de Falla'!IW50=0,"",'[3]Tasa de Falla'!IW50) ->  | I50: =IF('[3]Tasa de Falla'!IX50=0,"",'[3]Tasa de Falla'!IX50) ->  | J50: =IF('[3]Tasa de Falla'!IY50=0,"",'[3]Tasa de Falla'!IY50) ->  | K50: =IF('[3]Tasa de Falla'!IZ50=0,"",'[3]Tasa de Falla'!IZ50) ->  | L50: =IF('[3]Tasa de Falla'!JA50=0,"",'[3]Tasa de Falla'!JA50) ->  | M50: =IF('[3]Tasa de Falla'!JB50=0,"",'[3]Tasa de Falla'!JB50) ->  | N50: =IF('[3]Tasa de Falla'!JC50=0,"",'[3]Tasa de Falla'!JC50) ->  | O50: =IF('[3]Tasa de Falla'!JD50=0,"",'[3]Tasa de Falla'!JD50) -> 1 | P50: =IF('[3]Tasa de Falla'!JE50=0,"",'[3]Tasa de Falla'!JE50) ->  | Q50: =IF('[3]Tasa de Falla'!JF50=0,"",'[3]Tasa de Falla'!JF50) ->  | R50: =IF('[3]Tasa de Falla'!JG50=0,"",'[3]Tasa de Falla'!JG50) -> 
C51: ='[3]Tasa de Falla'!C51 -> 35 | D51: ='[3]Tasa de Falla'!D51 -> TUCUMAN NORTE - EL BRACHO | E51: ='[3]Tasa de Falla'!E51 -> 132 | F51: ='[3]Tasa de Falla'!F51 -> 31.5 | G51: =IF('[3]Tasa de Falla'!IV51=0,"",'[3]Tasa de Falla'!IV51) ->  | H51: =IF('[3]Tasa de Falla'!IW51=0,"",'[3]Tasa de Falla'!IW51) ->  | I51: =IF('[3]Tasa de Falla'!IX51=0,"",'[3]Tasa de Falla'!IX51) ->  | J51: =IF('[3]Tasa de Falla'!IY51=0,"",'[3]Tasa de Falla'!IY51) ->  | K51: =IF('[3]Tasa de Falla'!IZ51=0,"",'[3]Tasa de Falla'!IZ51) ->  | L51: =IF('[3]Tasa de Falla'!JA51=0,"",'[3]Tasa de Falla'!JA51) -> 1 | M51: =IF('[3]Tasa de Falla'!JB51=0,"",'[3]Tasa de Falla'!JB51) ->  | N51: =IF('[3]Tasa de Falla'!JC51=0,"",'[3]Tasa de Falla'!JC51) ->  | O51: =IF('[3]Tasa de Falla'!JD51=0,"",'[3]Tasa de Falla'!JD51) ->  | P51: =IF('[3]Tasa de Falla'!JE51=0,"",'[3]Tasa de Falla'!JE51) ->  | Q51: =IF('[3]Tasa de Falla'!JF51=0,"",'[3]Tasa de Falla'!JF51) ->  | R51: =IF('[3]Tasa de Falla'!JG51=0,"",'[3]Tasa de Falla'!JG51) -> 
C52: ='[3]Tasa de Falla'!C52 -> 36 | D52: ='[3]Tasa de Falla'!D52 -> C.H. EL CADILLAL - TUCUMAN NORTE | E52: ='[3]Tasa de Falla'!E52 -> 132 | F52: ='[3]Tasa de Falla'!F52 -> 21.8 | G52: =IF('[3]Tasa de Falla'!IV52=0,"",'[3]Tasa de Falla'!IV52) ->  | H52: =IF('[3]Tasa de Falla'!IW52=0,"",'[3]Tasa de Falla'!IW52) -> 1 | I52: =IF('[3]Tasa de Falla'!IX52=0,"",'[3]Tasa de Falla'!IX52) ->  | J52: =IF('[3]Tasa de Falla'!IY52=0,"",'[3]Tasa de Falla'!IY52) ->  | K52: =IF('[3]Tasa de Falla'!IZ52=0,"",'[3]Tasa de Falla'!IZ52) ->  | L52: =IF('[3]Tasa de Falla'!JA52=0,"",'[3]Tasa de Falla'!JA52) ->  | M52: =IF('[3]Tasa de Falla'!JB52=0,"",'[3]Tasa de Falla'!JB52) ->  | N52: =IF('[3]Tasa de Falla'!JC52=0,"",'[3]Tasa de Falla'!JC52) ->  | O52: =IF('[3]Tasa de Falla'!JD52=0,"",'[3]Tasa de Falla'!JD52) ->  | P52: =IF('[3]Tasa de Falla'!JE52=0,"",'[3]Tasa de Falla'!JE52) ->  | Q52: =IF('[3]Tasa de Falla'!JF52=0,"",'[3]Tasa de Falla'!JF52) ->  | R52: =IF('[3]Tasa de Falla'!JG52=0,"",'[3]Tasa de Falla'!JG52) -> 
C53: ='[3]Tasa de Falla'!C53 -> 37 | D53: ='[3]Tasa de Falla'!D53 -> TUCUMAN NORTE - CABRA CORRAL | E53: ='[3]Tasa de Falla'!E53 -> 132 | F53: ='[3]Tasa de Falla'!F53 -> 190 | G53: =IF('[3]Tasa de Falla'!IV53=0,"",'[3]Tasa de Falla'!IV53) -> XXXX | H53: =IF('[3]Tasa de Falla'!IW53=0,"",'[3]Tasa de Falla'!IW53) -> XXXX | I53: =IF('[3]Tasa de Falla'!IX53=0,"",'[3]Tasa de Falla'!IX53) -> XXXX | J53: =IF('[3]Tasa de Falla'!IY53=0,"",'[3]Tasa de Falla'!IY53) -> XXXX | K53: =IF('[3]Tasa de Falla'!IZ53=0,"",'[3]Tasa de Falla'!IZ53) -> XXXX | L53: =IF('[3]Tasa de Falla'!JA53=0,"",'[3]Tasa de Falla'!JA53) -> XXXX | M53: =IF('[3]Tasa de Falla'!JB53=0,"",'[3]Tasa de Falla'!JB53) -> XXXX | N53: =IF('[3]Tasa de Falla'!JC53=0,"",'[3]Tasa de Falla'!JC53) -> XXXX | O53: =IF('[3]Tasa de Falla'!JD53=0,"",'[3]Tasa de Falla'!JD53) -> XXXX | P53: =IF('[3]Tasa de Falla'!JE53=0,"",'[3]Tasa de Falla'!JE53) -> XXXX | Q53: =IF('[3]Tasa de Falla'!JF53=0,"",'[3]Tasa de Falla'!JF53) -> XXXX | R53: =IF('[3]Tasa de Falla'!JG53=0,"",'[3]Tasa de Falla'!JG53) -> XXXX
C54: ='[3]Tasa de Falla'!C54 -> 38 | D54: ='[3]Tasa de Falla'!D54 -> METAN - TUCUMAN NORTE | E54: ='[3]Tasa de Falla'!E54 -> 132 | F54: ='[3]Tasa de Falla'!F54 -> 155.6 | G54: =IF('[3]Tasa de Falla'!IV54=0,"",'[3]Tasa de Falla'!IV54) ->  | H54: =IF('[3]Tasa de Falla'!IW54=0,"",'[3]Tasa de Falla'!IW54) ->  | I54: =IF('[3]Tasa de Falla'!IX54=0,"",'[3]Tasa de Falla'!IX54) ->  | J54: =IF('[3]Tasa de Falla'!IY54=0,"",'[3]Tasa de Falla'!IY54) ->  | K54: =IF('[3]Tasa de Falla'!IZ54=0,"",'[3]Tasa de Falla'!IZ54) ->  | L54: =IF('[3]Tasa de Falla'!JA54=0,"",'[3]Tasa de Falla'!JA54) ->  | M54: =IF('[3]Tasa de Falla'!JB54=0,"",'[3]Tasa de Falla'!JB54) ->  | N54: =IF('[3]Tasa de Falla'!JC54=0,"",'[3]Tasa de Falla'!JC54) ->  | O54: =IF('[3]Tasa de Falla'!JD54=0,"",'[3]Tasa de Falla'!JD54) ->  | P54: =IF('[3]Tasa de Falla'!JE54=0,"",'[3]Tasa de Falla'!JE54) ->  | Q54: =IF('[3]Tasa de Falla'!JF54=0,"",'[3]Tasa de Falla'!JF54) -> 1 | R54: =IF('[3]Tasa de Falla'!JG54=0,"",'[3]Tasa de Falla'!JG54) -> 
C55: ='[3]Tasa de Falla'!C55 -> 39 | D55: ='[3]Tasa de Falla'!D55 -> SARMIENTO - TUCUMAN NORTE (O.F.) | E55: ='[3]Tasa de Falla'!E55 -> 132 | F55: ='[3]Tasa de Falla'!F55 -> 3.3 | G55: =IF('[3]Tasa de Falla'!IV55=0,"",'[3]Tasa de Falla'!IV55) ->  | H55: =IF('[3]Tasa de Falla'!IW55=0,"",'[3]Tasa de Falla'!IW55) ->  | I55: =IF('[3]Tasa de Falla'!IX55=0,"",'[3]Tasa de Falla'!IX55) ->  | J55: =IF('[3]Tasa de Falla'!IY55=0,"",'[3]Tasa de Falla'!IY55) ->  | K55: =IF('[3]Tasa de Falla'!IZ55=0,"",'[3]Tasa de Falla'!IZ55) ->  | L55: =IF('[3]Tasa de Falla'!JA55=0,"",'[3]Tasa de Falla'!JA55) ->  | M55: =IF('[3]Tasa de Falla'!JB55=0,"",'[3]Tasa de Falla'!JB55) ->  | N55: =IF('[3]Tasa de Falla'!JC55=0,"",'[3]Tasa de Falla'!JC55) ->  | O55: =IF('[3]Tasa de Falla'!JD55=0,"",'[3]Tasa de Falla'!JD55) ->  | P55: =IF('[3]Tasa de Falla'!JE55=0,"",'[3]Tasa de Falla'!JE55) ->  | Q55: =IF('[3]Tasa de Falla'!JF55=0,"",'[3]Tasa de Falla'!JF55) ->  | R55: =IF('[3]Tasa de Falla'!JG55=0,"",'[3]Tasa de Falla'!JG55) -> 
C56: ='[3]Tasa de Falla'!C56 -> 40 | D56: ='[3]Tasa de Falla'!D56 -> TUCUMAN OESTE - TUCUMAN NORTE | E56: ='[3]Tasa de Falla'!E56 -> 132 | F56: ='[3]Tasa de Falla'!F56 -> 7 | G56: =IF('[3]Tasa de Falla'!IV56=0,"",'[3]Tasa de Falla'!IV56) ->  | H56: =IF('[3]Tasa de Falla'!IW56=0,"",'[3]Tasa de Falla'!IW56) ->  | I56: =IF('[3]Tasa de Falla'!IX56=0,"",'[3]Tasa de Falla'!IX56) ->  | J56: =IF('[3]Tasa de Falla'!IY56=0,"",'[3]Tasa de Falla'!IY56) ->  | K56: =IF('[3]Tasa de Falla'!IZ56=0,"",'[3]Tasa de Falla'!IZ56) -> 1 | L56: =IF('[3]Tasa de Falla'!JA56=0,"",'[3]Tasa de Falla'!JA56) -> 1 | M56: =IF('[3]Tasa de Falla'!JB56=0,"",'[3]Tasa de Falla'!JB56) ->  | N56: =IF('[3]Tasa de Falla'!JC56=0,"",'[3]Tasa de Falla'!JC56) ->  | O56: =IF('[3]Tasa de Falla'!JD56=0,"",'[3]Tasa de Falla'!JD56) ->  | P56: =IF('[3]Tasa de Falla'!JE56=0,"",'[3]Tasa de Falla'!JE56) -> 1 | Q56: =IF('[3]Tasa de Falla'!JF56=0,"",'[3]Tasa de Falla'!JF56) ->  | R56: =IF('[3]Tasa de Falla'!JG56=0,"",'[3]Tasa de Falla'!JG56) -> 
C57: ='[3]Tasa de Falla'!C57 -> 41 | D57: ='[3]Tasa de Falla'!D57 -> AGUILARES - VILLA QUINTEROS | E57: ='[3]Tasa de Falla'!E57 -> 132 | F57: ='[3]Tasa de Falla'!F57 -> 21 | G57: =IF('[3]Tasa de Falla'!IV57=0,"",'[3]Tasa de Falla'!IV57) ->  | H57: =IF('[3]Tasa de Falla'!IW57=0,"",'[3]Tasa de Falla'!IW57) -> 1 | I57: =IF('[3]Tasa de Falla'!IX57=0,"",'[3]Tasa de Falla'!IX57) ->  | J57: =IF('[3]Tasa de Falla'!IY57=0,"",'[3]Tasa de Falla'!IY57) ->  | K57: =IF('[3]Tasa de Falla'!IZ57=0,"",'[3]Tasa de Falla'!IZ57) ->  | L57: =IF('[3]Tasa de Falla'!JA57=0,"",'[3]Tasa de Falla'!JA57) ->  | M57: =IF('[3]Tasa de Falla'!JB57=0,"",'[3]Tasa de Falla'!JB57) ->  | N57: =IF('[3]Tasa de Falla'!JC57=0,"",'[3]Tasa de Falla'!JC57) ->  | O57: =IF('[3]Tasa de Falla'!JD57=0,"",'[3]Tasa de Falla'!JD57) ->  | P57: =IF('[3]Tasa de Falla'!JE57=0,"",'[3]Tasa de Falla'!JE57) ->  | Q57: =IF('[3]Tasa de Falla'!JF57=0,"",'[3]Tasa de Falla'!JF57) -> 1 | R57: =IF('[3]Tasa de Falla'!JG57=0,"",'[3]Tasa de Falla'!JG57) -> 2
C58: ='[3]Tasa de Falla'!C58 -> 42 | D58: ='[3]Tasa de Falla'!D58 -> C.H. PUEBLO VIEJO - VILLA QUINTEROS | E58: ='[3]Tasa de Falla'!E58 -> 132 | F58: ='[3]Tasa de Falla'!F58 -> 24.5 | G58: =IF('[3]Tasa de Falla'!IV58=0,"",'[3]Tasa de Falla'!IV58) -> 1 | H58: =IF('[3]Tasa de Falla'!IW58=0,"",'[3]Tasa de Falla'!IW58) ->  | I58: =IF('[3]Tasa de Falla'!IX58=0,"",'[3]Tasa de Falla'!IX58) ->  | J58: =IF('[3]Tasa de Falla'!IY58=0,"",'[3]Tasa de Falla'!IY58) ->  | K58: =IF('[3]Tasa de Falla'!IZ58=0,"",'[3]Tasa de Falla'!IZ58) ->  | L58: =IF('[3]Tasa de Falla'!JA58=0,"",'[3]Tasa de Falla'!JA58) ->  | M58: =IF('[3]Tasa de Falla'!JB58=0,"",'[3]Tasa de Falla'!JB58) ->  | N58: =IF('[3]Tasa de Falla'!JC58=0,"",'[3]Tasa de Falla'!JC58) ->  | O58: =IF('[3]Tasa de Falla'!JD58=0,"",'[3]Tasa de Falla'!JD58) ->  | P58: =IF('[3]Tasa de Falla'!JE58=0,"",'[3]Tasa de Falla'!JE58) -> 1 | Q58: =IF('[3]Tasa de Falla'!JF58=0,"",'[3]Tasa de Falla'!JF58) ->  | R58: =IF('[3]Tasa de Falla'!JG58=0,"",'[3]Tasa de Falla'!JG58) -> 1
C59: ='[3]Tasa de Falla'!C59 -> 43 | D59: ='[3]Tasa de Falla'!D59 -> C.H. RIO HONDO - VILLA QUINTEROS | E59: ='[3]Tasa de Falla'!E59 -> 132 | F59: ='[3]Tasa de Falla'!F59 -> 75.4 | G59: =IF('[3]Tasa de Falla'!IV59=0,"",'[3]Tasa de Falla'!IV59) ->  | H59: =IF('[3]Tasa de Falla'!IW59=0,"",'[3]Tasa de Falla'!IW59) ->  | I59: =IF('[3]Tasa de Falla'!IX59=0,"",'[3]Tasa de Falla'!IX59) ->  | J59: =IF('[3]Tasa de Falla'!IY59=0,"",'[3]Tasa de Falla'!IY59) ->  | K59: =IF('[3]Tasa de Falla'!IZ59=0,"",'[3]Tasa de Falla'!IZ59) ->  | L59: =IF('[3]Tasa de Falla'!JA59=0,"",'[3]Tasa de Falla'!JA59) ->  | M59: =IF('[3]Tasa de Falla'!JB59=0,"",'[3]Tasa de Falla'!JB59) -> 1 | N59: =IF('[3]Tasa de Falla'!JC59=0,"",'[3]Tasa de Falla'!JC59) ->  | O59: =IF('[3]Tasa de Falla'!JD59=0,"",'[3]Tasa de Falla'!JD59) ->  | P59: =IF('[3]Tasa de Falla'!JE59=0,"",'[3]Tasa de Falla'!JE59) -> 1 | Q59: =IF('[3]Tasa de Falla'!JF59=0,"",'[3]Tasa de Falla'!JF59) ->  | R59: =IF('[3]Tasa de Falla'!JG59=0,"",'[3]Tasa de Falla'!JG59) -> 
C60: ='[3]Tasa de Falla'!C60 -> 44 | D60: ='[3]Tasa de Falla'!D60 -> C.H. RIO HONDO - SANTIAGO CENTRO | E60: ='[3]Tasa de Falla'!E60 -> 132 | F60: ='[3]Tasa de Falla'!F60 -> 79 | G60: =IF('[3]Tasa de Falla'!IV60=0,"",'[3]Tasa de Falla'!IV60) -> XXXX | H60: =IF('[3]Tasa de Falla'!IW60=0,"",'[3]Tasa de Falla'!IW60) -> XXXX | I60: =IF('[3]Tasa de Falla'!IX60=0,"",'[3]Tasa de Falla'!IX60) -> XXXX | J60: =IF('[3]Tasa de Falla'!IY60=0,"",'[3]Tasa de Falla'!IY60) -> XXXX | K60: =IF('[3]Tasa de Falla'!IZ60=0,"",'[3]Tasa de Falla'!IZ60) -> XXXX | L60: =IF('[3]Tasa de Falla'!JA60=0,"",'[3]Tasa de Falla'!JA60) -> XXXX | M60: =IF('[3]Tasa de Falla'!JB60=0,"",'[3]Tasa de Falla'!JB60) -> XXXX | N60: =IF('[3]Tasa de Falla'!JC60=0,"",'[3]Tasa de Falla'!JC60) -> XXXX | O60: =IF('[3]Tasa de Falla'!JD60=0,"",'[3]Tasa de Falla'!JD60) -> XXXX | P60: =IF('[3]Tasa de Falla'!JE60=0,"",'[3]Tasa de Falla'!JE60) -> XXXX | Q60: =IF('[3]Tasa de Falla'!JF60=0,"",'[3]Tasa de Falla'!JF60) -> XXXX | R60: =IF('[3]Tasa de Falla'!JG60=0,"",'[3]Tasa de Falla'!JG60) -> XXXX
C61: ='[3]Tasa de Falla'!C61 -> 45 | D61: ='[3]Tasa de Falla'!D61 -> C.H. RIO HONDO - EL BRACHO | E61: ='[3]Tasa de Falla'!E61 -> 132 | F61: ='[3]Tasa de Falla'!F61 -> 80.66 | G61: =IF('[3]Tasa de Falla'!IV61=0,"",'[3]Tasa de Falla'!IV61) -> XXXX | H61: =IF('[3]Tasa de Falla'!IW61=0,"",'[3]Tasa de Falla'!IW61) -> XXXX | I61: =IF('[3]Tasa de Falla'!IX61=0,"",'[3]Tasa de Falla'!IX61) -> XXXX | J61: =IF('[3]Tasa de Falla'!IY61=0,"",'[3]Tasa de Falla'!IY61) -> XXXX | K61: =IF('[3]Tasa de Falla'!IZ61=0,"",'[3]Tasa de Falla'!IZ61) -> XXXX | L61: =IF('[3]Tasa de Falla'!JA61=0,"",'[3]Tasa de Falla'!JA61) -> XXXX | M61: =IF('[3]Tasa de Falla'!JB61=0,"",'[3]Tasa de Falla'!JB61) -> XXXX | N61: =IF('[3]Tasa de Falla'!JC61=0,"",'[3]Tasa de Falla'!JC61) -> XXXX | O61: =IF('[3]Tasa de Falla'!JD61=0,"",'[3]Tasa de Falla'!JD61) -> XXXX | P61: =IF('[3]Tasa de Falla'!JE61=0,"",'[3]Tasa de Falla'!JE61) -> XXXX | Q61: =IF('[3]Tasa de Falla'!JF61=0,"",'[3]Tasa de Falla'!JF61) -> XXXX | R61: =IF('[3]Tasa de Falla'!JG61=0,"",'[3]Tasa de Falla'!JG61) -> XXXX
C62: ='[3]Tasa de Falla'!C62 -> 46 | D62: ='[3]Tasa de Falla'!D62 -> SALTA SUR - SALTA NORTE | E62: ='[3]Tasa de Falla'!E62 -> 132 | F62: ='[3]Tasa de Falla'!F62 -> 10 | G62: =IF('[3]Tasa de Falla'!IV62=0,"",'[3]Tasa de Falla'!IV62) ->  | H62: =IF('[3]Tasa de Falla'!IW62=0,"",'[3]Tasa de Falla'!IW62) ->  | I62: =IF('[3]Tasa de Falla'!IX62=0,"",'[3]Tasa de Falla'!IX62) ->  | J62: =IF('[3]Tasa de Falla'!IY62=0,"",'[3]Tasa de Falla'!IY62) ->  | K62: =IF('[3]Tasa de Falla'!IZ62=0,"",'[3]Tasa de Falla'!IZ62) ->  | L62: =IF('[3]Tasa de Falla'!JA62=0,"",'[3]Tasa de Falla'!JA62) ->  | M62: =IF('[3]Tasa de Falla'!JB62=0,"",'[3]Tasa de Falla'!JB62) ->  | N62: =IF('[3]Tasa de Falla'!JC62=0,"",'[3]Tasa de Falla'!JC62) ->  | O62: =IF('[3]Tasa de Falla'!JD62=0,"",'[3]Tasa de Falla'!JD62) ->  | P62: =IF('[3]Tasa de Falla'!JE62=0,"",'[3]Tasa de Falla'!JE62) ->  | Q62: =IF('[3]Tasa de Falla'!JF62=0,"",'[3]Tasa de Falla'!JF62) ->  | R62: =IF('[3]Tasa de Falla'!JG62=0,"",'[3]Tasa de Falla'!JG62) -> 
C63: ='[3]Tasa de Falla'!C63 -> 47 | D63: ='[3]Tasa de Falla'!D63 -> PALPALA - JUJUY ESTE | E63: ='[3]Tasa de Falla'!E63 -> 132 | F63: ='[3]Tasa de Falla'!F63 -> 12.3 | G63: =IF('[3]Tasa de Falla'!IV63=0,"",'[3]Tasa de Falla'!IV63) ->  | H63: =IF('[3]Tasa de Falla'!IW63=0,"",'[3]Tasa de Falla'!IW63) -> 1 | I63: =IF('[3]Tasa de Falla'!IX63=0,"",'[3]Tasa de Falla'!IX63) ->  | J63: =IF('[3]Tasa de Falla'!IY63=0,"",'[3]Tasa de Falla'!IY63) ->  | K63: =IF('[3]Tasa de Falla'!IZ63=0,"",'[3]Tasa de Falla'!IZ63) ->  | L63: =IF('[3]Tasa de Falla'!JA63=0,"",'[3]Tasa de Falla'!JA63) ->  | M63: =IF('[3]Tasa de Falla'!JB63=0,"",'[3]Tasa de Falla'!JB63) ->  | N63: =IF('[3]Tasa de Falla'!JC63=0,"",'[3]Tasa de Falla'!JC63) ->  | O63: =IF('[3]Tasa de Falla'!JD63=0,"",'[3]Tasa de Falla'!JD63) ->  | P63: =IF('[3]Tasa de Falla'!JE63=0,"",'[3]Tasa de Falla'!JE63) ->  | Q63: =IF('[3]Tasa de Falla'!JF63=0,"",'[3]Tasa de Falla'!JF63) ->  | R63: =IF('[3]Tasa de Falla'!JG63=0,"",'[3]Tasa de Falla'!JG63) -> 
C64: ='[3]Tasa de Falla'!C64 -> 48 | D64: ='[3]Tasa de Falla'!D64 -> JUJUY ESTE - JUJUY SUR | E64: ='[3]Tasa de Falla'!E64 -> 132 | F64: ='[3]Tasa de Falla'!F64 -> 4.3 | G64: =IF('[3]Tasa de Falla'!IV64=0,"",'[3]Tasa de Falla'!IV64) ->  | H64: =IF('[3]Tasa de Falla'!IW64=0,"",'[3]Tasa de Falla'!IW64) ->  | I64: =IF('[3]Tasa de Falla'!IX64=0,"",'[3]Tasa de Falla'!IX64) ->  | J64: =IF('[3]Tasa de Falla'!IY64=0,"",'[3]Tasa de Falla'!IY64) ->  | K64: =IF('[3]Tasa de Falla'!IZ64=0,"",'[3]Tasa de Falla'!IZ64) ->  | L64: =IF('[3]Tasa de Falla'!JA64=0,"",'[3]Tasa de Falla'!JA64) ->  | M64: =IF('[3]Tasa de Falla'!JB64=0,"",'[3]Tasa de Falla'!JB64) ->  | N64: =IF('[3]Tasa de Falla'!JC64=0,"",'[3]Tasa de Falla'!JC64) ->  | O64: =IF('[3]Tasa de Falla'!JD64=0,"",'[3]Tasa de Falla'!JD64) ->  | P64: =IF('[3]Tasa de Falla'!JE64=0,"",'[3]Tasa de Falla'!JE64) ->  | Q64: =IF('[3]Tasa de Falla'!JF64=0,"",'[3]Tasa de Falla'!JF64) ->  | R64: =IF('[3]Tasa de Falla'!JG64=0,"",'[3]Tasa de Falla'!JG64) -> 
C65: ='[3]Tasa de Falla'!C65 -> 49 | D65: ='[3]Tasa de Falla'!D65 -> CEVIL POZO - GUEMES | E65: ='[3]Tasa de Falla'!E65 -> 132 | F65: ='[3]Tasa de Falla'!F65 -> 291 | G65: =IF('[3]Tasa de Falla'!IV65=0,"",'[3]Tasa de Falla'!IV65) -> XXXX | H65: =IF('[3]Tasa de Falla'!IW65=0,"",'[3]Tasa de Falla'!IW65) -> XXXX | I65: =IF('[3]Tasa de Falla'!IX65=0,"",'[3]Tasa de Falla'!IX65) -> XXXX | J65: =IF('[3]Tasa de Falla'!IY65=0,"",'[3]Tasa de Falla'!IY65) -> XXXX | K65: =IF('[3]Tasa de Falla'!IZ65=0,"",'[3]Tasa de Falla'!IZ65) -> XXXX | L65: =IF('[3]Tasa de Falla'!JA65=0,"",'[3]Tasa de Falla'!JA65) -> XXXX | M65: =IF('[3]Tasa de Falla'!JB65=0,"",'[3]Tasa de Falla'!JB65) -> XXXX | N65: =IF('[3]Tasa de Falla'!JC65=0,"",'[3]Tasa de Falla'!JC65) -> XXXX | O65: =IF('[3]Tasa de Falla'!JD65=0,"",'[3]Tasa de Falla'!JD65) -> XXXX | P65: =IF('[3]Tasa de Falla'!JE65=0,"",'[3]Tasa de Falla'!JE65) -> XXXX | Q65: =IF('[3]Tasa de Falla'!JF65=0,"",'[3]Tasa de Falla'!JF65) -> XXXX | R65: =IF('[3]Tasa de Falla'!JG65=0,"",'[3]Tasa de Falla'!JG65) -> XXXX
C66: ='[3]Tasa de Falla'!C66 -> 50 | D66: ='[3]Tasa de Falla'!D66 -> CEVIL POZO - EL BRACHO | E66: ='[3]Tasa de Falla'!E66 -> 132 | F66: ='[3]Tasa de Falla'!F66 -> 17 | G66: =IF('[3]Tasa de Falla'!IV66=0,"",'[3]Tasa de Falla'!IV66) ->  | H66: =IF('[3]Tasa de Falla'!IW66=0,"",'[3]Tasa de Falla'!IW66) ->  | I66: =IF('[3]Tasa de Falla'!IX66=0,"",'[3]Tasa de Falla'!IX66) ->  | J66: =IF('[3]Tasa de Falla'!IY66=0,"",'[3]Tasa de Falla'!IY66) ->  | K66: =IF('[3]Tasa de Falla'!IZ66=0,"",'[3]Tasa de Falla'!IZ66) ->  | L66: =IF('[3]Tasa de Falla'!JA66=0,"",'[3]Tasa de Falla'!JA66) ->  | M66: =IF('[3]Tasa de Falla'!JB66=0,"",'[3]Tasa de Falla'!JB66) ->  | N66: =IF('[3]Tasa de Falla'!JC66=0,"",'[3]Tasa de Falla'!JC66) ->  | O66: =IF('[3]Tasa de Falla'!JD66=0,"",'[3]Tasa de Falla'!JD66) ->  | P66: =IF('[3]Tasa de Falla'!JE66=0,"",'[3]Tasa de Falla'!JE66) ->  | Q66: =IF('[3]Tasa de Falla'!JF66=0,"",'[3]Tasa de Falla'!JF66) ->  | R66: =IF('[3]Tasa de Falla'!JG66=0,"",'[3]Tasa de Falla'!JG66) -> 
C67: ='[3]Tasa de Falla'!C67 -> 0 | D67: ='[3]Tasa de Falla'!D67 -> 0 | E67: ='[3]Tasa de Falla'!E67 -> 0 | F67: ='[3]Tasa de Falla'!F67 -> 0 | G67: =IF('[3]Tasa de Falla'!IV67=0,"",'[3]Tasa de Falla'!IV67) ->  | H67: =IF('[3]Tasa de Falla'!IW67=0,"",'[3]Tasa de Falla'!IW67) ->  | I67: =IF('[3]Tasa de Falla'!IX67=0,"",'[3]Tasa de Falla'!IX67) ->  | J67: =IF('[3]Tasa de Falla'!IY67=0,"",'[3]Tasa de Falla'!IY67) ->  | K67: =IF('[3]Tasa de Falla'!IZ67=0,"",'[3]Tasa de Falla'!IZ67) ->  | L67: =IF('[3]Tasa de Falla'!JA67=0,"",'[3]Tasa de Falla'!JA67) ->  | M67: =IF('[3]Tasa de Falla'!JB67=0,"",'[3]Tasa de Falla'!JB67) ->  | N67: =IF('[3]Tasa de Falla'!JC67=0,"",'[3]Tasa de Falla'!JC67) ->  | O67: =IF('[3]Tasa de Falla'!JD67=0,"",'[3]Tasa de Falla'!JD67) ->  | P67: =IF('[3]Tasa de Falla'!JE67=0,"",'[3]Tasa de Falla'!JE67) ->  | Q67: =IF('[3]Tasa de Falla'!JF67=0,"",'[3]Tasa de Falla'!JF67) ->  | R67: =IF('[3]Tasa de Falla'!JG67=0,"",'[3]Tasa de Falla'!JG67) -> 
C68: ='[3]Tasa de Falla'!C68 -> 51 | D68: ='[3]Tasa de Falla'!D68 -> METAN - EL TUNAL | E68: ='[3]Tasa de Falla'!E68 -> 132 | F68: ='[3]Tasa de Falla'!F68 -> 75.6 | G68: =IF('[3]Tasa de Falla'!IV68=0,"",'[3]Tasa de Falla'!IV68) ->  | H68: =IF('[3]Tasa de Falla'!IW68=0,"",'[3]Tasa de Falla'!IW68) ->  | I68: =IF('[3]Tasa de Falla'!IX68=0,"",'[3]Tasa de Falla'!IX68) ->  | J68: =IF('[3]Tasa de Falla'!IY68=0,"",'[3]Tasa de Falla'!IY68) ->  | K68: =IF('[3]Tasa de Falla'!IZ68=0,"",'[3]Tasa de Falla'!IZ68) ->  | L68: =IF('[3]Tasa de Falla'!JA68=0,"",'[3]Tasa de Falla'!JA68) ->  | M68: =IF('[3]Tasa de Falla'!JB68=0,"",'[3]Tasa de Falla'!JB68) ->  | N68: =IF('[3]Tasa de Falla'!JC68=0,"",'[3]Tasa de Falla'!JC68) ->  | O68: =IF('[3]Tasa de Falla'!JD68=0,"",'[3]Tasa de Falla'!JD68) ->  | P68: =IF('[3]Tasa de Falla'!JE68=0,"",'[3]Tasa de Falla'!JE68) ->  | Q68: =IF('[3]Tasa de Falla'!JF68=0,"",'[3]Tasa de Falla'!JF68) ->  | R68: =IF('[3]Tasa de Falla'!JG68=0,"",'[3]Tasa de Falla'!JG68) -> 1
C69: ='[3]Tasa de Falla'!C69 -> 52 | D69: ='[3]Tasa de Falla'!D69 -> EL TUNAL - J.V. GONZALEZ | E69: ='[3]Tasa de Falla'!E69 -> 132 | F69: ='[3]Tasa de Falla'!F69 -> 41.4 | G69: =IF('[3]Tasa de Falla'!IV69=0,"",'[3]Tasa de Falla'!IV69) ->  | H69: =IF('[3]Tasa de Falla'!IW69=0,"",'[3]Tasa de Falla'!IW69) ->  | I69: =IF('[3]Tasa de Falla'!IX69=0,"",'[3]Tasa de Falla'!IX69) ->  | J69: =IF('[3]Tasa de Falla'!IY69=0,"",'[3]Tasa de Falla'!IY69) ->  | K69: =IF('[3]Tasa de Falla'!IZ69=0,"",'[3]Tasa de Falla'!IZ69) ->  | L69: =IF('[3]Tasa de Falla'!JA69=0,"",'[3]Tasa de Falla'!JA69) ->  | M69: =IF('[3]Tasa de Falla'!JB69=0,"",'[3]Tasa de Falla'!JB69) ->  | N69: =IF('[3]Tasa de Falla'!JC69=0,"",'[3]Tasa de Falla'!JC69) ->  | O69: =IF('[3]Tasa de Falla'!JD69=0,"",'[3]Tasa de Falla'!JD69) ->  | P69: =IF('[3]Tasa de Falla'!JE69=0,"",'[3]Tasa de Falla'!JE69) ->  | Q69: =IF('[3]Tasa de Falla'!JF69=0,"",'[3]Tasa de Falla'!JF69) ->  | R69: =IF('[3]Tasa de Falla'!JG69=0,"",'[3]Tasa de Falla'!JG69) -> 
C70: ='[3]Tasa de Falla'!C70 -> 0 | D70: ='[3]Tasa de Falla'!D70 -> 0 | E70: ='[3]Tasa de Falla'!E70 -> 0 | F70: ='[3]Tasa de Falla'!F70 -> 0 | G70: =IF('[3]Tasa de Falla'!IV70=0,"",'[3]Tasa de Falla'!IV70) ->  | H70: =IF('[3]Tasa de Falla'!IW70=0,"",'[3]Tasa de Falla'!IW70) ->  | I70: =IF('[3]Tasa de Falla'!IX70=0,"",'[3]Tasa de Falla'!IX70) ->  | J70: =IF('[3]Tasa de Falla'!IY70=0,"",'[3]Tasa de Falla'!IY70) ->  | K70: =IF('[3]Tasa de Falla'!IZ70=0,"",'[3]Tasa de Falla'!IZ70) ->  | L70: =IF('[3]Tasa de Falla'!JA70=0,"",'[3]Tasa de Falla'!JA70) ->  | M70: =IF('[3]Tasa de Falla'!JB70=0,"",'[3]Tasa de Falla'!JB70) ->  | N70: =IF('[3]Tasa de Falla'!JC70=0,"",'[3]Tasa de Falla'!JC70) ->  | O70: =IF('[3]Tasa de Falla'!JD70=0,"",'[3]Tasa de Falla'!JD70) ->  | P70: =IF('[3]Tasa de Falla'!JE70=0,"",'[3]Tasa de Falla'!JE70) ->  | Q70: =IF('[3]Tasa de Falla'!JF70=0,"",'[3]Tasa de Falla'!JF70) ->  | R70: =IF('[3]Tasa de Falla'!JG70=0,"",'[3]Tasa de Falla'!JG70) -> 
C71: ='[3]Tasa de Falla'!C71 -> 53 | D71: ='[3]Tasa de Falla'!D71 -> LOS PIZARROS - ESCABA | E71: ='[3]Tasa de Falla'!E71 -> 132 | F71: ='[3]Tasa de Falla'!F71 -> 21.4 | G71: =IF('[3]Tasa de Falla'!IV71=0,"",'[3]Tasa de Falla'!IV71) -> 1 | H71: =IF('[3]Tasa de Falla'!IW71=0,"",'[3]Tasa de Falla'!IW71) ->  | I71: =IF('[3]Tasa de Falla'!IX71=0,"",'[3]Tasa de Falla'!IX71) ->  | J71: =IF('[3]Tasa de Falla'!IY71=0,"",'[3]Tasa de Falla'!IY71) ->  | K71: =IF('[3]Tasa de Falla'!IZ71=0,"",'[3]Tasa de Falla'!IZ71) ->  | L71: =IF('[3]Tasa de Falla'!JA71=0,"",'[3]Tasa de Falla'!JA71) ->  | M71: =IF('[3]Tasa de Falla'!JB71=0,"",'[3]Tasa de Falla'!JB71) -> 1 | N71: =IF('[3]Tasa de Falla'!JC71=0,"",'[3]Tasa de Falla'!JC71) ->  | O71: =IF('[3]Tasa de Falla'!JD71=0,"",'[3]Tasa de Falla'!JD71) ->  | P71: =IF('[3]Tasa de Falla'!JE71=0,"",'[3]Tasa de Falla'!JE71) ->  | Q71: =IF('[3]Tasa de Falla'!JF71=0,"",'[3]Tasa de Falla'!JF71) ->  | R71: =IF('[3]Tasa de Falla'!JG71=0,"",'[3]Tasa de Falla'!JG71) -> 1
C72: ='[3]Tasa de Falla'!C72 -> 54 | D72: ='[3]Tasa de Falla'!D72 -> LOS PIZARROS - LA COCHA | E72: ='[3]Tasa de Falla'!E72 -> 132 | F72: ='[3]Tasa de Falla'!F72 -> 6.5 | G72: =IF('[3]Tasa de Falla'!IV72=0,"",'[3]Tasa de Falla'!IV72) ->  | H72: =IF('[3]Tasa de Falla'!IW72=0,"",'[3]Tasa de Falla'!IW72) ->  | I72: =IF('[3]Tasa de Falla'!IX72=0,"",'[3]Tasa de Falla'!IX72) ->  | J72: =IF('[3]Tasa de Falla'!IY72=0,"",'[3]Tasa de Falla'!IY72) ->  | K72: =IF('[3]Tasa de Falla'!IZ72=0,"",'[3]Tasa de Falla'!IZ72) ->  | L72: =IF('[3]Tasa de Falla'!JA72=0,"",'[3]Tasa de Falla'!JA72) ->  | M72: =IF('[3]Tasa de Falla'!JB72=0,"",'[3]Tasa de Falla'!JB72) ->  | N72: =IF('[3]Tasa de Falla'!JC72=0,"",'[3]Tasa de Falla'!JC72) ->  | O72: =IF('[3]Tasa de Falla'!JD72=0,"",'[3]Tasa de Falla'!JD72) ->  | P72: =IF('[3]Tasa de Falla'!JE72=0,"",'[3]Tasa de Falla'!JE72) ->  | Q72: =IF('[3]Tasa de Falla'!JF72=0,"",'[3]Tasa de Falla'!JF72) ->  | R72: =IF('[3]Tasa de Falla'!JG72=0,"",'[3]Tasa de Falla'!JG72) -> 
C73: ='[3]Tasa de Falla'!C73 -> 55 | D73: ='[3]Tasa de Falla'!D73 -> HUACRA - LOS PIZARROS | E73: ='[3]Tasa de Falla'!E73 -> 132 | F73: ='[3]Tasa de Falla'!F73 -> 28.5 | G73: =IF('[3]Tasa de Falla'!IV73=0,"",'[3]Tasa de Falla'!IV73) ->  | H73: =IF('[3]Tasa de Falla'!IW73=0,"",'[3]Tasa de Falla'!IW73) ->  | I73: =IF('[3]Tasa de Falla'!IX73=0,"",'[3]Tasa de Falla'!IX73) ->  | J73: =IF('[3]Tasa de Falla'!IY73=0,"",'[3]Tasa de Falla'!IY73) ->  | K73: =IF('[3]Tasa de Falla'!IZ73=0,"",'[3]Tasa de Falla'!IZ73) ->  | L73: =IF('[3]Tasa de Falla'!JA73=0,"",'[3]Tasa de Falla'!JA73) ->  | M73: =IF('[3]Tasa de Falla'!JB73=0,"",'[3]Tasa de Falla'!JB73) ->  | N73: =IF('[3]Tasa de Falla'!JC73=0,"",'[3]Tasa de Falla'!JC73) ->  | O73: =IF('[3]Tasa de Falla'!JD73=0,"",'[3]Tasa de Falla'!JD73) ->  | P73: =IF('[3]Tasa de Falla'!JE73=0,"",'[3]Tasa de Falla'!JE73) ->  | Q73: =IF('[3]Tasa de Falla'!JF73=0,"",'[3]Tasa de Falla'!JF73) ->  | R73: =IF('[3]Tasa de Falla'!JG73=0,"",'[3]Tasa de Falla'!JG73) -> 
C74: ='[3]Tasa de Falla'!C74 -> 56 | D74: ='[3]Tasa de Falla'!D74 -> CEVIL POZO - AVELLANEDA | E74: ='[3]Tasa de Falla'!E74 -> 132 | F74: ='[3]Tasa de Falla'!F74 -> 8 | G74: =IF('[3]Tasa de Falla'!IV74=0,"",'[3]Tasa de Falla'!IV74) ->  | H74: =IF('[3]Tasa de Falla'!IW74=0,"",'[3]Tasa de Falla'!IW74) ->  | I74: =IF('[3]Tasa de Falla'!IX74=0,"",'[3]Tasa de Falla'!IX74) ->  | J74: =IF('[3]Tasa de Falla'!IY74=0,"",'[3]Tasa de Falla'!IY74) ->  | K74: =IF('[3]Tasa de Falla'!IZ74=0,"",'[3]Tasa de Falla'!IZ74) ->  | L74: =IF('[3]Tasa de Falla'!JA74=0,"",'[3]Tasa de Falla'!JA74) ->  | M74: =IF('[3]Tasa de Falla'!JB74=0,"",'[3]Tasa de Falla'!JB74) ->  | N74: =IF('[3]Tasa de Falla'!JC74=0,"",'[3]Tasa de Falla'!JC74) ->  | O74: =IF('[3]Tasa de Falla'!JD74=0,"",'[3]Tasa de Falla'!JD74) ->  | P74: =IF('[3]Tasa de Falla'!JE74=0,"",'[3]Tasa de Falla'!JE74) ->  | Q74: =IF('[3]Tasa de Falla'!JF74=0,"",'[3]Tasa de Falla'!JF74) ->  | R74: =IF('[3]Tasa de Falla'!JG74=0,"",'[3]Tasa de Falla'!JG74) -> 
C75: ='[3]Tasa de Falla'!C75 -> 57 | D75: ='[3]Tasa de Falla'!D75 -> CABRA CORRAL - SALTA ESTE | E75: ='[3]Tasa de Falla'!E75 -> 132 | F75: ='[3]Tasa de Falla'!F75 -> 55 | G75: =IF('[3]Tasa de Falla'!IV75=0,"",'[3]Tasa de Falla'!IV75) ->  | H75: =IF('[3]Tasa de Falla'!IW75=0,"",'[3]Tasa de Falla'!IW75) -> 1 | I75: =IF('[3]Tasa de Falla'!IX75=0,"",'[3]Tasa de Falla'!IX75) ->  | J75: =IF('[3]Tasa de Falla'!IY75=0,"",'[3]Tasa de Falla'!IY75) ->  | K75: =IF('[3]Tasa de Falla'!IZ75=0,"",'[3]Tasa de Falla'!IZ75) -> 1 | L75: =IF('[3]Tasa de Falla'!JA75=0,"",'[3]Tasa de Falla'!JA75) ->  | M75: =IF('[3]Tasa de Falla'!JB75=0,"",'[3]Tasa de Falla'!JB75) ->  | N75: =IF('[3]Tasa de Falla'!JC75=0,"",'[3]Tasa de Falla'!JC75) ->  | O75: =IF('[3]Tasa de Falla'!JD75=0,"",'[3]Tasa de Falla'!JD75) ->  | P75: =IF('[3]Tasa de Falla'!JE75=0,"",'[3]Tasa de Falla'!JE75) -> 1 | Q75: =IF('[3]Tasa de Falla'!JF75=0,"",'[3]Tasa de Falla'!JF75) ->  | R75: =IF('[3]Tasa de Falla'!JG75=0,"",'[3]Tasa de Falla'!JG75) -> 2
C76: ='[3]Tasa de Falla'!C76 -> 58 | D76: ='[3]Tasa de Falla'!D76 -> SALTA ESTE - SALTA SUR | E76: ='[3]Tasa de Falla'!E76 -> 132 | F76: ='[3]Tasa de Falla'!F76 -> 7 | G76: =IF('[3]Tasa de Falla'!IV76=0,"",'[3]Tasa de Falla'!IV76) ->  | H76: =IF('[3]Tasa de Falla'!IW76=0,"",'[3]Tasa de Falla'!IW76) ->  | I76: =IF('[3]Tasa de Falla'!IX76=0,"",'[3]Tasa de Falla'!IX76) ->  | J76: =IF('[3]Tasa de Falla'!IY76=0,"",'[3]Tasa de Falla'!IY76) ->  | K76: =IF('[3]Tasa de Falla'!IZ76=0,"",'[3]Tasa de Falla'!IZ76) ->  | L76: =IF('[3]Tasa de Falla'!JA76=0,"",'[3]Tasa de Falla'!JA76) ->  | M76: =IF('[3]Tasa de Falla'!JB76=0,"",'[3]Tasa de Falla'!JB76) ->  | N76: =IF('[3]Tasa de Falla'!JC76=0,"",'[3]Tasa de Falla'!JC76) ->  | O76: =IF('[3]Tasa de Falla'!JD76=0,"",'[3]Tasa de Falla'!JD76) ->  | P76: =IF('[3]Tasa de Falla'!JE76=0,"",'[3]Tasa de Falla'!JE76) ->  | Q76: =IF('[3]Tasa de Falla'!JF76=0,"",'[3]Tasa de Falla'!JF76) ->  | R76: =IF('[3]Tasa de Falla'!JG76=0,"",'[3]Tasa de Falla'!JG76) -> 
C77: ='[3]Tasa de Falla'!C77 -> 59 | D77: ='[3]Tasa de Falla'!D77 -> V. QUINTEROS - ACONQUIJA - ANDALGALA | E77: ='[3]Tasa de Falla'!E77 -> 132 | F77: ='[3]Tasa de Falla'!F77 -> 102 | G77: =IF('[3]Tasa de Falla'!IV77=0,"",'[3]Tasa de Falla'!IV77) -> 1 | H77: =IF('[3]Tasa de Falla'!IW77=0,"",'[3]Tasa de Falla'!IW77) ->  | I77: =IF('[3]Tasa de Falla'!IX77=0,"",'[3]Tasa de Falla'!IX77) ->  | J77: =IF('[3]Tasa de Falla'!IY77=0,"",'[3]Tasa de Falla'!IY77) ->  | K77: =IF('[3]Tasa de Falla'!IZ77=0,"",'[3]Tasa de Falla'!IZ77) ->  | L77: =IF('[3]Tasa de Falla'!JA77=0,"",'[3]Tasa de Falla'!JA77) -> 1 | M77: =IF('[3]Tasa de Falla'!JB77=0,"",'[3]Tasa de Falla'!JB77) ->  | N77: =IF('[3]Tasa de Falla'!JC77=0,"",'[3]Tasa de Falla'!JC77) -> 2 | O77: =IF('[3]Tasa de Falla'!JD77=0,"",'[3]Tasa de Falla'!JD77) ->  | P77: =IF('[3]Tasa de Falla'!JE77=0,"",'[3]Tasa de Falla'!JE77) ->  | Q77: =IF('[3]Tasa de Falla'!JF77=0,"",'[3]Tasa de Falla'!JF77) -> 1 | R77: =IF('[3]Tasa de Falla'!JG77=0,"",'[3]Tasa de Falla'!JG77) -> 
C78: ='[3]Tasa de Falla'!C78 -> 60 | D78: ='[3]Tasa de Falla'!D78 -> ANDALGALA - BELEN | E78: ='[3]Tasa de Falla'!E78 -> 132 | F78: ='[3]Tasa de Falla'!F78 -> 80.3 | G78: =IF('[3]Tasa de Falla'!IV78=0,"",'[3]Tasa de Falla'!IV78) ->  | H78: =IF('[3]Tasa de Falla'!IW78=0,"",'[3]Tasa de Falla'!IW78) ->  | I78: =IF('[3]Tasa de Falla'!IX78=0,"",'[3]Tasa de Falla'!IX78) ->  | J78: =IF('[3]Tasa de Falla'!IY78=0,"",'[3]Tasa de Falla'!IY78) ->  | K78: =IF('[3]Tasa de Falla'!IZ78=0,"",'[3]Tasa de Falla'!IZ78) ->  | L78: =IF('[3]Tasa de Falla'!JA78=0,"",'[3]Tasa de Falla'!JA78) ->  | M78: =IF('[3]Tasa de Falla'!JB78=0,"",'[3]Tasa de Falla'!JB78) ->  | N78: =IF('[3]Tasa de Falla'!JC78=0,"",'[3]Tasa de Falla'!JC78) ->  | O78: =IF('[3]Tasa de Falla'!JD78=0,"",'[3]Tasa de Falla'!JD78) ->  | P78: =IF('[3]Tasa de Falla'!JE78=0,"",'[3]Tasa de Falla'!JE78) ->  | Q78: =IF('[3]Tasa de Falla'!JF78=0,"",'[3]Tasa de Falla'!JF78) ->  | R78: =IF('[3]Tasa de Falla'!JG78=0,"",'[3]Tasa de Falla'!JG78) -> 
C79: ='[3]Tasa de Falla'!C79 -> 61 | D79: ='[3]Tasa de Falla'!D79 -> TUCUMAN NORTE - TRANCAS | E79: ='[3]Tasa de Falla'!E79 -> 132 | F79: ='[3]Tasa de Falla'!F79 -> 75 | G79: =IF('[3]Tasa de Falla'!IV79=0,"",'[3]Tasa de Falla'!IV79) ->  | H79: =IF('[3]Tasa de Falla'!IW79=0,"",'[3]Tasa de Falla'!IW79) ->  | I79: =IF('[3]Tasa de Falla'!IX79=0,"",'[3]Tasa de Falla'!IX79) ->  | J79: =IF('[3]Tasa de Falla'!IY79=0,"",'[3]Tasa de Falla'!IY79) ->  | K79: =IF('[3]Tasa de Falla'!IZ79=0,"",'[3]Tasa de Falla'!IZ79) -> 1 | L79: =IF('[3]Tasa de Falla'!JA79=0,"",'[3]Tasa de Falla'!JA79) ->  | M79: =IF('[3]Tasa de Falla'!JB79=0,"",'[3]Tasa de Falla'!JB79) ->  | N79: =IF('[3]Tasa de Falla'!JC79=0,"",'[3]Tasa de Falla'!JC79) ->  | O79: =IF('[3]Tasa de Falla'!JD79=0,"",'[3]Tasa de Falla'!JD79) ->  | P79: =IF('[3]Tasa de Falla'!JE79=0,"",'[3]Tasa de Falla'!JE79) ->  | Q79: =IF('[3]Tasa de Falla'!JF79=0,"",'[3]Tasa de Falla'!JF79) ->  | R79: =IF('[3]Tasa de Falla'!JG79=0,"",'[3]Tasa de Falla'!JG79) -> 
C80: ='[3]Tasa de Falla'!C80 -> 62 | D80: ='[3]Tasa de Falla'!D80 -> CABRA CORRAL - TRANCAS | E80: ='[3]Tasa de Falla'!E80 -> 132 | F80: ='[3]Tasa de Falla'!F80 -> 115 | G80: =IF('[3]Tasa de Falla'!IV80=0,"",'[3]Tasa de Falla'!IV80) -> XXXX | H80: =IF('[3]Tasa de Falla'!IW80=0,"",'[3]Tasa de Falla'!IW80) -> XXXX | I80: =IF('[3]Tasa de Falla'!IX80=0,"",'[3]Tasa de Falla'!IX80) -> XXXX | J80: =IF('[3]Tasa de Falla'!IY80=0,"",'[3]Tasa de Falla'!IY80) -> XXXX | K80: =IF('[3]Tasa de Falla'!IZ80=0,"",'[3]Tasa de Falla'!IZ80) -> XXXX | L80: =IF('[3]Tasa de Falla'!JA80=0,"",'[3]Tasa de Falla'!JA80) -> XXXX | M80: =IF('[3]Tasa de Falla'!JB80=0,"",'[3]Tasa de Falla'!JB80) -> XXXX | N80: =IF('[3]Tasa de Falla'!JC80=0,"",'[3]Tasa de Falla'!JC80) -> XXXX | O80: =IF('[3]Tasa de Falla'!JD80=0,"",'[3]Tasa de Falla'!JD80) -> XXXX | P80: =IF('[3]Tasa de Falla'!JE80=0,"",'[3]Tasa de Falla'!JE80) -> XXXX | Q80: =IF('[3]Tasa de Falla'!JF80=0,"",'[3]Tasa de Falla'!JF80) -> XXXX | R80: =IF('[3]Tasa de Falla'!JG80=0,"",'[3]Tasa de Falla'!JG80) -> XXXX
C81: ='[3]Tasa de Falla'!C81 -> 63 | D81: ='[3]Tasa de Falla'!D81 -> LAS MADERAS - JUJUY SUR | E81: ='[3]Tasa de Falla'!E81 -> 132 | F81: ='[3]Tasa de Falla'!F81 -> 27.6 | G81: =IF('[3]Tasa de Falla'!IV81=0,"",'[3]Tasa de Falla'!IV81) ->  | H81: =IF('[3]Tasa de Falla'!IW81=0,"",'[3]Tasa de Falla'!IW81) ->  | I81: =IF('[3]Tasa de Falla'!IX81=0,"",'[3]Tasa de Falla'!IX81) ->  | J81: =IF('[3]Tasa de Falla'!IY81=0,"",'[3]Tasa de Falla'!IY81) ->  | K81: =IF('[3]Tasa de Falla'!IZ81=0,"",'[3]Tasa de Falla'!IZ81) ->  | L81: =IF('[3]Tasa de Falla'!JA81=0,"",'[3]Tasa de Falla'!JA81) ->  | M81: =IF('[3]Tasa de Falla'!JB81=0,"",'[3]Tasa de Falla'!JB81) ->  | N81: =IF('[3]Tasa de Falla'!JC81=0,"",'[3]Tasa de Falla'!JC81) ->  | O81: =IF('[3]Tasa de Falla'!JD81=0,"",'[3]Tasa de Falla'!JD81) ->  | P81: =IF('[3]Tasa de Falla'!JE81=0,"",'[3]Tasa de Falla'!JE81) ->  | Q81: =IF('[3]Tasa de Falla'!JF81=0,"",'[3]Tasa de Falla'!JF81) ->  | R81: =IF('[3]Tasa de Falla'!JG81=0,"",'[3]Tasa de Falla'!JG81) -> 
C82: ='[3]Tasa de Falla'!C82 -> 64 | D82: ='[3]Tasa de Falla'!D82 -> BELEN - TINOGASTA | E82: ='[3]Tasa de Falla'!E82 -> 132 | F82: ='[3]Tasa de Falla'!F82 -> 72 | G82: =IF('[3]Tasa de Falla'!IV82=0,"",'[3]Tasa de Falla'!IV82) ->  | H82: =IF('[3]Tasa de Falla'!IW82=0,"",'[3]Tasa de Falla'!IW82) ->  | I82: =IF('[3]Tasa de Falla'!IX82=0,"",'[3]Tasa de Falla'!IX82) ->  | J82: =IF('[3]Tasa de Falla'!IY82=0,"",'[3]Tasa de Falla'!IY82) ->  | K82: =IF('[3]Tasa de Falla'!IZ82=0,"",'[3]Tasa de Falla'!IZ82) ->  | L82: =IF('[3]Tasa de Falla'!JA82=0,"",'[3]Tasa de Falla'!JA82) ->  | M82: =IF('[3]Tasa de Falla'!JB82=0,"",'[3]Tasa de Falla'!JB82) ->  | N82: =IF('[3]Tasa de Falla'!JC82=0,"",'[3]Tasa de Falla'!JC82) ->  | O82: =IF('[3]Tasa de Falla'!JD82=0,"",'[3]Tasa de Falla'!JD82) ->  | P82: =IF('[3]Tasa de Falla'!JE82=0,"",'[3]Tasa de Falla'!JE82) ->  | Q82: =IF('[3]Tasa de Falla'!JF82=0,"",'[3]Tasa de Falla'!JF82) ->  | R82: =IF('[3]Tasa de Falla'!JG82=0,"",'[3]Tasa de Falla'!JG82) -> 
C83: ='[3]Tasa de Falla'!C83 -> 65 | D83: ='[3]Tasa de Falla'!D83 -> BURRUYACU - CEVIL POZO | E83: ='[3]Tasa de Falla'!E83 -> 132 | F83: ='[3]Tasa de Falla'!F83 -> 56 | G83: =IF('[3]Tasa de Falla'!IV83=0,"",'[3]Tasa de Falla'!IV83) -> 1 | H83: =IF('[3]Tasa de Falla'!IW83=0,"",'[3]Tasa de Falla'!IW83) ->  | I83: =IF('[3]Tasa de Falla'!IX83=0,"",'[3]Tasa de Falla'!IX83) ->  | J83: =IF('[3]Tasa de Falla'!IY83=0,"",'[3]Tasa de Falla'!IY83) ->  | K83: =IF('[3]Tasa de Falla'!IZ83=0,"",'[3]Tasa de Falla'!IZ83) ->  | L83: =IF('[3]Tasa de Falla'!JA83=0,"",'[3]Tasa de Falla'!JA83) ->  | M83: =IF('[3]Tasa de Falla'!JB83=0,"",'[3]Tasa de Falla'!JB83) ->  | N83: =IF('[3]Tasa de Falla'!JC83=0,"",'[3]Tasa de Falla'!JC83) ->  | O83: =IF('[3]Tasa de Falla'!JD83=0,"",'[3]Tasa de Falla'!JD83) ->  | P83: =IF('[3]Tasa de Falla'!JE83=0,"",'[3]Tasa de Falla'!JE83) ->  | Q83: =IF('[3]Tasa de Falla'!JF83=0,"",'[3]Tasa de Falla'!JF83) ->  | R83: =IF('[3]Tasa de Falla'!JG83=0,"",'[3]Tasa de Falla'!JG83) -> 
C84: ='[3]Tasa de Falla'!C84 -> 66 | D84: ='[3]Tasa de Falla'!D84 -> GÜEMES - BURRUYACU | E84: ='[3]Tasa de Falla'!E84 -> 132 | F84: ='[3]Tasa de Falla'!F84 -> 235.1 | G84: =IF('[3]Tasa de Falla'!IV84=0,"",'[3]Tasa de Falla'!IV84) -> XXXX | H84: =IF('[3]Tasa de Falla'!IW84=0,"",'[3]Tasa de Falla'!IW84) -> XXXX | I84: =IF('[3]Tasa de Falla'!IX84=0,"",'[3]Tasa de Falla'!IX84) -> XXXX | J84: =IF('[3]Tasa de Falla'!IY84=0,"",'[3]Tasa de Falla'!IY84) -> XXXX | K84: =IF('[3]Tasa de Falla'!IZ84=0,"",'[3]Tasa de Falla'!IZ84) -> XXXX | L84: =IF('[3]Tasa de Falla'!JA84=0,"",'[3]Tasa de Falla'!JA84) -> XXXX | M84: =IF('[3]Tasa de Falla'!JB84=0,"",'[3]Tasa de Falla'!JB84) -> XXXX | N84: =IF('[3]Tasa de Falla'!JC84=0,"",'[3]Tasa de Falla'!JC84) -> XXXX | O84: =IF('[3]Tasa de Falla'!JD84=0,"",'[3]Tasa de Falla'!JD84) -> XXXX | P84: =IF('[3]Tasa de Falla'!JE84=0,"",'[3]Tasa de Falla'!JE84) -> XXXX | Q84: =IF('[3]Tasa de Falla'!JF84=0,"",'[3]Tasa de Falla'!JF84) -> XXXX | R84: =IF('[3]Tasa de Falla'!JG84=0,"",'[3]Tasa de Falla'!JG84) -> XXXX
C85: ='[3]Tasa de Falla'!C85 -> 67 | D85: ='[3]Tasa de Falla'!D85 -> FRIAS - RECREO | E85: ='[3]Tasa de Falla'!E85 -> 132 | F85: ='[3]Tasa de Falla'!F85 -> 74.54 | G85: =IF('[3]Tasa de Falla'!IV85=0,"",'[3]Tasa de Falla'!IV85) ->  | H85: =IF('[3]Tasa de Falla'!IW85=0,"",'[3]Tasa de Falla'!IW85) ->  | I85: =IF('[3]Tasa de Falla'!IX85=0,"",'[3]Tasa de Falla'!IX85) ->  | J85: =IF('[3]Tasa de Falla'!IY85=0,"",'[3]Tasa de Falla'!IY85) ->  | K85: =IF('[3]Tasa de Falla'!IZ85=0,"",'[3]Tasa de Falla'!IZ85) ->  | L85: =IF('[3]Tasa de Falla'!JA85=0,"",'[3]Tasa de Falla'!JA85) ->  | M85: =IF('[3]Tasa de Falla'!JB85=0,"",'[3]Tasa de Falla'!JB85) ->  | N85: =IF('[3]Tasa de Falla'!JC85=0,"",'[3]Tasa de Falla'!JC85) ->  | O85: =IF('[3]Tasa de Falla'!JD85=0,"",'[3]Tasa de Falla'!JD85) ->  | P85: =IF('[3]Tasa de Falla'!JE85=0,"",'[3]Tasa de Falla'!JE85) ->  | Q85: =IF('[3]Tasa de Falla'!JF85=0,"",'[3]Tasa de Falla'!JF85) -> 2 | R85: =IF('[3]Tasa de Falla'!JG85=0,"",'[3]Tasa de Falla'!JG85) -> 
C86: ='[3]Tasa de Falla'!C86 -> 68 | D86: ='[3]Tasa de Falla'!D86 -> RECREO - LA RIOJA 1 | E86: ='[3]Tasa de Falla'!E86 -> 132 | F86: ='[3]Tasa de Falla'!F86 -> 221 | G86: =IF('[3]Tasa de Falla'!IV86=0,"",'[3]Tasa de Falla'!IV86) ->  | H86: =IF('[3]Tasa de Falla'!IW86=0,"",'[3]Tasa de Falla'!IW86) ->  | I86: =IF('[3]Tasa de Falla'!IX86=0,"",'[3]Tasa de Falla'!IX86) ->  | J86: =IF('[3]Tasa de Falla'!IY86=0,"",'[3]Tasa de Falla'!IY86) -> 1 | K86: =IF('[3]Tasa de Falla'!IZ86=0,"",'[3]Tasa de Falla'!IZ86) -> 1 | L86: =IF('[3]Tasa de Falla'!JA86=0,"",'[3]Tasa de Falla'!JA86) ->  | M86: =IF('[3]Tasa de Falla'!JB86=0,"",'[3]Tasa de Falla'!JB86) ->  | N86: =IF('[3]Tasa de Falla'!JC86=0,"",'[3]Tasa de Falla'!JC86) ->  | O86: =IF('[3]Tasa de Falla'!JD86=0,"",'[3]Tasa de Falla'!JD86) -> 2 | P86: =IF('[3]Tasa de Falla'!JE86=0,"",'[3]Tasa de Falla'!JE86) ->  | Q86: =IF('[3]Tasa de Falla'!JF86=0,"",'[3]Tasa de Falla'!JF86) ->  | R86: =IF('[3]Tasa de Falla'!JG86=0,"",'[3]Tasa de Falla'!JG86) -> 2
C87: ='[3]Tasa de Falla'!C87 -> 69 | D87: ='[3]Tasa de Falla'!D87 -> RECREO - LA RIOJA 2 | E87: ='[3]Tasa de Falla'!E87 -> 132 | F87: ='[3]Tasa de Falla'!F87 -> 220 | G87: =IF('[3]Tasa de Falla'!IV87=0,"",'[3]Tasa de Falla'!IV87) ->  | H87: =IF('[3]Tasa de Falla'!IW87=0,"",'[3]Tasa de Falla'!IW87) ->  | I87: =IF('[3]Tasa de Falla'!IX87=0,"",'[3]Tasa de Falla'!IX87) -> 1 | J87: =IF('[3]Tasa de Falla'!IY87=0,"",'[3]Tasa de Falla'!IY87) -> 1 | K87: =IF('[3]Tasa de Falla'!IZ87=0,"",'[3]Tasa de Falla'!IZ87) ->  | L87: =IF('[3]Tasa de Falla'!JA87=0,"",'[3]Tasa de Falla'!JA87) ->  | M87: =IF('[3]Tasa de Falla'!JB87=0,"",'[3]Tasa de Falla'!JB87) ->  | N87: =IF('[3]Tasa de Falla'!JC87=0,"",'[3]Tasa de Falla'!JC87) ->  | O87: =IF('[3]Tasa de Falla'!JD87=0,"",'[3]Tasa de Falla'!JD87) -> 3 | P87: =IF('[3]Tasa de Falla'!JE87=0,"",'[3]Tasa de Falla'!JE87) -> 1 | Q87: =IF('[3]Tasa de Falla'!JF87=0,"",'[3]Tasa de Falla'!JF87) -> 2 | R87: =IF('[3]Tasa de Falla'!JG87=0,"",'[3]Tasa de Falla'!JG87) -> 
C88: ='[3]Tasa de Falla'!C88 -> 70 | D88: ='[3]Tasa de Falla'!D88 -> RECREO - CATAMARCA | E88: ='[3]Tasa de Falla'!E88 -> 132 | F88: ='[3]Tasa de Falla'!F88 -> 203 | G88: =IF('[3]Tasa de Falla'!IV88=0,"",'[3]Tasa de Falla'!IV88) ->  | H88: =IF('[3]Tasa de Falla'!IW88=0,"",'[3]Tasa de Falla'!IW88) -> 1 | I88: =IF('[3]Tasa de Falla'!IX88=0,"",'[3]Tasa de Falla'!IX88) ->  | J88: =IF('[3]Tasa de Falla'!IY88=0,"",'[3]Tasa de Falla'!IY88) ->  | K88: =IF('[3]Tasa de Falla'!IZ88=0,"",'[3]Tasa de Falla'!IZ88) ->  | L88: =IF('[3]Tasa de Falla'!JA88=0,"",'[3]Tasa de Falla'!JA88) ->  | M88: =IF('[3]Tasa de Falla'!JB88=0,"",'[3]Tasa de Falla'!JB88) ->  | N88: =IF('[3]Tasa de Falla'!JC88=0,"",'[3]Tasa de Falla'!JC88) ->  | O88: =IF('[3]Tasa de Falla'!JD88=0,"",'[3]Tasa de Falla'!JD88) ->  | P88: =IF('[3]Tasa de Falla'!JE88=0,"",'[3]Tasa de Falla'!JE88) ->  | Q88: =IF('[3]Tasa de Falla'!JF88=0,"",'[3]Tasa de Falla'!JF88) ->  | R88: =IF('[3]Tasa de Falla'!JG88=0,"",'[3]Tasa de Falla'!JG88) -> 
C89: ='[3]Tasa de Falla'!C89 -> 71 | D89: ='[3]Tasa de Falla'!D89 -> CABRA CORRAL - EL CARRIL | E89: ='[3]Tasa de Falla'!E89 -> 132 | F89: ='[3]Tasa de Falla'!F89 -> 33.75 | G89: =IF('[3]Tasa de Falla'!IV89=0,"",'[3]Tasa de Falla'!IV89) ->  | H89: =IF('[3]Tasa de Falla'!IW89=0,"",'[3]Tasa de Falla'!IW89) ->  | I89: =IF('[3]Tasa de Falla'!IX89=0,"",'[3]Tasa de Falla'!IX89) ->  | J89: =IF('[3]Tasa de Falla'!IY89=0,"",'[3]Tasa de Falla'!IY89) ->  | K89: =IF('[3]Tasa de Falla'!IZ89=0,"",'[3]Tasa de Falla'!IZ89) -> 1 | L89: =IF('[3]Tasa de Falla'!JA89=0,"",'[3]Tasa de Falla'!JA89) ->  | M89: =IF('[3]Tasa de Falla'!JB89=0,"",'[3]Tasa de Falla'!JB89) ->  | N89: =IF('[3]Tasa de Falla'!JC89=0,"",'[3]Tasa de Falla'!JC89) ->  | O89: =IF('[3]Tasa de Falla'!JD89=0,"",'[3]Tasa de Falla'!JD89) ->  | P89: =IF('[3]Tasa de Falla'!JE89=0,"",'[3]Tasa de Falla'!JE89) ->  | Q89: =IF('[3]Tasa de Falla'!JF89=0,"",'[3]Tasa de Falla'!JF89) ->  | R89: =IF('[3]Tasa de Falla'!JG89=0,"",'[3]Tasa de Falla'!JG89) -> 
C90: ='[3]Tasa de Falla'!C90 -> 72 | D90: ='[3]Tasa de Falla'!D90 -> PAMPA GRANDE - CABRA CORRAL | E90: ='[3]Tasa de Falla'!E90 -> 132 | F90: ='[3]Tasa de Falla'!F90 -> 60 | G90: =IF('[3]Tasa de Falla'!IV90=0,"",'[3]Tasa de Falla'!IV90) -> 1 | H90: =IF('[3]Tasa de Falla'!IW90=0,"",'[3]Tasa de Falla'!IW90) -> 1 | I90: =IF('[3]Tasa de Falla'!IX90=0,"",'[3]Tasa de Falla'!IX90) ->  | J90: =IF('[3]Tasa de Falla'!IY90=0,"",'[3]Tasa de Falla'!IY90) ->  | K90: =IF('[3]Tasa de Falla'!IZ90=0,"",'[3]Tasa de Falla'!IZ90) -> 1 | L90: =IF('[3]Tasa de Falla'!JA90=0,"",'[3]Tasa de Falla'!JA90) ->  | M90: =IF('[3]Tasa de Falla'!JB90=0,"",'[3]Tasa de Falla'!JB90) ->  | N90: =IF('[3]Tasa de Falla'!JC90=0,"",'[3]Tasa de Falla'!JC90) ->  | O90: =IF('[3]Tasa de Falla'!JD90=0,"",'[3]Tasa de Falla'!JD90) -> XXXX | P90: =IF('[3]Tasa de Falla'!JE90=0,"",'[3]Tasa de Falla'!JE90) -> XXXX | Q90: =IF('[3]Tasa de Falla'!JF90=0,"",'[3]Tasa de Falla'!JF90) -> XXXX | R90: =IF('[3]Tasa de Falla'!JG90=0,"",'[3]Tasa de Falla'!JG90) -> XXXX
C91: ='[3]Tasa de Falla'!C91 -> 73 | D91: ='[3]Tasa de Falla'!D91 -> PAMPA GRANDE - CAFAYATE | E91: ='[3]Tasa de Falla'!E91 -> 132 | F91: ='[3]Tasa de Falla'!F91 -> 63 | G91: =IF('[3]Tasa de Falla'!IV91=0,"",'[3]Tasa de Falla'!IV91) ->  | H91: =IF('[3]Tasa de Falla'!IW91=0,"",'[3]Tasa de Falla'!IW91) ->  | I91: =IF('[3]Tasa de Falla'!IX91=0,"",'[3]Tasa de Falla'!IX91) ->  | J91: =IF('[3]Tasa de Falla'!IY91=0,"",'[3]Tasa de Falla'!IY91) ->  | K91: =IF('[3]Tasa de Falla'!IZ91=0,"",'[3]Tasa de Falla'!IZ91) ->  | L91: =IF('[3]Tasa de Falla'!JA91=0,"",'[3]Tasa de Falla'!JA91) ->  | M91: =IF('[3]Tasa de Falla'!JB91=0,"",'[3]Tasa de Falla'!JB91) ->  | N91: =IF('[3]Tasa de Falla'!JC91=0,"",'[3]Tasa de Falla'!JC91) -> 3 | O91: =IF('[3]Tasa de Falla'!JD91=0,"",'[3]Tasa de Falla'!JD91) ->  | P91: =IF('[3]Tasa de Falla'!JE91=0,"",'[3]Tasa de Falla'!JE91) ->  | Q91: =IF('[3]Tasa de Falla'!JF91=0,"",'[3]Tasa de Falla'!JF91) ->  | R91: =IF('[3]Tasa de Falla'!JG91=0,"",'[3]Tasa de Falla'!JG91) -> 
C92: ='[3]Tasa de Falla'!C92 -> 74 | D92: ='[3]Tasa de Falla'!D92 -> PAMPA GRANDE - TRANCAS | E92: ='[3]Tasa de Falla'!E92 -> 132 | F92: ='[3]Tasa de Falla'!F92 -> 55 | G92: =IF('[3]Tasa de Falla'!IV92=0,"",'[3]Tasa de Falla'!IV92) ->  | H92: =IF('[3]Tasa de Falla'!IW92=0,"",'[3]Tasa de Falla'!IW92) ->  | I92: =IF('[3]Tasa de Falla'!IX92=0,"",'[3]Tasa de Falla'!IX92) ->  | J92: =IF('[3]Tasa de Falla'!IY92=0,"",'[3]Tasa de Falla'!IY92) ->  | K92: =IF('[3]Tasa de Falla'!IZ92=0,"",'[3]Tasa de Falla'!IZ92) ->  | L92: =IF('[3]Tasa de Falla'!JA92=0,"",'[3]Tasa de Falla'!JA92) -> 2 | M92: =IF('[3]Tasa de Falla'!JB92=0,"",'[3]Tasa de Falla'!JB92) ->  | N92: =IF('[3]Tasa de Falla'!JC92=0,"",'[3]Tasa de Falla'!JC92) ->  | O92: =IF('[3]Tasa de Falla'!JD92=0,"",'[3]Tasa de Falla'!JD92) -> 1 | P92: =IF('[3]Tasa de Falla'!JE92=0,"",'[3]Tasa de Falla'!JE92) -> 1 | Q92: =IF('[3]Tasa de Falla'!JF92=0,"",'[3]Tasa de Falla'!JF92) -> 1 | R92: =IF('[3]Tasa de Falla'!JG92=0,"",'[3]Tasa de Falla'!JG92) -> 1
C93: ='[3]Tasa de Falla'!C93 -> 75 | D93: ='[3]Tasa de Falla'!D93 -> SANTIAGO CENTRO - FERNANDEZ - SUNCHO CORRAL | E93: ='[3]Tasa de Falla'!E93 -> 132 | F93: ='[3]Tasa de Falla'!F93 -> 103 | G93: =IF('[3]Tasa de Falla'!IV93=0,"",'[3]Tasa de Falla'!IV93) ->  | H93: =IF('[3]Tasa de Falla'!IW93=0,"",'[3]Tasa de Falla'!IW93) ->  | I93: =IF('[3]Tasa de Falla'!IX93=0,"",'[3]Tasa de Falla'!IX93) ->  | J93: =IF('[3]Tasa de Falla'!IY93=0,"",'[3]Tasa de Falla'!IY93) ->  | K93: =IF('[3]Tasa de Falla'!IZ93=0,"",'[3]Tasa de Falla'!IZ93) ->  | L93: =IF('[3]Tasa de Falla'!JA93=0,"",'[3]Tasa de Falla'!JA93) ->  | M93: =IF('[3]Tasa de Falla'!JB93=0,"",'[3]Tasa de Falla'!JB93) -> 1 | N93: =IF('[3]Tasa de Falla'!JC93=0,"",'[3]Tasa de Falla'!JC93) ->  | O93: =IF('[3]Tasa de Falla'!JD93=0,"",'[3]Tasa de Falla'!JD93) ->  | P93: =IF('[3]Tasa de Falla'!JE93=0,"",'[3]Tasa de Falla'!JE93) ->  | Q93: =IF('[3]Tasa de Falla'!JF93=0,"",'[3]Tasa de Falla'!JF93) ->  | R93: =IF('[3]Tasa de Falla'!JG93=0,"",'[3]Tasa de Falla'!JG93) -> 
C94: ='[3]Tasa de Falla'!C94 -> 76 | D94: ='[3]Tasa de Falla'!D94 -> SUNCHO CORRAL - ANATUYA | E94: ='[3]Tasa de Falla'!E94 -> 132 | F94: ='[3]Tasa de Falla'!F94 -> 81 | G94: =IF('[3]Tasa de Falla'!IV94=0,"",'[3]Tasa de Falla'!IV94) ->  | H94: =IF('[3]Tasa de Falla'!IW94=0,"",'[3]Tasa de Falla'!IW94) ->  | I94: =IF('[3]Tasa de Falla'!IX94=0,"",'[3]Tasa de Falla'!IX94) ->  | J94: =IF('[3]Tasa de Falla'!IY94=0,"",'[3]Tasa de Falla'!IY94) ->  | K94: =IF('[3]Tasa de Falla'!IZ94=0,"",'[3]Tasa de Falla'!IZ94) ->  | L94: =IF('[3]Tasa de Falla'!JA94=0,"",'[3]Tasa de Falla'!JA94) ->  | M94: =IF('[3]Tasa de Falla'!JB94=0,"",'[3]Tasa de Falla'!JB94) ->  | N94: =IF('[3]Tasa de Falla'!JC94=0,"",'[3]Tasa de Falla'!JC94) ->  | O94: =IF('[3]Tasa de Falla'!JD94=0,"",'[3]Tasa de Falla'!JD94) ->  | P94: =IF('[3]Tasa de Falla'!JE94=0,"",'[3]Tasa de Falla'!JE94) -> 1 | Q94: =IF('[3]Tasa de Falla'!JF94=0,"",'[3]Tasa de Falla'!JF94) ->  | R94: =IF('[3]Tasa de Falla'!JG94=0,"",'[3]Tasa de Falla'!JG94) -> 
C95: ='[3]Tasa de Falla'!C95 -> 77 | D95: ='[3]Tasa de Falla'!D95 -> LAS MADERAS - GÜEMES SALTA | E95: ='[3]Tasa de Falla'!E95 -> 132 | F95: ='[3]Tasa de Falla'!F95 -> 42 | G95: =IF('[3]Tasa de Falla'!IV95=0,"",'[3]Tasa de Falla'!IV95) ->  | H95: =IF('[3]Tasa de Falla'!IW95=0,"",'[3]Tasa de Falla'!IW95) ->  | I95: =IF('[3]Tasa de Falla'!IX95=0,"",'[3]Tasa de Falla'!IX95) ->  | J95: =IF('[3]Tasa de Falla'!IY95=0,"",'[3]Tasa de Falla'!IY95) ->  | K95: =IF('[3]Tasa de Falla'!IZ95=0,"",'[3]Tasa de Falla'!IZ95) ->  | L95: =IF('[3]Tasa de Falla'!JA95=0,"",'[3]Tasa de Falla'!JA95) ->  | M95: =IF('[3]Tasa de Falla'!JB95=0,"",'[3]Tasa de Falla'!JB95) ->  | N95: =IF('[3]Tasa de Falla'!JC95=0,"",'[3]Tasa de Falla'!JC95) ->  | O95: =IF('[3]Tasa de Falla'!JD95=0,"",'[3]Tasa de Falla'!JD95) ->  | P95: =IF('[3]Tasa de Falla'!JE95=0,"",'[3]Tasa de Falla'!JE95) ->  | Q95: =IF('[3]Tasa de Falla'!JF95=0,"",'[3]Tasa de Falla'!JF95) ->  | R95: =IF('[3]Tasa de Falla'!JG95=0,"",'[3]Tasa de Falla'!JG95) -> 
C96: ='[3]Tasa de Falla'!C96 -> 78 | D96: ='[3]Tasa de Falla'!D96 -> INDEPENDENCIA - EL BRACHO 2 | E96: ='[3]Tasa de Falla'!E96 -> 132 | F96: ='[3]Tasa de Falla'!F96 -> 17.1 | G96: =IF('[3]Tasa de Falla'!IV96=0,"",'[3]Tasa de Falla'!IV96) -> 1 | H96: =IF('[3]Tasa de Falla'!IW96=0,"",'[3]Tasa de Falla'!IW96) ->  | I96: =IF('[3]Tasa de Falla'!IX96=0,"",'[3]Tasa de Falla'!IX96) ->  | J96: =IF('[3]Tasa de Falla'!IY96=0,"",'[3]Tasa de Falla'!IY96) ->  | K96: =IF('[3]Tasa de Falla'!IZ96=0,"",'[3]Tasa de Falla'!IZ96) -> 1 | L96: =IF('[3]Tasa de Falla'!JA96=0,"",'[3]Tasa de Falla'!JA96) -> 2 | M96: =IF('[3]Tasa de Falla'!JB96=0,"",'[3]Tasa de Falla'!JB96) ->  | N96: =IF('[3]Tasa de Falla'!JC96=0,"",'[3]Tasa de Falla'!JC96) ->  | O96: =IF('[3]Tasa de Falla'!JD96=0,"",'[3]Tasa de Falla'!JD96) ->  | P96: =IF('[3]Tasa de Falla'!JE96=0,"",'[3]Tasa de Falla'!JE96) ->  | Q96: =IF('[3]Tasa de Falla'!JF96=0,"",'[3]Tasa de Falla'!JF96) -> 1 | R96: =IF('[3]Tasa de Falla'!JG96=0,"",'[3]Tasa de Falla'!JG96) -> 
C97: ='[3]Tasa de Falla'!C97 -> 79 | D97: ='[3]Tasa de Falla'!D97 -> GÜEMES - SALTA NORTE | E97: ='[3]Tasa de Falla'!E97 -> 132 | F97: ='[3]Tasa de Falla'!F97 -> 39 | G97: =IF('[3]Tasa de Falla'!IV97=0,"",'[3]Tasa de Falla'!IV97) -> XXXX | H97: =IF('[3]Tasa de Falla'!IW97=0,"",'[3]Tasa de Falla'!IW97) -> XXXX | I97: =IF('[3]Tasa de Falla'!IX97=0,"",'[3]Tasa de Falla'!IX97) -> XXXX | J97: =IF('[3]Tasa de Falla'!IY97=0,"",'[3]Tasa de Falla'!IY97) -> XXXX | K97: =IF('[3]Tasa de Falla'!IZ97=0,"",'[3]Tasa de Falla'!IZ97) -> XXXX | L97: =IF('[3]Tasa de Falla'!JA97=0,"",'[3]Tasa de Falla'!JA97) -> XXXX | M97: =IF('[3]Tasa de Falla'!JB97=0,"",'[3]Tasa de Falla'!JB97) -> XXXX | N97: =IF('[3]Tasa de Falla'!JC97=0,"",'[3]Tasa de Falla'!JC97) -> XXXX | O97: =IF('[3]Tasa de Falla'!JD97=0,"",'[3]Tasa de Falla'!JD97) -> XXXX | P97: =IF('[3]Tasa de Falla'!JE97=0,"",'[3]Tasa de Falla'!JE97) -> XXXX | Q97: =IF('[3]Tasa de Falla'!JF97=0,"",'[3]Tasa de Falla'!JF97) -> XXXX | R97: =IF('[3]Tasa de Falla'!JG97=0,"",'[3]Tasa de Falla'!JG97) -> XXXX
C98: ='[3]Tasa de Falla'!C98 -> 80 | D98: ='[3]Tasa de Falla'!D98 -> BURRUYACU - COBOS | E98: ='[3]Tasa de Falla'!E98 -> 132 | F98: ='[3]Tasa de Falla'!F98 -> 229.5 | G98: =IF('[3]Tasa de Falla'!IV98=0,"",'[3]Tasa de Falla'!IV98) -> XXXX | H98: =IF('[3]Tasa de Falla'!IW98=0,"",'[3]Tasa de Falla'!IW98) -> XXXX | I98: =IF('[3]Tasa de Falla'!IX98=0,"",'[3]Tasa de Falla'!IX98) -> XXXX | J98: =IF('[3]Tasa de Falla'!IY98=0,"",'[3]Tasa de Falla'!IY98) -> XXXX | K98: =IF('[3]Tasa de Falla'!IZ98=0,"",'[3]Tasa de Falla'!IZ98) -> XXXX | L98: =IF('[3]Tasa de Falla'!JA98=0,"",'[3]Tasa de Falla'!JA98) -> XXXX | M98: =IF('[3]Tasa de Falla'!JB98=0,"",'[3]Tasa de Falla'!JB98) -> XXXX | N98: =IF('[3]Tasa de Falla'!JC98=0,"",'[3]Tasa de Falla'!JC98) -> XXXX | O98: =IF('[3]Tasa de Falla'!JD98=0,"",'[3]Tasa de Falla'!JD98) -> XXXX | P98: =IF('[3]Tasa de Falla'!JE98=0,"",'[3]Tasa de Falla'!JE98) -> XXXX | Q98: =IF('[3]Tasa de Falla'!JF98=0,"",'[3]Tasa de Falla'!JF98) -> XXXX | R98: =IF('[3]Tasa de Falla'!JG98=0,"",'[3]Tasa de Falla'!JG98) -> XXXX
C99: ='[3]Tasa de Falla'!C99 -> 81 | D99: ='[3]Tasa de Falla'!D99 -> METAN - COBOS | E99: ='[3]Tasa de Falla'!E99 -> 132 | F99: ='[3]Tasa de Falla'!F99 -> 89.2 | G99: =IF('[3]Tasa de Falla'!IV99=0,"",'[3]Tasa de Falla'!IV99) ->  | H99: =IF('[3]Tasa de Falla'!IW99=0,"",'[3]Tasa de Falla'!IW99) ->  | I99: =IF('[3]Tasa de Falla'!IX99=0,"",'[3]Tasa de Falla'!IX99) ->  | J99: =IF('[3]Tasa de Falla'!IY99=0,"",'[3]Tasa de Falla'!IY99) ->  | K99: =IF('[3]Tasa de Falla'!IZ99=0,"",'[3]Tasa de Falla'!IZ99) ->  | L99: =IF('[3]Tasa de Falla'!JA99=0,"",'[3]Tasa de Falla'!JA99) ->  | M99: =IF('[3]Tasa de Falla'!JB99=0,"",'[3]Tasa de Falla'!JB99) ->  | N99: =IF('[3]Tasa de Falla'!JC99=0,"",'[3]Tasa de Falla'!JC99) ->  | O99: =IF('[3]Tasa de Falla'!JD99=0,"",'[3]Tasa de Falla'!JD99) ->  | P99: =IF('[3]Tasa de Falla'!JE99=0,"",'[3]Tasa de Falla'!JE99) ->  | Q99: =IF('[3]Tasa de Falla'!JF99=0,"",'[3]Tasa de Falla'!JF99) ->  | R99: =IF('[3]Tasa de Falla'!JG99=0,"",'[3]Tasa de Falla'!JG99) -> 
C100: ='[3]Tasa de Falla'!C100 -> 82 | D100: ='[3]Tasa de Falla'!D100 -> AÑATUYA - BANDERA | E100: ='[3]Tasa de Falla'!E100 -> 132 | F100: ='[3]Tasa de Falla'!F100 -> 76 | G100: =IF('[3]Tasa de Falla'!IV100=0,"",'[3]Tasa de Falla'!IV100) -> 1 | H100: =IF('[3]Tasa de Falla'!IW100=0,"",'[3]Tasa de Falla'!IW100) ->  | I100: =IF('[3]Tasa de Falla'!IX100=0,"",'[3]Tasa de Falla'!IX100) ->  | J100: =IF('[3]Tasa de Falla'!IY100=0,"",'[3]Tasa de Falla'!IY100) ->  | K100: =IF('[3]Tasa de Falla'!IZ100=0,"",'[3]Tasa de Falla'!IZ100) ->  | L100: =IF('[3]Tasa de Falla'!JA100=0,"",'[3]Tasa de Falla'!JA100) ->  | M100: =IF('[3]Tasa de Falla'!JB100=0,"",'[3]Tasa de Falla'!JB100) ->  | N100: =IF('[3]Tasa de Falla'!JC100=0,"",'[3]Tasa de Falla'!JC100) ->  | O100: =IF('[3]Tasa de Falla'!JD100=0,"",'[3]Tasa de Falla'!JD100) ->  | P100: =IF('[3]Tasa de Falla'!JE100=0,"",'[3]Tasa de Falla'!JE100) -> 1 | Q100: =IF('[3]Tasa de Falla'!JF100=0,"",'[3]Tasa de Falla'!JF100) ->  | R100: =IF('[3]Tasa de Falla'!JG100=0,"",'[3]Tasa de Falla'!JG100) -> 
C101: ='[3]Tasa de Falla'!C101 -> 84 | D101: ='[3]Tasa de Falla'!D101 -> GÜEMES SALTA - COBOS 1 | E101: ='[3]Tasa de Falla'!E101 -> 132 | F101: ='[3]Tasa de Falla'!F101 -> 12.1 | G101: =IF('[3]Tasa de Falla'!IV101=0,"",'[3]Tasa de Falla'!IV101) ->  | H101: =IF('[3]Tasa de Falla'!IW101=0,"",'[3]Tasa de Falla'!IW101) ->  | I101: =IF('[3]Tasa de Falla'!IX101=0,"",'[3]Tasa de Falla'!IX101) ->  | J101: =IF('[3]Tasa de Falla'!IY101=0,"",'[3]Tasa de Falla'!IY101) ->  | K101: =IF('[3]Tasa de Falla'!IZ101=0,"",'[3]Tasa de Falla'!IZ101) ->  | L101: =IF('[3]Tasa de Falla'!JA101=0,"",'[3]Tasa de Falla'!JA101) ->  | M101: =IF('[3]Tasa de Falla'!JB101=0,"",'[3]Tasa de Falla'!JB101) ->  | N101: =IF('[3]Tasa de Falla'!JC101=0,"",'[3]Tasa de Falla'!JC101) ->  | O101: =IF('[3]Tasa de Falla'!JD101=0,"",'[3]Tasa de Falla'!JD101) ->  | P101: =IF('[3]Tasa de Falla'!JE101=0,"",'[3]Tasa de Falla'!JE101) -> 1 | Q101: =IF('[3]Tasa de Falla'!JF101=0,"",'[3]Tasa de Falla'!JF101) -> 1 | R101: =IF('[3]Tasa de Falla'!JG101=0,"",'[3]Tasa de Falla'!JG101) -> 
C102: ='[3]Tasa de Falla'!C102 -> 85 | D102: ='[3]Tasa de Falla'!D102 -> GÜEMES SALTA - COBOS 2 | E102: ='[3]Tasa de Falla'!E102 -> 132 | F102: ='[3]Tasa de Falla'!F102 -> 12.1 | G102: =IF('[3]Tasa de Falla'!IV102=0,"",'[3]Tasa de Falla'!IV102) ->  | H102: =IF('[3]Tasa de Falla'!IW102=0,"",'[3]Tasa de Falla'!IW102) ->  | I102: =IF('[3]Tasa de Falla'!IX102=0,"",'[3]Tasa de Falla'!IX102) ->  | J102: =IF('[3]Tasa de Falla'!IY102=0,"",'[3]Tasa de Falla'!IY102) ->  | K102: =IF('[3]Tasa de Falla'!IZ102=0,"",'[3]Tasa de Falla'!IZ102) -> 1 | L102: =IF('[3]Tasa de Falla'!JA102=0,"",'[3]Tasa de Falla'!JA102) ->  | M102: =IF('[3]Tasa de Falla'!JB102=0,"",'[3]Tasa de Falla'!JB102) ->  | N102: =IF('[3]Tasa de Falla'!JC102=0,"",'[3]Tasa de Falla'!JC102) ->  | O102: =IF('[3]Tasa de Falla'!JD102=0,"",'[3]Tasa de Falla'!JD102) ->  | P102: =IF('[3]Tasa de Falla'!JE102=0,"",'[3]Tasa de Falla'!JE102) -> 2 | Q102: =IF('[3]Tasa de Falla'!JF102=0,"",'[3]Tasa de Falla'!JF102) ->  | R102: =IF('[3]Tasa de Falla'!JG102=0,"",'[3]Tasa de Falla'!JG102) -> 
C103: ='[3]Tasa de Falla'!C103 -> 86 | D103: ='[3]Tasa de Falla'!D103 -> EL BRACHO - LA BANDA | E103: ='[3]Tasa de Falla'!E103 -> 132 | F103: ='[3]Tasa de Falla'!F103 -> 133.5 | G103: =IF('[3]Tasa de Falla'!IV103=0,"",'[3]Tasa de Falla'!IV103) -> XXXX | H103: =IF('[3]Tasa de Falla'!IW103=0,"",'[3]Tasa de Falla'!IW103) -> XXXX | I103: =IF('[3]Tasa de Falla'!IX103=0,"",'[3]Tasa de Falla'!IX103) -> XXXX | J103: =IF('[3]Tasa de Falla'!IY103=0,"",'[3]Tasa de Falla'!IY103) -> XXXX | K103: =IF('[3]Tasa de Falla'!IZ103=0,"",'[3]Tasa de Falla'!IZ103) -> XXXX | L103: =IF('[3]Tasa de Falla'!JA103=0,"",'[3]Tasa de Falla'!JA103) -> XXXX | M103: =IF('[3]Tasa de Falla'!JB103=0,"",'[3]Tasa de Falla'!JB103) -> XXXX | N103: =IF('[3]Tasa de Falla'!JC103=0,"",'[3]Tasa de Falla'!JC103) -> XXXX | O103: =IF('[3]Tasa de Falla'!JD103=0,"",'[3]Tasa de Falla'!JD103) -> XXXX | P103: =IF('[3]Tasa de Falla'!JE103=0,"",'[3]Tasa de Falla'!JE103) -> XXXX | Q103: =IF('[3]Tasa de Falla'!JF103=0,"",'[3]Tasa de Falla'!JF103) -> XXXX | R103: =IF('[3]Tasa de Falla'!JG103=0,"",'[3]Tasa de Falla'!JG103) -> XXXX
C104: ='[3]Tasa de Falla'!C104 -> 87 | D104: ='[3]Tasa de Falla'!D104 -> SANTIAGO OESTE - SANTIAGO SUR | E104: ='[3]Tasa de Falla'!E104 -> 132 | F104: ='[3]Tasa de Falla'!F104 -> 10.6 | G104: =IF('[3]Tasa de Falla'!IV104=0,"",'[3]Tasa de Falla'!IV104) ->  | H104: =IF('[3]Tasa de Falla'!IW104=0,"",'[3]Tasa de Falla'!IW104) ->  | I104: =IF('[3]Tasa de Falla'!IX104=0,"",'[3]Tasa de Falla'!IX104) ->  | J104: =IF('[3]Tasa de Falla'!IY104=0,"",'[3]Tasa de Falla'!IY104) ->  | K104: =IF('[3]Tasa de Falla'!IZ104=0,"",'[3]Tasa de Falla'!IZ104) ->  | L104: =IF('[3]Tasa de Falla'!JA104=0,"",'[3]Tasa de Falla'!JA104) ->  | M104: =IF('[3]Tasa de Falla'!JB104=0,"",'[3]Tasa de Falla'!JB104) ->  | N104: =IF('[3]Tasa de Falla'!JC104=0,"",'[3]Tasa de Falla'!JC104) ->  | O104: =IF('[3]Tasa de Falla'!JD104=0,"",'[3]Tasa de Falla'!JD104) ->  | P104: =IF('[3]Tasa de Falla'!JE104=0,"",'[3]Tasa de Falla'!JE104) ->  | Q104: =IF('[3]Tasa de Falla'!JF104=0,"",'[3]Tasa de Falla'!JF104) ->  | R104: =IF('[3]Tasa de Falla'!JG104=0,"",'[3]Tasa de Falla'!JG104) -> 
C105: ='[3]Tasa de Falla'!C105 -> 88 | D105: ='[3]Tasa de Falla'!D105 -> SANTIAGO SUR - SANTIAGO CENTRO | E105: ='[3]Tasa de Falla'!E105 -> 132 | F105: ='[3]Tasa de Falla'!F105 -> 4 | G105: =IF('[3]Tasa de Falla'!IV105=0,"",'[3]Tasa de Falla'!IV105) ->  | H105: =IF('[3]Tasa de Falla'!IW105=0,"",'[3]Tasa de Falla'!IW105) ->  | I105: =IF('[3]Tasa de Falla'!IX105=0,"",'[3]Tasa de Falla'!IX105) ->  | J105: =IF('[3]Tasa de Falla'!IY105=0,"",'[3]Tasa de Falla'!IY105) ->  | K105: =IF('[3]Tasa de Falla'!IZ105=0,"",'[3]Tasa de Falla'!IZ105) ->  | L105: =IF('[3]Tasa de Falla'!JA105=0,"",'[3]Tasa de Falla'!JA105) ->  | M105: =IF('[3]Tasa de Falla'!JB105=0,"",'[3]Tasa de Falla'!JB105) ->  | N105: =IF('[3]Tasa de Falla'!JC105=0,"",'[3]Tasa de Falla'!JC105) ->  | O105: =IF('[3]Tasa de Falla'!JD105=0,"",'[3]Tasa de Falla'!JD105) ->  | P105: =IF('[3]Tasa de Falla'!JE105=0,"",'[3]Tasa de Falla'!JE105) ->  | Q105: =IF('[3]Tasa de Falla'!JF105=0,"",'[3]Tasa de Falla'!JF105) ->  | R105: =IF('[3]Tasa de Falla'!JG105=0,"",'[3]Tasa de Falla'!JG105) -> 
C106: ='[3]Tasa de Falla'!C106 -> 89 | D106: ='[3]Tasa de Falla'!D106 -> C.H. RIO HONDO - SANTIAGO OESTE | E106: ='[3]Tasa de Falla'!E106 -> 132 | F106: ='[3]Tasa de Falla'!F106 -> 69.8 | G106: =IF('[3]Tasa de Falla'!IV106=0,"",'[3]Tasa de Falla'!IV106) ->  | H106: =IF('[3]Tasa de Falla'!IW106=0,"",'[3]Tasa de Falla'!IW106) ->  | I106: =IF('[3]Tasa de Falla'!IX106=0,"",'[3]Tasa de Falla'!IX106) ->  | J106: =IF('[3]Tasa de Falla'!IY106=0,"",'[3]Tasa de Falla'!IY106) ->  | K106: =IF('[3]Tasa de Falla'!IZ106=0,"",'[3]Tasa de Falla'!IZ106) ->  | L106: =IF('[3]Tasa de Falla'!JA106=0,"",'[3]Tasa de Falla'!JA106) ->  | M106: =IF('[3]Tasa de Falla'!JB106=0,"",'[3]Tasa de Falla'!JB106) ->  | N106: =IF('[3]Tasa de Falla'!JC106=0,"",'[3]Tasa de Falla'!JC106) ->  | O106: =IF('[3]Tasa de Falla'!JD106=0,"",'[3]Tasa de Falla'!JD106) ->  | P106: =IF('[3]Tasa de Falla'!JE106=0,"",'[3]Tasa de Falla'!JE106) ->  | Q106: =IF('[3]Tasa de Falla'!JF106=0,"",'[3]Tasa de Falla'!JF106) ->  | R106: =IF('[3]Tasa de Falla'!JG106=0,"",'[3]Tasa de Falla'!JG106) -> 
C107: ='[3]Tasa de Falla'!C107 -> 90 | D107: ='[3]Tasa de Falla'!D107 -> GÜEMES - MINETTI | E107: ='[3]Tasa de Falla'!E107 -> 132 | F107: ='[3]Tasa de Falla'!F107 -> 36.1 | G107: =IF('[3]Tasa de Falla'!IV107=0,"",'[3]Tasa de Falla'!IV107) -> XXXX | H107: =IF('[3]Tasa de Falla'!IW107=0,"",'[3]Tasa de Falla'!IW107) -> XXXX | I107: =IF('[3]Tasa de Falla'!IX107=0,"",'[3]Tasa de Falla'!IX107) -> XXXX | J107: =IF('[3]Tasa de Falla'!IY107=0,"",'[3]Tasa de Falla'!IY107) -> XXXX | K107: =IF('[3]Tasa de Falla'!IZ107=0,"",'[3]Tasa de Falla'!IZ107) -> XXXX | L107: =IF('[3]Tasa de Falla'!JA107=0,"",'[3]Tasa de Falla'!JA107) -> XXXX | M107: =IF('[3]Tasa de Falla'!JB107=0,"",'[3]Tasa de Falla'!JB107) -> XXXX | N107: =IF('[3]Tasa de Falla'!JC107=0,"",'[3]Tasa de Falla'!JC107) -> XXXX | O107: =IF('[3]Tasa de Falla'!JD107=0,"",'[3]Tasa de Falla'!JD107) -> XXXX | P107: =IF('[3]Tasa de Falla'!JE107=0,"",'[3]Tasa de Falla'!JE107) -> XXXX | Q107: =IF('[3]Tasa de Falla'!JF107=0,"",'[3]Tasa de Falla'!JF107) -> XXXX | R107: =IF('[3]Tasa de Falla'!JG107=0,"",'[3]Tasa de Falla'!JG107) -> XXXX
C108: ='[3]Tasa de Falla'!C108 -> 91 | D108: ='[3]Tasa de Falla'!D108 -> GÜEMES - SALTA NORTE | E108: ='[3]Tasa de Falla'!E108 -> 132 | F108: ='[3]Tasa de Falla'!F108 -> 38.97 | G108: =IF('[3]Tasa de Falla'!IV108=0,"",'[3]Tasa de Falla'!IV108) ->  | H108: =IF('[3]Tasa de Falla'!IW108=0,"",'[3]Tasa de Falla'!IW108) ->  | I108: =IF('[3]Tasa de Falla'!IX108=0,"",'[3]Tasa de Falla'!IX108) ->  | J108: =IF('[3]Tasa de Falla'!IY108=0,"",'[3]Tasa de Falla'!IY108) ->  | K108: =IF('[3]Tasa de Falla'!IZ108=0,"",'[3]Tasa de Falla'!IZ108) ->  | L108: =IF('[3]Tasa de Falla'!JA108=0,"",'[3]Tasa de Falla'!JA108) ->  | M108: =IF('[3]Tasa de Falla'!JB108=0,"",'[3]Tasa de Falla'!JB108) ->  | N108: =IF('[3]Tasa de Falla'!JC108=0,"",'[3]Tasa de Falla'!JC108) ->  | O108: =IF('[3]Tasa de Falla'!JD108=0,"",'[3]Tasa de Falla'!JD108) ->  | P108: =IF('[3]Tasa de Falla'!JE108=0,"",'[3]Tasa de Falla'!JE108) ->  | Q108: =IF('[3]Tasa de Falla'!JF108=0,"",'[3]Tasa de Falla'!JF108) ->  | R108: =IF('[3]Tasa de Falla'!JG108=0,"",'[3]Tasa de Falla'!JG108) -> 
C109: ='[3]Tasa de Falla'!C109 -> 92 | D109: ='[3]Tasa de Falla'!D109 -> BURRUYACU - R. DE LA FRONTERA | E109: ='[3]Tasa de Falla'!E109 -> 132 | F109: ='[3]Tasa de Falla'!F109 -> 99.1 | G109: =IF('[3]Tasa de Falla'!IV109=0,"",'[3]Tasa de Falla'!IV109) ->  | H109: =IF('[3]Tasa de Falla'!IW109=0,"",'[3]Tasa de Falla'!IW109) ->  | I109: =IF('[3]Tasa de Falla'!IX109=0,"",'[3]Tasa de Falla'!IX109) ->  | J109: =IF('[3]Tasa de Falla'!IY109=0,"",'[3]Tasa de Falla'!IY109) ->  | K109: =IF('[3]Tasa de Falla'!IZ109=0,"",'[3]Tasa de Falla'!IZ109) ->  | L109: =IF('[3]Tasa de Falla'!JA109=0,"",'[3]Tasa de Falla'!JA109) -> 1 | M109: =IF('[3]Tasa de Falla'!JB109=0,"",'[3]Tasa de Falla'!JB109) ->  | N109: =IF('[3]Tasa de Falla'!JC109=0,"",'[3]Tasa de Falla'!JC109) ->  | O109: =IF('[3]Tasa de Falla'!JD109=0,"",'[3]Tasa de Falla'!JD109) ->  | P109: =IF('[3]Tasa de Falla'!JE109=0,"",'[3]Tasa de Falla'!JE109) ->  | Q109: =IF('[3]Tasa de Falla'!JF109=0,"",'[3]Tasa de Falla'!JF109) ->  | R109: =IF('[3]Tasa de Falla'!JG109=0,"",'[3]Tasa de Falla'!JG109) -> 
C110: ='[3]Tasa de Falla'!C110 -> 93 | D110: ='[3]Tasa de Falla'!D110 -> R. DE LA FRONTERA - COBOS | E110: ='[3]Tasa de Falla'!E110 -> 132 | F110: ='[3]Tasa de Falla'!F110 -> 130.4 | G110: =IF('[3]Tasa de Falla'!IV110=0,"",'[3]Tasa de Falla'!IV110) ->  | H110: =IF('[3]Tasa de Falla'!IW110=0,"",'[3]Tasa de Falla'!IW110) ->  | I110: =IF('[3]Tasa de Falla'!IX110=0,"",'[3]Tasa de Falla'!IX110) ->  | J110: =IF('[3]Tasa de Falla'!IY110=0,"",'[3]Tasa de Falla'!IY110) ->  | K110: =IF('[3]Tasa de Falla'!IZ110=0,"",'[3]Tasa de Falla'!IZ110) ->  | L110: =IF('[3]Tasa de Falla'!JA110=0,"",'[3]Tasa de Falla'!JA110) -> 1 | M110: =IF('[3]Tasa de Falla'!JB110=0,"",'[3]Tasa de Falla'!JB110) ->  | N110: =IF('[3]Tasa de Falla'!JC110=0,"",'[3]Tasa de Falla'!JC110) ->  | O110: =IF('[3]Tasa de Falla'!JD110=0,"",'[3]Tasa de Falla'!JD110) ->  | P110: =IF('[3]Tasa de Falla'!JE110=0,"",'[3]Tasa de Falla'!JE110) ->  | Q110: =IF('[3]Tasa de Falla'!JF110=0,"",'[3]Tasa de Falla'!JF110) -> 1 | R110: =IF('[3]Tasa de Falla'!JG110=0,"",'[3]Tasa de Falla'!JG110) -> 1
C111: ='[3]Tasa de Falla'!C111 -> 94 | D111: ='[3]Tasa de Falla'!D111 -> J.V. GONZALEZ - APOLINARIO SARAVIA | E111: ='[3]Tasa de Falla'!E111 -> 132 | F111: ='[3]Tasa de Falla'!F111 -> 94 | G111: =IF('[3]Tasa de Falla'!IV111=0,"",'[3]Tasa de Falla'!IV111) ->  | H111: =IF('[3]Tasa de Falla'!IW111=0,"",'[3]Tasa de Falla'!IW111) ->  | I111: =IF('[3]Tasa de Falla'!IX111=0,"",'[3]Tasa de Falla'!IX111) ->  | J111: =IF('[3]Tasa de Falla'!IY111=0,"",'[3]Tasa de Falla'!IY111) ->  | K111: =IF('[3]Tasa de Falla'!IZ111=0,"",'[3]Tasa de Falla'!IZ111) ->  | L111: =IF('[3]Tasa de Falla'!JA111=0,"",'[3]Tasa de Falla'!JA111) ->  | M111: =IF('[3]Tasa de Falla'!JB111=0,"",'[3]Tasa de Falla'!JB111) ->  | N111: =IF('[3]Tasa de Falla'!JC111=0,"",'[3]Tasa de Falla'!JC111) -> 1 | O111: =IF('[3]Tasa de Falla'!JD111=0,"",'[3]Tasa de Falla'!JD111) ->  | P111: =IF('[3]Tasa de Falla'!JE111=0,"",'[3]Tasa de Falla'!JE111) ->  | Q111: =IF('[3]Tasa de Falla'!JF111=0,"",'[3]Tasa de Falla'!JF111) ->  | R111: =IF('[3]Tasa de Falla'!JG111=0,"",'[3]Tasa de Falla'!JG111) -> 
C112: ='[3]Tasa de Falla'!C112 -> 95 | D112: ='[3]Tasa de Falla'!D112 -> ANDALGALA - SAULIL | E112: ='[3]Tasa de Falla'!E112 -> 132 | F112: ='[3]Tasa de Falla'!F112 -> 76 | G112: =IF('[3]Tasa de Falla'!IV112=0,"",'[3]Tasa de Falla'!IV112) ->  | H112: =IF('[3]Tasa de Falla'!IW112=0,"",'[3]Tasa de Falla'!IW112) ->  | I112: =IF('[3]Tasa de Falla'!IX112=0,"",'[3]Tasa de Falla'!IX112) ->  | J112: =IF('[3]Tasa de Falla'!IY112=0,"",'[3]Tasa de Falla'!IY112) ->  | K112: =IF('[3]Tasa de Falla'!IZ112=0,"",'[3]Tasa de Falla'!IZ112) ->  | L112: =IF('[3]Tasa de Falla'!JA112=0,"",'[3]Tasa de Falla'!JA112) ->  | M112: =IF('[3]Tasa de Falla'!JB112=0,"",'[3]Tasa de Falla'!JB112) ->  | N112: =IF('[3]Tasa de Falla'!JC112=0,"",'[3]Tasa de Falla'!JC112) -> 1 | O112: =IF('[3]Tasa de Falla'!JD112=0,"",'[3]Tasa de Falla'!JD112) ->  | P112: =IF('[3]Tasa de Falla'!JE112=0,"",'[3]Tasa de Falla'!JE112) -> 1 | Q112: =IF('[3]Tasa de Falla'!JF112=0,"",'[3]Tasa de Falla'!JF112) ->  | R112: =IF('[3]Tasa de Falla'!JG112=0,"",'[3]Tasa de Falla'!JG112) -> 
C113: ='[3]Tasa de Falla'!C113 -> 96 | D113: ='[3]Tasa de Falla'!D113 -> SANTIAGO OESTE - SANT. SUR - SANT. CENTRO | E113: ='[3]Tasa de Falla'!E113 -> 132 | F113: ='[3]Tasa de Falla'!F113 -> 14.6 | G113: =IF('[3]Tasa de Falla'!IV113=0,"",'[3]Tasa de Falla'!IV113) -> XXXX | H113: =IF('[3]Tasa de Falla'!IW113=0,"",'[3]Tasa de Falla'!IW113) -> XXXX | I113: =IF('[3]Tasa de Falla'!IX113=0,"",'[3]Tasa de Falla'!IX113) -> XXXX | J113: =IF('[3]Tasa de Falla'!IY113=0,"",'[3]Tasa de Falla'!IY113) -> XXXX | K113: =IF('[3]Tasa de Falla'!IZ113=0,"",'[3]Tasa de Falla'!IZ113) -> XXXX | L113: =IF('[3]Tasa de Falla'!JA113=0,"",'[3]Tasa de Falla'!JA113) -> XXXX | M113: =IF('[3]Tasa de Falla'!JB113=0,"",'[3]Tasa de Falla'!JB113) -> XXXX | N113: =IF('[3]Tasa de Falla'!JC113=0,"",'[3]Tasa de Falla'!JC113) -> XXXX | O113: =IF('[3]Tasa de Falla'!JD113=0,"",'[3]Tasa de Falla'!JD113) -> XXXX | P113: =IF('[3]Tasa de Falla'!JE113=0,"",'[3]Tasa de Falla'!JE113) -> XXXX | Q113: =IF('[3]Tasa de Falla'!JF113=0,"",'[3]Tasa de Falla'!JF113) -> XXXX | R113: =IF('[3]Tasa de Falla'!JG113=0,"",'[3]Tasa de Falla'!JG113) -> XXXX
C114: ='[3]Tasa de Falla'!C114 -> 97 | D114: ='[3]Tasa de Falla'!D114 -> SUNCHO CORRAL - QUIMILI | E114: ='[3]Tasa de Falla'!E114 -> 132 | F114: ='[3]Tasa de Falla'!F114 -> 108 | G114: =IF('[3]Tasa de Falla'!IV114=0,"",'[3]Tasa de Falla'!IV114) ->  | H114: =IF('[3]Tasa de Falla'!IW114=0,"",'[3]Tasa de Falla'!IW114) ->  | I114: =IF('[3]Tasa de Falla'!IX114=0,"",'[3]Tasa de Falla'!IX114) ->  | J114: =IF('[3]Tasa de Falla'!IY114=0,"",'[3]Tasa de Falla'!IY114) ->  | K114: =IF('[3]Tasa de Falla'!IZ114=0,"",'[3]Tasa de Falla'!IZ114) ->  | L114: =IF('[3]Tasa de Falla'!JA114=0,"",'[3]Tasa de Falla'!JA114) ->  | M114: =IF('[3]Tasa de Falla'!JB114=0,"",'[3]Tasa de Falla'!JB114) ->  | N114: =IF('[3]Tasa de Falla'!JC114=0,"",'[3]Tasa de Falla'!JC114) ->  | O114: =IF('[3]Tasa de Falla'!JD114=0,"",'[3]Tasa de Falla'!JD114) ->  | P114: =IF('[3]Tasa de Falla'!JE114=0,"",'[3]Tasa de Falla'!JE114) ->  | Q114: =IF('[3]Tasa de Falla'!JF114=0,"",'[3]Tasa de Falla'!JF114) ->  | R114: =IF('[3]Tasa de Falla'!JG114=0,"",'[3]Tasa de Falla'!JG114) -> 
C115: ='[3]Tasa de Falla'!C115 -> 98 | D115: ='[3]Tasa de Falla'!D115 -> EL BRACHO - LA BANDA ESTE | E115: ='[3]Tasa de Falla'!E115 -> 132 | F115: ='[3]Tasa de Falla'!F115 -> 140.9 | G115: =IF('[3]Tasa de Falla'!IV115=0,"",'[3]Tasa de Falla'!IV115) -> 1 | H115: =IF('[3]Tasa de Falla'!IW115=0,"",'[3]Tasa de Falla'!IW115) ->  | I115: =IF('[3]Tasa de Falla'!IX115=0,"",'[3]Tasa de Falla'!IX115) ->  | J115: =IF('[3]Tasa de Falla'!IY115=0,"",'[3]Tasa de Falla'!IY115) ->  | K115: =IF('[3]Tasa de Falla'!IZ115=0,"",'[3]Tasa de Falla'!IZ115) ->  | L115: =IF('[3]Tasa de Falla'!JA115=0,"",'[3]Tasa de Falla'!JA115) ->  | M115: =IF('[3]Tasa de Falla'!JB115=0,"",'[3]Tasa de Falla'!JB115) ->  | N115: =IF('[3]Tasa de Falla'!JC115=0,"",'[3]Tasa de Falla'!JC115) -> 1 | O115: =IF('[3]Tasa de Falla'!JD115=0,"",'[3]Tasa de Falla'!JD115) ->  | P115: =IF('[3]Tasa de Falla'!JE115=0,"",'[3]Tasa de Falla'!JE115) ->  | Q115: =IF('[3]Tasa de Falla'!JF115=0,"",'[3]Tasa de Falla'!JF115) -> 1 | R115: =IF('[3]Tasa de Falla'!JG115=0,"",'[3]Tasa de Falla'!JG115) -> 
C116: ='[3]Tasa de Falla'!C116 -> 99 | D116: ='[3]Tasa de Falla'!D116 -> LA BANDA ESTE - LA BANDA | E116: ='[3]Tasa de Falla'!E116 -> 132 | F116: ='[3]Tasa de Falla'!F116 -> 16.2 | G116: =IF('[3]Tasa de Falla'!IV116=0,"",'[3]Tasa de Falla'!IV116) ->  | H116: =IF('[3]Tasa de Falla'!IW116=0,"",'[3]Tasa de Falla'!IW116) ->  | I116: =IF('[3]Tasa de Falla'!IX116=0,"",'[3]Tasa de Falla'!IX116) ->  | J116: =IF('[3]Tasa de Falla'!IY116=0,"",'[3]Tasa de Falla'!IY116) ->  | K116: =IF('[3]Tasa de Falla'!IZ116=0,"",'[3]Tasa de Falla'!IZ116) ->  | L116: =IF('[3]Tasa de Falla'!JA116=0,"",'[3]Tasa de Falla'!JA116) ->  | M116: =IF('[3]Tasa de Falla'!JB116=0,"",'[3]Tasa de Falla'!JB116) ->  | N116: =IF('[3]Tasa de Falla'!JC116=0,"",'[3]Tasa de Falla'!JC116) ->  | O116: =IF('[3]Tasa de Falla'!JD116=0,"",'[3]Tasa de Falla'!JD116) ->  | P116: =IF('[3]Tasa de Falla'!JE116=0,"",'[3]Tasa de Falla'!JE116) ->  | Q116: =IF('[3]Tasa de Falla'!JF116=0,"",'[3]Tasa de Falla'!JF116) ->  | R116: =IF('[3]Tasa de Falla'!JG116=0,"",'[3]Tasa de Falla'!JG116) -> 
C117: ='[3]Tasa de Falla'!C117 -> 100 | D117: ='[3]Tasa de Falla'!D117 -> TABACAL - PICHANAL | E117: ='[3]Tasa de Falla'!E117 -> 132 | F117: ='[3]Tasa de Falla'!F117 -> 9.04 | G117: =IF('[3]Tasa de Falla'!IV117=0,"",'[3]Tasa de Falla'!IV117) ->  | H117: =IF('[3]Tasa de Falla'!IW117=0,"",'[3]Tasa de Falla'!IW117) ->  | I117: =IF('[3]Tasa de Falla'!IX117=0,"",'[3]Tasa de Falla'!IX117) ->  | J117: =IF('[3]Tasa de Falla'!IY117=0,"",'[3]Tasa de Falla'!IY117) ->  | K117: =IF('[3]Tasa de Falla'!IZ117=0,"",'[3]Tasa de Falla'!IZ117) ->  | L117: =IF('[3]Tasa de Falla'!JA117=0,"",'[3]Tasa de Falla'!JA117) ->  | M117: =IF('[3]Tasa de Falla'!JB117=0,"",'[3]Tasa de Falla'!JB117) ->  | N117: =IF('[3]Tasa de Falla'!JC117=0,"",'[3]Tasa de Falla'!JC117) ->  | O117: =IF('[3]Tasa de Falla'!JD117=0,"",'[3]Tasa de Falla'!JD117) ->  | P117: =IF('[3]Tasa de Falla'!JE117=0,"",'[3]Tasa de Falla'!JE117) -> 1 | Q117: =IF('[3]Tasa de Falla'!JF117=0,"",'[3]Tasa de Falla'!JF117) ->  | R117: =IF('[3]Tasa de Falla'!JG117=0,"",'[3]Tasa de Falla'!JG117) -> 
C118: ='[3]Tasa de Falla'!C118 -> 101 | D118: ='[3]Tasa de Falla'!D118 -> ORAN - TABACAL | E118: ='[3]Tasa de Falla'!E118 -> 132 | F118: ='[3]Tasa de Falla'!F118 -> 10 | G118: =IF('[3]Tasa de Falla'!IV118=0,"",'[3]Tasa de Falla'!IV118) ->  | H118: =IF('[3]Tasa de Falla'!IW118=0,"",'[3]Tasa de Falla'!IW118) ->  | I118: =IF('[3]Tasa de Falla'!IX118=0,"",'[3]Tasa de Falla'!IX118) ->  | J118: =IF('[3]Tasa de Falla'!IY118=0,"",'[3]Tasa de Falla'!IY118) -> 1 | K118: =IF('[3]Tasa de Falla'!IZ118=0,"",'[3]Tasa de Falla'!IZ118) ->  | L118: =IF('[3]Tasa de Falla'!JA118=0,"",'[3]Tasa de Falla'!JA118) ->  | M118: =IF('[3]Tasa de Falla'!JB118=0,"",'[3]Tasa de Falla'!JB118) ->  | N118: =IF('[3]Tasa de Falla'!JC118=0,"",'[3]Tasa de Falla'!JC118) ->  | O118: =IF('[3]Tasa de Falla'!JD118=0,"",'[3]Tasa de Falla'!JD118) -> XXXX | P118: =IF('[3]Tasa de Falla'!JE118=0,"",'[3]Tasa de Falla'!JE118) -> XXXX | Q118: =IF('[3]Tasa de Falla'!JF118=0,"",'[3]Tasa de Falla'!JF118) -> XXXX | R118: =IF('[3]Tasa de Falla'!JG118=0,"",'[3]Tasa de Falla'!JG118) -> XXXX
C119: ='[3]Tasa de Falla'!C119 -> 102 | D119: ='[3]Tasa de Falla'!D119 -> MONTE QUEMADO -COPO - QUIMILI | E119: ='[3]Tasa de Falla'!E119 -> 132 | F119: ='[3]Tasa de Falla'!F119 -> 218 | G119: =IF('[3]Tasa de Falla'!IV119=0,"",'[3]Tasa de Falla'!IV119) ->  | H119: =IF('[3]Tasa de Falla'!IW119=0,"",'[3]Tasa de Falla'!IW119) ->  | I119: =IF('[3]Tasa de Falla'!IX119=0,"",'[3]Tasa de Falla'!IX119) ->  | J119: =IF('[3]Tasa de Falla'!IY119=0,"",'[3]Tasa de Falla'!IY119) ->  | K119: =IF('[3]Tasa de Falla'!IZ119=0,"",'[3]Tasa de Falla'!IZ119) ->  | L119: =IF('[3]Tasa de Falla'!JA119=0,"",'[3]Tasa de Falla'!JA119) ->  | M119: =IF('[3]Tasa de Falla'!JB119=0,"",'[3]Tasa de Falla'!JB119) ->  | N119: =IF('[3]Tasa de Falla'!JC119=0,"",'[3]Tasa de Falla'!JC119) ->  | O119: =IF('[3]Tasa de Falla'!JD119=0,"",'[3]Tasa de Falla'!JD119) ->  | P119: =IF('[3]Tasa de Falla'!JE119=0,"",'[3]Tasa de Falla'!JE119) ->  | Q119: =IF('[3]Tasa de Falla'!JF119=0,"",'[3]Tasa de Falla'!JF119) ->  | R119: =IF('[3]Tasa de Falla'!JG119=0,"",'[3]Tasa de Falla'!JG119) -> 
C120: ='[3]Tasa de Falla'!C120 -> 103 | D120: ='[3]Tasa de Falla'!D120 -> PI. CIRCUNVALACIÓN - LARIOJA N. 1 | E120: ='[3]Tasa de Falla'!E120 -> 132 | F120: ='[3]Tasa de Falla'!F120 -> 16.65 | G120: =IF('[3]Tasa de Falla'!IV120=0,"",'[3]Tasa de Falla'!IV120) ->  | H120: =IF('[3]Tasa de Falla'!IW120=0,"",'[3]Tasa de Falla'!IW120) ->  | I120: =IF('[3]Tasa de Falla'!IX120=0,"",'[3]Tasa de Falla'!IX120) ->  | J120: =IF('[3]Tasa de Falla'!IY120=0,"",'[3]Tasa de Falla'!IY120) ->  | K120: =IF('[3]Tasa de Falla'!IZ120=0,"",'[3]Tasa de Falla'!IZ120) ->  | L120: =IF('[3]Tasa de Falla'!JA120=0,"",'[3]Tasa de Falla'!JA120) ->  | M120: =IF('[3]Tasa de Falla'!JB120=0,"",'[3]Tasa de Falla'!JB120) ->  | N120: =IF('[3]Tasa de Falla'!JC120=0,"",'[3]Tasa de Falla'!JC120) ->  | O120: =IF('[3]Tasa de Falla'!JD120=0,"",'[3]Tasa de Falla'!JD120) ->  | P120: =IF('[3]Tasa de Falla'!JE120=0,"",'[3]Tasa de Falla'!JE120) ->  | Q120: =IF('[3]Tasa de Falla'!JF120=0,"",'[3]Tasa de Falla'!JF120) -> 1 | R120: =IF('[3]Tasa de Falla'!JG120=0,"",'[3]Tasa de Falla'!JG120) -> 
C121: ='[3]Tasa de Falla'!C121 -> 104 | D121: ='[3]Tasa de Falla'!D121 -> PATQUIA NONOGASTA 132 1 | E121: ='[3]Tasa de Falla'!E121 -> 132 | F121: ='[3]Tasa de Falla'!F121 -> 108.3 | G121: =IF('[3]Tasa de Falla'!IV121=0,"",'[3]Tasa de Falla'!IV121) ->  | H121: =IF('[3]Tasa de Falla'!IW121=0,"",'[3]Tasa de Falla'!IW121) ->  | I121: =IF('[3]Tasa de Falla'!IX121=0,"",'[3]Tasa de Falla'!IX121) ->  | J121: =IF('[3]Tasa de Falla'!IY121=0,"",'[3]Tasa de Falla'!IY121) ->  | K121: =IF('[3]Tasa de Falla'!IZ121=0,"",'[3]Tasa de Falla'!IZ121) ->  | L121: =IF('[3]Tasa de Falla'!JA121=0,"",'[3]Tasa de Falla'!JA121) ->  | M121: =IF('[3]Tasa de Falla'!JB121=0,"",'[3]Tasa de Falla'!JB121) ->  | N121: =IF('[3]Tasa de Falla'!JC121=0,"",'[3]Tasa de Falla'!JC121) ->  | O121: =IF('[3]Tasa de Falla'!JD121=0,"",'[3]Tasa de Falla'!JD121) ->  | P121: =IF('[3]Tasa de Falla'!JE121=0,"",'[3]Tasa de Falla'!JE121) ->  | Q121: =IF('[3]Tasa de Falla'!JF121=0,"",'[3]Tasa de Falla'!JF121) ->  | R121: =IF('[3]Tasa de Falla'!JG121=0,"",'[3]Tasa de Falla'!JG121) -> 
C122: ='[3]Tasa de Falla'!C122 -> 105 | D122: ='[3]Tasa de Falla'!D122 -> NONOGASTA - VILLA UNION 132 1 | E122: ='[3]Tasa de Falla'!E122 -> 132 | F122: ='[3]Tasa de Falla'!F122 -> 82.1 | G122: =IF('[3]Tasa de Falla'!IV122=0,"",'[3]Tasa de Falla'!IV122) ->  | H122: =IF('[3]Tasa de Falla'!IW122=0,"",'[3]Tasa de Falla'!IW122) ->  | I122: =IF('[3]Tasa de Falla'!IX122=0,"",'[3]Tasa de Falla'!IX122) ->  | J122: =IF('[3]Tasa de Falla'!IY122=0,"",'[3]Tasa de Falla'!IY122) ->  | K122: =IF('[3]Tasa de Falla'!IZ122=0,"",'[3]Tasa de Falla'!IZ122) ->  | L122: =IF('[3]Tasa de Falla'!JA122=0,"",'[3]Tasa de Falla'!JA122) ->  | M122: =IF('[3]Tasa de Falla'!JB122=0,"",'[3]Tasa de Falla'!JB122) ->  | N122: =IF('[3]Tasa de Falla'!JC122=0,"",'[3]Tasa de Falla'!JC122) ->  | O122: =IF('[3]Tasa de Falla'!JD122=0,"",'[3]Tasa de Falla'!JD122) ->  | P122: =IF('[3]Tasa de Falla'!JE122=0,"",'[3]Tasa de Falla'!JE122) ->  | Q122: =IF('[3]Tasa de Falla'!JF122=0,"",'[3]Tasa de Falla'!JF122) ->  | R122: =IF('[3]Tasa de Falla'!JG122=0,"",'[3]Tasa de Falla'!JG122) -> 2
C123: ='[3]Tasa de Falla'!C123 -> 106 | D123: ='[3]Tasa de Falla'!D123 -> ARAUCO - AIMOGASTA 132 1 | E123: ='[3]Tasa de Falla'!E123 -> 132 | F123: ='[3]Tasa de Falla'!F123 -> 20 | G123: =IF('[3]Tasa de Falla'!IV123=0,"",'[3]Tasa de Falla'!IV123) ->  | H123: =IF('[3]Tasa de Falla'!IW123=0,"",'[3]Tasa de Falla'!IW123) ->  | I123: =IF('[3]Tasa de Falla'!IX123=0,"",'[3]Tasa de Falla'!IX123) ->  | J123: =IF('[3]Tasa de Falla'!IY123=0,"",'[3]Tasa de Falla'!IY123) ->  | K123: =IF('[3]Tasa de Falla'!IZ123=0,"",'[3]Tasa de Falla'!IZ123) ->  | L123: =IF('[3]Tasa de Falla'!JA123=0,"",'[3]Tasa de Falla'!JA123) ->  | M123: =IF('[3]Tasa de Falla'!JB123=0,"",'[3]Tasa de Falla'!JB123) ->  | N123: =IF('[3]Tasa de Falla'!JC123=0,"",'[3]Tasa de Falla'!JC123) ->  | O123: =IF('[3]Tasa de Falla'!JD123=0,"",'[3]Tasa de Falla'!JD123) ->  | P123: =IF('[3]Tasa de Falla'!JE123=0,"",'[3]Tasa de Falla'!JE123) ->  | Q123: =IF('[3]Tasa de Falla'!JF123=0,"",'[3]Tasa de Falla'!JF123) ->  | R123: =IF('[3]Tasa de Falla'!JG123=0,"",'[3]Tasa de Falla'!JG123) -> 
C124: ='[3]Tasa de Falla'!C124 -> 107 | D124: ='[3]Tasa de Falla'!D124 -> PATQUIA - CHAMICAL 132 1 | E124: ='[3]Tasa de Falla'!E124 -> 132 | F124: ='[3]Tasa de Falla'!F124 -> 67.4 | G124: =IF('[3]Tasa de Falla'!IV124=0,"",'[3]Tasa de Falla'!IV124) ->  | H124: =IF('[3]Tasa de Falla'!IW124=0,"",'[3]Tasa de Falla'!IW124) ->  | I124: =IF('[3]Tasa de Falla'!IX124=0,"",'[3]Tasa de Falla'!IX124) ->  | J124: =IF('[3]Tasa de Falla'!IY124=0,"",'[3]Tasa de Falla'!IY124) ->  | K124: =IF('[3]Tasa de Falla'!IZ124=0,"",'[3]Tasa de Falla'!IZ124) ->  | L124: =IF('[3]Tasa de Falla'!JA124=0,"",'[3]Tasa de Falla'!JA124) ->  | M124: =IF('[3]Tasa de Falla'!JB124=0,"",'[3]Tasa de Falla'!JB124) ->  | N124: =IF('[3]Tasa de Falla'!JC124=0,"",'[3]Tasa de Falla'!JC124) ->  | O124: =IF('[3]Tasa de Falla'!JD124=0,"",'[3]Tasa de Falla'!JD124) ->  | P124: =IF('[3]Tasa de Falla'!JE124=0,"",'[3]Tasa de Falla'!JE124) -> 2 | Q124: =IF('[3]Tasa de Falla'!JF124=0,"",'[3]Tasa de Falla'!JF124) ->  | R124: =IF('[3]Tasa de Falla'!JG124=0,"",'[3]Tasa de Falla'!JG124) -> 
C125: ='[3]Tasa de Falla'!C125 -> 108 | D125: ='[3]Tasa de Falla'!D125 -> LA RIOJA - ARAUCO 132 1 | E125: ='[3]Tasa de Falla'!E125 -> 132 | F125: ='[3]Tasa de Falla'!F125 -> 84.3 | G125: =IF('[3]Tasa de Falla'!IV125=0,"",'[3]Tasa de Falla'!IV125) ->  | H125: =IF('[3]Tasa de Falla'!IW125=0,"",'[3]Tasa de Falla'!IW125) -> 1 | I125: =IF('[3]Tasa de Falla'!IX125=0,"",'[3]Tasa de Falla'!IX125) ->  | J125: =IF('[3]Tasa de Falla'!IY125=0,"",'[3]Tasa de Falla'!IY125) ->  | K125: =IF('[3]Tasa de Falla'!IZ125=0,"",'[3]Tasa de Falla'!IZ125) ->  | L125: =IF('[3]Tasa de Falla'!JA125=0,"",'[3]Tasa de Falla'!JA125) ->  | M125: =IF('[3]Tasa de Falla'!JB125=0,"",'[3]Tasa de Falla'!JB125) ->  | N125: =IF('[3]Tasa de Falla'!JC125=0,"",'[3]Tasa de Falla'!JC125) ->  | O125: =IF('[3]Tasa de Falla'!JD125=0,"",'[3]Tasa de Falla'!JD125) -> 1 | P125: =IF('[3]Tasa de Falla'!JE125=0,"",'[3]Tasa de Falla'!JE125) -> 5 | Q125: =IF('[3]Tasa de Falla'!JF125=0,"",'[3]Tasa de Falla'!JF125) -> 1 | R125: =IF('[3]Tasa de Falla'!JG125=0,"",'[3]Tasa de Falla'!JG125) -> 
C126: ='[3]Tasa de Falla'!C126 -> 109 | D126: ='[3]Tasa de Falla'!D126 -> PI PATQUIA - PATQUIA 132 1 | E126: ='[3]Tasa de Falla'!E126 -> 132 | F126: ='[3]Tasa de Falla'!F126 -> 58.65 | G126: =IF('[3]Tasa de Falla'!IV126=0,"",'[3]Tasa de Falla'!IV126) ->  | H126: =IF('[3]Tasa de Falla'!IW126=0,"",'[3]Tasa de Falla'!IW126) ->  | I126: =IF('[3]Tasa de Falla'!IX126=0,"",'[3]Tasa de Falla'!IX126) ->  | J126: =IF('[3]Tasa de Falla'!IY126=0,"",'[3]Tasa de Falla'!IY126) ->  | K126: =IF('[3]Tasa de Falla'!IZ126=0,"",'[3]Tasa de Falla'!IZ126) ->  | L126: =IF('[3]Tasa de Falla'!JA126=0,"",'[3]Tasa de Falla'!JA126) ->  | M126: =IF('[3]Tasa de Falla'!JB126=0,"",'[3]Tasa de Falla'!JB126) ->  | N126: =IF('[3]Tasa de Falla'!JC126=0,"",'[3]Tasa de Falla'!JC126) ->  | O126: =IF('[3]Tasa de Falla'!JD126=0,"",'[3]Tasa de Falla'!JD126) ->  | P126: =IF('[3]Tasa de Falla'!JE126=0,"",'[3]Tasa de Falla'!JE126) ->  | Q126: =IF('[3]Tasa de Falla'!JF126=0,"",'[3]Tasa de Falla'!JF126) ->  | R126: =IF('[3]Tasa de Falla'!JG126=0,"",'[3]Tasa de Falla'!JG126) -> 
C127: ='[3]Tasa de Falla'!C127 -> 110 | D127: ='[3]Tasa de Falla'!D127 -> RIO HONDO - TERMAS NORTE | E127: ='[3]Tasa de Falla'!E127 -> 132 | F127: ='[3]Tasa de Falla'!F127 -> 5.8 | G127: =IF('[3]Tasa de Falla'!IV127=0,"",'[3]Tasa de Falla'!IV127) ->  | H127: =IF('[3]Tasa de Falla'!IW127=0,"",'[3]Tasa de Falla'!IW127) ->  | I127: =IF('[3]Tasa de Falla'!IX127=0,"",'[3]Tasa de Falla'!IX127) ->  | J127: =IF('[3]Tasa de Falla'!IY127=0,"",'[3]Tasa de Falla'!IY127) ->  | K127: =IF('[3]Tasa de Falla'!IZ127=0,"",'[3]Tasa de Falla'!IZ127) ->  | L127: =IF('[3]Tasa de Falla'!JA127=0,"",'[3]Tasa de Falla'!JA127) ->  | M127: =IF('[3]Tasa de Falla'!JB127=0,"",'[3]Tasa de Falla'!JB127) ->  | N127: =IF('[3]Tasa de Falla'!JC127=0,"",'[3]Tasa de Falla'!JC127) ->  | O127: =IF('[3]Tasa de Falla'!JD127=0,"",'[3]Tasa de Falla'!JD127) ->  | P127: =IF('[3]Tasa de Falla'!JE127=0,"",'[3]Tasa de Falla'!JE127) ->  | Q127: =IF('[3]Tasa de Falla'!JF127=0,"",'[3]Tasa de Falla'!JF127) ->  | R127: =IF('[3]Tasa de Falla'!JG127=0,"",'[3]Tasa de Falla'!JG127) -> 
C128: ='[3]Tasa de Falla'!C128 -> 111 | D128: ='[3]Tasa de Falla'!D128 -> EL BRACHO - TETRMAS NORTE | E128: ='[3]Tasa de Falla'!E128 -> 132 | F128: ='[3]Tasa de Falla'!F128 -> 78.4 | G128: =IF('[3]Tasa de Falla'!IV128=0,"",'[3]Tasa de Falla'!IV128) ->  | H128: =IF('[3]Tasa de Falla'!IW128=0,"",'[3]Tasa de Falla'!IW128) ->  | I128: =IF('[3]Tasa de Falla'!IX128=0,"",'[3]Tasa de Falla'!IX128) ->  | J128: =IF('[3]Tasa de Falla'!IY128=0,"",'[3]Tasa de Falla'!IY128) ->  | K128: =IF('[3]Tasa de Falla'!IZ128=0,"",'[3]Tasa de Falla'!IZ128) -> 1 | L128: =IF('[3]Tasa de Falla'!JA128=0,"",'[3]Tasa de Falla'!JA128) -> 1 | M128: =IF('[3]Tasa de Falla'!JB128=0,"",'[3]Tasa de Falla'!JB128) ->  | N128: =IF('[3]Tasa de Falla'!JC128=0,"",'[3]Tasa de Falla'!JC128) ->  | O128: =IF('[3]Tasa de Falla'!JD128=0,"",'[3]Tasa de Falla'!JD128) ->  | P128: =IF('[3]Tasa de Falla'!JE128=0,"",'[3]Tasa de Falla'!JE128) ->  | Q128: =IF('[3]Tasa de Falla'!JF128=0,"",'[3]Tasa de Falla'!JF128) ->  | R128: =IF('[3]Tasa de Falla'!JG128=0,"",'[3]Tasa de Falla'!JG128) -> 
C129: ='[3]Tasa de Falla'!C129 -> 112 | D129: ='[3]Tasa de Falla'!D129 -> PI 150 NORTE - LA RIOJA ESTE | E129: ='[3]Tasa de Falla'!E129 -> 132 | F129: ='[3]Tasa de Falla'!F129 -> 4 | G129: =IF('[3]Tasa de Falla'!IV129=0,"",'[3]Tasa de Falla'!IV129) ->  | H129: =IF('[3]Tasa de Falla'!IW129=0,"",'[3]Tasa de Falla'!IW129) ->  | I129: =IF('[3]Tasa de Falla'!IX129=0,"",'[3]Tasa de Falla'!IX129) ->  | J129: =IF('[3]Tasa de Falla'!IY129=0,"",'[3]Tasa de Falla'!IY129) ->  | K129: =IF('[3]Tasa de Falla'!IZ129=0,"",'[3]Tasa de Falla'!IZ129) ->  | L129: =IF('[3]Tasa de Falla'!JA129=0,"",'[3]Tasa de Falla'!JA129) ->  | M129: =IF('[3]Tasa de Falla'!JB129=0,"",'[3]Tasa de Falla'!JB129) ->  | N129: =IF('[3]Tasa de Falla'!JC129=0,"",'[3]Tasa de Falla'!JC129) ->  | O129: =IF('[3]Tasa de Falla'!JD129=0,"",'[3]Tasa de Falla'!JD129) ->  | P129: =IF('[3]Tasa de Falla'!JE129=0,"",'[3]Tasa de Falla'!JE129) ->  | Q129: =IF('[3]Tasa de Falla'!JF129=0,"",'[3]Tasa de Falla'!JF129) ->  | R129: =IF('[3]Tasa de Falla'!JG129=0,"",'[3]Tasa de Falla'!JG129) -> 
C130: ='[3]Tasa de Falla'!C130 -> 113 | D130: ='[3]Tasa de Falla'!D130 -> PI 150 SUR - LA RIOJA ESTE | E130: ='[3]Tasa de Falla'!E130 -> 132 | F130: ='[3]Tasa de Falla'!F130 -> 4 | G130: =IF('[3]Tasa de Falla'!IV130=0,"",'[3]Tasa de Falla'!IV130) ->  | H130: =IF('[3]Tasa de Falla'!IW130=0,"",'[3]Tasa de Falla'!IW130) ->  | I130: =IF('[3]Tasa de Falla'!IX130=0,"",'[3]Tasa de Falla'!IX130) ->  | J130: =IF('[3]Tasa de Falla'!IY130=0,"",'[3]Tasa de Falla'!IY130) ->  | K130: =IF('[3]Tasa de Falla'!IZ130=0,"",'[3]Tasa de Falla'!IZ130) ->  | L130: =IF('[3]Tasa de Falla'!JA130=0,"",'[3]Tasa de Falla'!JA130) ->  | M130: =IF('[3]Tasa de Falla'!JB130=0,"",'[3]Tasa de Falla'!JB130) ->  | N130: =IF('[3]Tasa de Falla'!JC130=0,"",'[3]Tasa de Falla'!JC130) ->  | O130: =IF('[3]Tasa de Falla'!JD130=0,"",'[3]Tasa de Falla'!JD130) ->  | P130: =IF('[3]Tasa de Falla'!JE130=0,"",'[3]Tasa de Falla'!JE130) ->  | Q130: =IF('[3]Tasa de Falla'!JF130=0,"",'[3]Tasa de Falla'!JF130) ->  | R130: =IF('[3]Tasa de Falla'!JG130=0,"",'[3]Tasa de Falla'!JG130) -> 
C131: ='[3]Tasa de Falla'!C131 -> 114 | D131: ='[3]Tasa de Falla'!D131 -> QUIMILI - CAMPO GALLO 132 1 | E131: ='[3]Tasa de Falla'!E131 -> 132 | F131: ='[3]Tasa de Falla'!F131 -> 140 | G131: =IF('[3]Tasa de Falla'!IV131=0,"",'[3]Tasa de Falla'!IV131) ->  | H131: =IF('[3]Tasa de Falla'!IW131=0,"",'[3]Tasa de Falla'!IW131) ->  | I131: =IF('[3]Tasa de Falla'!IX131=0,"",'[3]Tasa de Falla'!IX131) ->  | J131: =IF('[3]Tasa de Falla'!IY131=0,"",'[3]Tasa de Falla'!IY131) ->  | K131: =IF('[3]Tasa de Falla'!IZ131=0,"",'[3]Tasa de Falla'!IZ131) ->  | L131: =IF('[3]Tasa de Falla'!JA131=0,"",'[3]Tasa de Falla'!JA131) ->  | M131: =IF('[3]Tasa de Falla'!JB131=0,"",'[3]Tasa de Falla'!JB131) ->  | N131: =IF('[3]Tasa de Falla'!JC131=0,"",'[3]Tasa de Falla'!JC131) ->  | O131: =IF('[3]Tasa de Falla'!JD131=0,"",'[3]Tasa de Falla'!JD131) ->  | P131: =IF('[3]Tasa de Falla'!JE131=0,"",'[3]Tasa de Falla'!JE131) ->  | Q131: =IF('[3]Tasa de Falla'!JF131=0,"",'[3]Tasa de Falla'!JF131) -> 1 | R131: =IF('[3]Tasa de Falla'!JG131=0,"",'[3]Tasa de Falla'!JG131) -> 
C132: ='[3]Tasa de Falla'!C132 -> 115 | D132: ='[3]Tasa de Falla'!D132 -> CAMPO GALLO - COPO 132 1 | E132: ='[3]Tasa de Falla'!E132 -> 132 | F132: ='[3]Tasa de Falla'!F132 -> 90 | G132: =IF('[3]Tasa de Falla'!IV132=0,"",'[3]Tasa de Falla'!IV132) ->  | H132: =IF('[3]Tasa de Falla'!IW132=0,"",'[3]Tasa de Falla'!IW132) ->  | I132: =IF('[3]Tasa de Falla'!IX132=0,"",'[3]Tasa de Falla'!IX132) ->  | J132: =IF('[3]Tasa de Falla'!IY132=0,"",'[3]Tasa de Falla'!IY132) ->  | K132: =IF('[3]Tasa de Falla'!IZ132=0,"",'[3]Tasa de Falla'!IZ132) ->  | L132: =IF('[3]Tasa de Falla'!JA132=0,"",'[3]Tasa de Falla'!JA132) ->  | M132: =IF('[3]Tasa de Falla'!JB132=0,"",'[3]Tasa de Falla'!JB132) ->  | N132: =IF('[3]Tasa de Falla'!JC132=0,"",'[3]Tasa de Falla'!JC132) ->  | O132: =IF('[3]Tasa de Falla'!JD132=0,"",'[3]Tasa de Falla'!JD132) ->  | P132: =IF('[3]Tasa de Falla'!JE132=0,"",'[3]Tasa de Falla'!JE132) ->  | Q132: =IF('[3]Tasa de Falla'!JF132=0,"",'[3]Tasa de Falla'!JF132) ->  | R132: =IF('[3]Tasa de Falla'!JG132=0,"",'[3]Tasa de Falla'!JG132) -> 
C133: ='[3]Tasa de Falla'!C133 -> 116 | D133: ='[3]Tasa de Falla'!D133 -> PICHANAL - SENDA HACHADA 132 1 | E133: ='[3]Tasa de Falla'!E133 -> 132 | F133: ='[3]Tasa de Falla'!F133 -> 46.5 | G133: =IF('[3]Tasa de Falla'!IV133=0,"",'[3]Tasa de Falla'!IV133) ->  | H133: =IF('[3]Tasa de Falla'!IW133=0,"",'[3]Tasa de Falla'!IW133) ->  | I133: =IF('[3]Tasa de Falla'!IX133=0,"",'[3]Tasa de Falla'!IX133) ->  | J133: =IF('[3]Tasa de Falla'!IY133=0,"",'[3]Tasa de Falla'!IY133) ->  | K133: =IF('[3]Tasa de Falla'!IZ133=0,"",'[3]Tasa de Falla'!IZ133) ->  | L133: =IF('[3]Tasa de Falla'!JA133=0,"",'[3]Tasa de Falla'!JA133) ->  | M133: =IF('[3]Tasa de Falla'!JB133=0,"",'[3]Tasa de Falla'!JB133) ->  | N133: =IF('[3]Tasa de Falla'!JC133=0,"",'[3]Tasa de Falla'!JC133) ->  | O133: =IF('[3]Tasa de Falla'!JD133=0,"",'[3]Tasa de Falla'!JD133) ->  | P133: =IF('[3]Tasa de Falla'!JE133=0,"",'[3]Tasa de Falla'!JE133) ->  | Q133: =IF('[3]Tasa de Falla'!JF133=0,"",'[3]Tasa de Falla'!JF133) ->  | R133: =IF('[3]Tasa de Falla'!JG133=0,"",'[3]Tasa de Falla'!JG133) -> 
C134: ='[3]Tasa de Falla'!C134 -> 117 | D134: ='[3]Tasa de Falla'!D134 -> SENDA HACHADA - TARTAGAL 132 1 | E134: ='[3]Tasa de Falla'!E134 -> 132 | F134: ='[3]Tasa de Falla'!F134 -> 58.5 | G134: =IF('[3]Tasa de Falla'!IV134=0,"",'[3]Tasa de Falla'!IV134) ->  | H134: =IF('[3]Tasa de Falla'!IW134=0,"",'[3]Tasa de Falla'!IW134) ->  | I134: =IF('[3]Tasa de Falla'!IX134=0,"",'[3]Tasa de Falla'!IX134) ->  | J134: =IF('[3]Tasa de Falla'!IY134=0,"",'[3]Tasa de Falla'!IY134) ->  | K134: =IF('[3]Tasa de Falla'!IZ134=0,"",'[3]Tasa de Falla'!IZ134) ->  | L134: =IF('[3]Tasa de Falla'!JA134=0,"",'[3]Tasa de Falla'!JA134) ->  | M134: =IF('[3]Tasa de Falla'!JB134=0,"",'[3]Tasa de Falla'!JB134) ->  | N134: =IF('[3]Tasa de Falla'!JC134=0,"",'[3]Tasa de Falla'!JC134) ->  | O134: =IF('[3]Tasa de Falla'!JD134=0,"",'[3]Tasa de Falla'!JD134) ->  | P134: =IF('[3]Tasa de Falla'!JE134=0,"",'[3]Tasa de Falla'!JE134) ->  | Q134: =IF('[3]Tasa de Falla'!JF134=0,"",'[3]Tasa de Falla'!JF134) ->  | R134: =IF('[3]Tasa de Falla'!JG134=0,"",'[3]Tasa de Falla'!JG134) -> 3
C135: ='[3]Tasa de Falla'!C135 -> 118 | D135: ='[3]Tasa de Falla'!D135 -> ESTATICA - INDEPENDENCIA.TUC. 132 2 | E135: ='[3]Tasa de Falla'!E135 -> 132 | F135: ='[3]Tasa de Falla'!F135 -> 3.1 | G135: =IF('[3]Tasa de Falla'!IV135=0,"",'[3]Tasa de Falla'!IV135) -> XXXX | H135: =IF('[3]Tasa de Falla'!IW135=0,"",'[3]Tasa de Falla'!IW135) -> XXXX | I135: =IF('[3]Tasa de Falla'!IX135=0,"",'[3]Tasa de Falla'!IX135) ->  | J135: =IF('[3]Tasa de Falla'!IY135=0,"",'[3]Tasa de Falla'!IY135) ->  | K135: =IF('[3]Tasa de Falla'!IZ135=0,"",'[3]Tasa de Falla'!IZ135) -> 1 | L135: =IF('[3]Tasa de Falla'!JA135=0,"",'[3]Tasa de Falla'!JA135) ->  | M135: =IF('[3]Tasa de Falla'!JB135=0,"",'[3]Tasa de Falla'!JB135) ->  | N135: =IF('[3]Tasa de Falla'!JC135=0,"",'[3]Tasa de Falla'!JC135) ->  | O135: =IF('[3]Tasa de Falla'!JD135=0,"",'[3]Tasa de Falla'!JD135) ->  | P135: =IF('[3]Tasa de Falla'!JE135=0,"",'[3]Tasa de Falla'!JE135) ->  | Q135: =IF('[3]Tasa de Falla'!JF135=0,"",'[3]Tasa de Falla'!JF135) ->  | R135: =IF('[3]Tasa de Falla'!JG135=0,"",'[3]Tasa de Falla'!JG135) -> 
C136: ='[3]Tasa de Falla'!C136 -> 119 | D136: ='[3]Tasa de Falla'!D136 -> SENDA HACHADA - DRAGONES 132 1 | E136: ='[3]Tasa de Falla'!E136 -> 132 | F136: ='[3]Tasa de Falla'!F136 -> 65 | G136: =IF('[3]Tasa de Falla'!IV136=0,"",'[3]Tasa de Falla'!IV136) -> XXXX | H136: =IF('[3]Tasa de Falla'!IW136=0,"",'[3]Tasa de Falla'!IW136) -> XXXX | I136: =IF('[3]Tasa de Falla'!IX136=0,"",'[3]Tasa de Falla'!IX136) -> XXXX | J136: =IF('[3]Tasa de Falla'!IY136=0,"",'[3]Tasa de Falla'!IY136) -> XXXX | K136: =IF('[3]Tasa de Falla'!IZ136=0,"",'[3]Tasa de Falla'!IZ136) -> XXXX | L136: =IF('[3]Tasa de Falla'!JA136=0,"",'[3]Tasa de Falla'!JA136) -> XXXX | M136: =IF('[3]Tasa de Falla'!JB136=0,"",'[3]Tasa de Falla'!JB136) -> XXXX | N136: =IF('[3]Tasa de Falla'!JC136=0,"",'[3]Tasa de Falla'!JC136) -> XXXX | O136: =IF('[3]Tasa de Falla'!JD136=0,"",'[3]Tasa de Falla'!JD136) -> XXXX | P136: =IF('[3]Tasa de Falla'!JE136=0,"",'[3]Tasa de Falla'!JE136) -> XXXX | Q136: =IF('[3]Tasa de Falla'!JF136=0,"",'[3]Tasa de Falla'!JF136) -> XXXX | R136: =IF('[3]Tasa de Falla'!JG136=0,"",'[3]Tasa de Falla'!JG136) -> XXXX
C137: ='[3]Tasa de Falla'!C137 -> 120 | D137: ='[3]Tasa de Falla'!D137 -> COBOS - SALTA ESTE 132 1 | E137: ='[3]Tasa de Falla'!E137 -> 132 | F137: ='[3]Tasa de Falla'!F137 -> 45.6 | G137: =IF('[3]Tasa de Falla'!IV137=0,"",'[3]Tasa de Falla'!IV137) -> XXXX | H137: =IF('[3]Tasa de Falla'!IW137=0,"",'[3]Tasa de Falla'!IW137) -> XXXX | I137: =IF('[3]Tasa de Falla'!IX137=0,"",'[3]Tasa de Falla'!IX137) ->  | J137: =IF('[3]Tasa de Falla'!IY137=0,"",'[3]Tasa de Falla'!IY137) -> 1 | K137: =IF('[3]Tasa de Falla'!IZ137=0,"",'[3]Tasa de Falla'!IZ137) ->  | L137: =IF('[3]Tasa de Falla'!JA137=0,"",'[3]Tasa de Falla'!JA137) ->  | M137: =IF('[3]Tasa de Falla'!JB137=0,"",'[3]Tasa de Falla'!JB137) ->  | N137: =IF('[3]Tasa de Falla'!JC137=0,"",'[3]Tasa de Falla'!JC137) ->  | O137: =IF('[3]Tasa de Falla'!JD137=0,"",'[3]Tasa de Falla'!JD137) ->  | P137: =IF('[3]Tasa de Falla'!JE137=0,"",'[3]Tasa de Falla'!JE137) ->  | Q137: =IF('[3]Tasa de Falla'!JF137=0,"",'[3]Tasa de Falla'!JF137) ->  | R137: =IF('[3]Tasa de Falla'!JG137=0,"",'[3]Tasa de Falla'!JG137) -> 1
C138: ='[3]Tasa de Falla'!C138 -> 121 | D138: ='[3]Tasa de Falla'!D138 -> SANTIAGO - SANTIAGO SUR | E138: ='[3]Tasa de Falla'!E138 -> 132 | F138: ='[3]Tasa de Falla'!F138 -> 8.4 | G138: =IF('[3]Tasa de Falla'!IV138=0,"",'[3]Tasa de Falla'!IV138) -> XXXX | H138: =IF('[3]Tasa de Falla'!IW138=0,"",'[3]Tasa de Falla'!IW138) -> XXXX | I138: =IF('[3]Tasa de Falla'!IX138=0,"",'[3]Tasa de Falla'!IX138) -> XXXX | J138: =IF('[3]Tasa de Falla'!IY138=0,"",'[3]Tasa de Falla'!IY138) ->  | K138: =IF('[3]Tasa de Falla'!IZ138=0,"",'[3]Tasa de Falla'!IZ138) ->  | L138: =IF('[3]Tasa de Falla'!JA138=0,"",'[3]Tasa de Falla'!JA138) ->  | M138: =IF('[3]Tasa de Falla'!JB138=0,"",'[3]Tasa de Falla'!JB138) ->  | N138: =IF('[3]Tasa de Falla'!JC138=0,"",'[3]Tasa de Falla'!JC138) -> 1 | O138: =IF('[3]Tasa de Falla'!JD138=0,"",'[3]Tasa de Falla'!JD138) ->  | P138: =IF('[3]Tasa de Falla'!JE138=0,"",'[3]Tasa de Falla'!JE138) ->  | Q138: =IF('[3]Tasa de Falla'!JF138=0,"",'[3]Tasa de Falla'!JF138) -> 1 | R138: =IF('[3]Tasa de Falla'!JG138=0,"",'[3]Tasa de Falla'!JG138) -> 
C139: ='[3]Tasa de Falla'!C139 -> 122 | D139: ='[3]Tasa de Falla'!D139 -> SANTIAGO OESTE - SANTIAGO | E139: ='[3]Tasa de Falla'!E139 -> 132 | F139: ='[3]Tasa de Falla'!F139 -> 8.4 | G139: =IF('[3]Tasa de Falla'!IV139=0,"",'[3]Tasa de Falla'!IV139) -> XXXX | H139: =IF('[3]Tasa de Falla'!IW139=0,"",'[3]Tasa de Falla'!IW139) -> XXXX | I139: =IF('[3]Tasa de Falla'!IX139=0,"",'[3]Tasa de Falla'!IX139) -> XXXX | J139: =IF('[3]Tasa de Falla'!IY139=0,"",'[3]Tasa de Falla'!IY139) -> XXXX | K139: =IF('[3]Tasa de Falla'!IZ139=0,"",'[3]Tasa de Falla'!IZ139) -> XXXX | L139: =IF('[3]Tasa de Falla'!JA139=0,"",'[3]Tasa de Falla'!JA139) -> XXXX | M139: =IF('[3]Tasa de Falla'!JB139=0,"",'[3]Tasa de Falla'!JB139) -> XXXX | N139: =IF('[3]Tasa de Falla'!JC139=0,"",'[3]Tasa de Falla'!JC139) -> XXXX | O139: =IF('[3]Tasa de Falla'!JD139=0,"",'[3]Tasa de Falla'!JD139) -> XXXX | P139: =IF('[3]Tasa de Falla'!JE139=0,"",'[3]Tasa de Falla'!JE139) -> XXXX | Q139: =IF('[3]Tasa de Falla'!JF139=0,"",'[3]Tasa de Falla'!JF139) -> XXXX | R139: =IF('[3]Tasa de Falla'!JG139=0,"",'[3]Tasa de Falla'!JG139) -> XXXX
C140: ='[3]Tasa de Falla'!C140 -> 123 | D140: ='[3]Tasa de Falla'!D140 -> LA BANDA - MISQUI MAYU II - SANTIAGO ESTE | E140: ='[3]Tasa de Falla'!E140 -> 132 | F140: ='[3]Tasa de Falla'!F140 -> 4.92 | G140: =IF('[3]Tasa de Falla'!IV140=0,"",'[3]Tasa de Falla'!IV140) -> XXXX | H140: =IF('[3]Tasa de Falla'!IW140=0,"",'[3]Tasa de Falla'!IW140) -> XXXX | I140: =IF('[3]Tasa de Falla'!IX140=0,"",'[3]Tasa de Falla'!IX140) -> XXXX | J140: =IF('[3]Tasa de Falla'!IY140=0,"",'[3]Tasa de Falla'!IY140) ->  | K140: =IF('[3]Tasa de Falla'!IZ140=0,"",'[3]Tasa de Falla'!IZ140) ->  | L140: =IF('[3]Tasa de Falla'!JA140=0,"",'[3]Tasa de Falla'!JA140) ->  | M140: =IF('[3]Tasa de Falla'!JB140=0,"",'[3]Tasa de Falla'!JB140) -> 1 | N140: =IF('[3]Tasa de Falla'!JC140=0,"",'[3]Tasa de Falla'!JC140) ->  | O140: =IF('[3]Tasa de Falla'!JD140=0,"",'[3]Tasa de Falla'!JD140) ->  | P140: =IF('[3]Tasa de Falla'!JE140=0,"",'[3]Tasa de Falla'!JE140) ->  | Q140: =IF('[3]Tasa de Falla'!JF140=0,"",'[3]Tasa de Falla'!JF140) -> 1 | R140: =IF('[3]Tasa de Falla'!JG140=0,"",'[3]Tasa de Falla'!JG140) -> 
C141: ='[3]Tasa de Falla'!C141 -> 124 | D141: ='[3]Tasa de Falla'!D141 -> CABRA CORRAL - GUACHIPAS - PAMPA GRANDE | E141: ='[3]Tasa de Falla'!E141 -> 132 | F141: ='[3]Tasa de Falla'!F141 -> 72.1 | G141: =IF('[3]Tasa de Falla'!IV141=0,"",'[3]Tasa de Falla'!IV141) -> XXXX | H141: =IF('[3]Tasa de Falla'!IW141=0,"",'[3]Tasa de Falla'!IW141) -> XXXX | I141: =IF('[3]Tasa de Falla'!IX141=0,"",'[3]Tasa de Falla'!IX141) -> XXXX | J141: =IF('[3]Tasa de Falla'!IY141=0,"",'[3]Tasa de Falla'!IY141) -> XXXX | K141: =IF('[3]Tasa de Falla'!IZ141=0,"",'[3]Tasa de Falla'!IZ141) -> XXXX | L141: =IF('[3]Tasa de Falla'!JA141=0,"",'[3]Tasa de Falla'!JA141) -> XXXX | M141: =IF('[3]Tasa de Falla'!JB141=0,"",'[3]Tasa de Falla'!JB141) -> XXXX | N141: =IF('[3]Tasa de Falla'!JC141=0,"",'[3]Tasa de Falla'!JC141) -> XXXX | O141: =IF('[3]Tasa de Falla'!JD141=0,"",'[3]Tasa de Falla'!JD141) -> 1 | P141: =IF('[3]Tasa de Falla'!JE141=0,"",'[3]Tasa de Falla'!JE141) -> 2 | Q141: =IF('[3]Tasa de Falla'!JF141=0,"",'[3]Tasa de Falla'!JF141) -> 8 | R141: =IF('[3]Tasa de Falla'!JG141=0,"",'[3]Tasa de Falla'!JG141) -> 2
C142: ='[3]Tasa de Falla'!C142 -> 125 | D142: ='[3]Tasa de Falla'!D142 -> EL TABACAL - PI. TABACAL II - ORAN | E142: ='[3]Tasa de Falla'!E142 -> 132 | F142: ='[3]Tasa de Falla'!F142 -> 12.04 | G142: =IF('[3]Tasa de Falla'!IV142=0,"",'[3]Tasa de Falla'!IV142) -> XXXX | H142: =IF('[3]Tasa de Falla'!IW142=0,"",'[3]Tasa de Falla'!IW142) -> XXXX | I142: =IF('[3]Tasa de Falla'!IX142=0,"",'[3]Tasa de Falla'!IX142) -> XXXX | J142: =IF('[3]Tasa de Falla'!IY142=0,"",'[3]Tasa de Falla'!IY142) -> XXXX | K142: =IF('[3]Tasa de Falla'!IZ142=0,"",'[3]Tasa de Falla'!IZ142) -> XXXX | L142: =IF('[3]Tasa de Falla'!JA142=0,"",'[3]Tasa de Falla'!JA142) -> XXXX | M142: =IF('[3]Tasa de Falla'!JB142=0,"",'[3]Tasa de Falla'!JB142) -> XXXX | N142: =IF('[3]Tasa de Falla'!JC142=0,"",'[3]Tasa de Falla'!JC142) -> XXXX | O142: =IF('[3]Tasa de Falla'!JD142=0,"",'[3]Tasa de Falla'!JD142) -> 1 | P142: =IF('[3]Tasa de Falla'!JE142=0,"",'[3]Tasa de Falla'!JE142) -> 1 | Q142: =IF('[3]Tasa de Falla'!JF142=0,"",'[3]Tasa de Falla'!JF142) -> 1 | R142: =IF('[3]Tasa de Falla'!JG142=0,"",'[3]Tasa de Falla'!JG142) -> 1
C143: ='[3]Tasa de Falla'!C143 -> 126 | D143: ='[3]Tasa de Falla'!D143 -> GUEMES - CAMPO SANTO - MINETTI | E143: ='[3]Tasa de Falla'!E143 -> 132 | F143: ='[3]Tasa de Falla'!F143 -> 41.8 | G143: =IF('[3]Tasa de Falla'!IV143=0,"",'[3]Tasa de Falla'!IV143) ->  | H143: =IF('[3]Tasa de Falla'!IW143=0,"",'[3]Tasa de Falla'!IW143) -> 2 | I143: =IF('[3]Tasa de Falla'!IX143=0,"",'[3]Tasa de Falla'!IX143) -> 3 | J143: =IF('[3]Tasa de Falla'!IY143=0,"",'[3]Tasa de Falla'!IY143) ->  | K143: =IF('[3]Tasa de Falla'!IZ143=0,"",'[3]Tasa de Falla'!IZ143) ->  | L143: =IF('[3]Tasa de Falla'!JA143=0,"",'[3]Tasa de Falla'!JA143) -> 1 | M143: =IF('[3]Tasa de Falla'!JB143=0,"",'[3]Tasa de Falla'!JB143) -> 1 | N143: =IF('[3]Tasa de Falla'!JC143=0,"",'[3]Tasa de Falla'!JC143) ->  | O143: =IF('[3]Tasa de Falla'!JD143=0,"",'[3]Tasa de Falla'!JD143) ->  | P143: =IF('[3]Tasa de Falla'!JE143=0,"",'[3]Tasa de Falla'!JE143) ->  | Q143: =IF('[3]Tasa de Falla'!JF143=0,"",'[3]Tasa de Falla'!JF143) -> 1 | R143: =IF('[3]Tasa de Falla'!JG143=0,"",'[3]Tasa de Falla'!JG143) -> 1
C144: ='[3]Tasa de Falla'!C144 -> 127 | D144: ='[3]Tasa de Falla'!D144 -> GUEMES - CAMPO SANTO - PARQUE IND. | E144: ='[3]Tasa de Falla'!E144 -> 132 | F144: ='[3]Tasa de Falla'!F144 -> 38.86 | G144: =IF('[3]Tasa de Falla'!IV144=0,"",'[3]Tasa de Falla'!IV144) ->  | H144: =IF('[3]Tasa de Falla'!IW144=0,"",'[3]Tasa de Falla'!IW144) ->  | I144: =IF('[3]Tasa de Falla'!IX144=0,"",'[3]Tasa de Falla'!IX144) ->  | J144: =IF('[3]Tasa de Falla'!IY144=0,"",'[3]Tasa de Falla'!IY144) ->  | K144: =IF('[3]Tasa de Falla'!IZ144=0,"",'[3]Tasa de Falla'!IZ144) ->  | L144: =IF('[3]Tasa de Falla'!JA144=0,"",'[3]Tasa de Falla'!JA144) ->  | M144: =IF('[3]Tasa de Falla'!JB144=0,"",'[3]Tasa de Falla'!JB144) ->  | N144: =IF('[3]Tasa de Falla'!JC144=0,"",'[3]Tasa de Falla'!JC144) ->  | O144: =IF('[3]Tasa de Falla'!JD144=0,"",'[3]Tasa de Falla'!JD144) ->  | P144: =IF('[3]Tasa de Falla'!JE144=0,"",'[3]Tasa de Falla'!JE144) -> 1 | Q144: =IF('[3]Tasa de Falla'!JF144=0,"",'[3]Tasa de Falla'!JF144) ->  | R144: =IF('[3]Tasa de Falla'!JG144=0,"",'[3]Tasa de Falla'!JG144) -> 1
C145: ='[3]Tasa de Falla'!C145 -> 128 | D145: ='[3]Tasa de Falla'!D145 -> SANTIAGO CENTRO - MISQUI MAYU I - SANTIAGO ESTE | E145: ='[3]Tasa de Falla'!E145 -> 132 | F145: ='[3]Tasa de Falla'!F145 -> 10.66 | G145: =IF('[3]Tasa de Falla'!IV145=0,"",'[3]Tasa de Falla'!IV145) -> XXXX | H145: =IF('[3]Tasa de Falla'!IW145=0,"",'[3]Tasa de Falla'!IW145) -> XXXX | I145: =IF('[3]Tasa de Falla'!IX145=0,"",'[3]Tasa de Falla'!IX145) -> XXXX | J145: =IF('[3]Tasa de Falla'!IY145=0,"",'[3]Tasa de Falla'!IY145) ->  | K145: =IF('[3]Tasa de Falla'!IZ145=0,"",'[3]Tasa de Falla'!IZ145) ->  | L145: =IF('[3]Tasa de Falla'!JA145=0,"",'[3]Tasa de Falla'!JA145) ->  | M145: =IF('[3]Tasa de Falla'!JB145=0,"",'[3]Tasa de Falla'!JB145) ->  | N145: =IF('[3]Tasa de Falla'!JC145=0,"",'[3]Tasa de Falla'!JC145) ->  | O145: =IF('[3]Tasa de Falla'!JD145=0,"",'[3]Tasa de Falla'!JD145) ->  | P145: =IF('[3]Tasa de Falla'!JE145=0,"",'[3]Tasa de Falla'!JE145) ->  | Q145: =IF('[3]Tasa de Falla'!JF145=0,"",'[3]Tasa de Falla'!JF145) -> 1 | R145: =IF('[3]Tasa de Falla'!JG145=0,"",'[3]Tasa de Falla'!JG145) -> 
C146: ='[3]Tasa de Falla'!C146 -> 129 | D146: ='[3]Tasa de Falla'!D146 -> LA RIOJA SUR - PI. PATQUIA 2 | E146: ='[3]Tasa de Falla'!E146 -> 132 | F146: ='[3]Tasa de Falla'!F146 -> 40 | G146: =IF('[3]Tasa de Falla'!IV146=0,"",'[3]Tasa de Falla'!IV146) ->  | H146: =IF('[3]Tasa de Falla'!IW146=0,"",'[3]Tasa de Falla'!IW146) ->  | I146: =IF('[3]Tasa de Falla'!IX146=0,"",'[3]Tasa de Falla'!IX146) ->  | J146: =IF('[3]Tasa de Falla'!IY146=0,"",'[3]Tasa de Falla'!IY146) ->  | K146: =IF('[3]Tasa de Falla'!IZ146=0,"",'[3]Tasa de Falla'!IZ146) ->  | L146: =IF('[3]Tasa de Falla'!JA146=0,"",'[3]Tasa de Falla'!JA146) ->  | M146: =IF('[3]Tasa de Falla'!JB146=0,"",'[3]Tasa de Falla'!JB146) ->  | N146: =IF('[3]Tasa de Falla'!JC146=0,"",'[3]Tasa de Falla'!JC146) ->  | O146: =IF('[3]Tasa de Falla'!JD146=0,"",'[3]Tasa de Falla'!JD146) ->  | P146: =IF('[3]Tasa de Falla'!JE146=0,"",'[3]Tasa de Falla'!JE146) ->  | Q146: =IF('[3]Tasa de Falla'!JF146=0,"",'[3]Tasa de Falla'!JF146) -> 1 | R146: =IF('[3]Tasa de Falla'!JG146=0,"",'[3]Tasa de Falla'!JG146) -> 
C147: ='[3]Tasa de Falla'!C147 -> 130 | D147: ='[3]Tasa de Falla'!D147 -> LA RIOJA SUR - PI. CIRCUNVALACION 1 | E147: ='[3]Tasa de Falla'!E147 -> 132 | F147: ='[3]Tasa de Falla'!F147 -> 41.35 | G147: =IF('[3]Tasa de Falla'!IV147=0,"",'[3]Tasa de Falla'!IV147) ->  | H147: =IF('[3]Tasa de Falla'!IW147=0,"",'[3]Tasa de Falla'!IW147) ->  | I147: =IF('[3]Tasa de Falla'!IX147=0,"",'[3]Tasa de Falla'!IX147) ->  | J147: =IF('[3]Tasa de Falla'!IY147=0,"",'[3]Tasa de Falla'!IY147) ->  | K147: =IF('[3]Tasa de Falla'!IZ147=0,"",'[3]Tasa de Falla'!IZ147) ->  | L147: =IF('[3]Tasa de Falla'!JA147=0,"",'[3]Tasa de Falla'!JA147) ->  | M147: =IF('[3]Tasa de Falla'!JB147=0,"",'[3]Tasa de Falla'!JB147) ->  | N147: =IF('[3]Tasa de Falla'!JC147=0,"",'[3]Tasa de Falla'!JC147) ->  | O147: =IF('[3]Tasa de Falla'!JD147=0,"",'[3]Tasa de Falla'!JD147) ->  | P147: =IF('[3]Tasa de Falla'!JE147=0,"",'[3]Tasa de Falla'!JE147) ->  | Q147: =IF('[3]Tasa de Falla'!JF147=0,"",'[3]Tasa de Falla'!JF147) ->  | R147: =IF('[3]Tasa de Falla'!JG147=0,"",'[3]Tasa de Falla'!JG147) -> 
E149: Longitud Total | F149: =SUM(F16:F148)-F19-F21-F22-F26-F27-F37-F39-F40-F43-F44-F47-F48-F49-F53-F60-F65-F78-F82-F96-F101-F111 -> 6071.38
F150: Indisponibilidades Forzadas | G150: =SUM(G17:G148) -> 14 | H150: =SUM(H17:H148) -> 15 | I150: =SUM(I17:I148) -> 10 | J150: 4 | K150: 11 | L150: 15 | M150: 6 | N150: 9 | O150: 14 | P150: 29 | Q150: 32 | R150: 26
F151: TASA DE FALLA | G151: =+'[3]Tasa de Falla'!IV154 -> 2.31 | H151: =+'[3]Tasa de Falla'!IW154 -> 2.39 | I151: =+'[3]Tasa de Falla'!IX154 -> 2.4 | J151: =+'[3]Tasa de Falla'!IY154 -> 2.51 | K151: =+'[3]Tasa de Falla'!IZ154 -> 2.26 | L151: =+'[3]Tasa de Falla'!JA154 -> 2.44 | M151: =+'[3]Tasa de Falla'!JB154 -> 2.61 | N151: =+'[3]Tasa de Falla'!JC154 -> 2.67 | O151: =+'[3]Tasa de Falla'!JD154 -> 2.74 | P151: =+'[3]Tasa de Falla'!JE154 -> 2.68 | Q151: =+'[3]Tasa de Falla'!JF154 -> 3.05 | R151: =+'[3]Tasa de Falla'!JG154 -> 3.3 | S151: =+'[3]Tasa de Falla'!JH154 -> 3.57
C153: XXX | D153: Línea no computada en el mes | I153: TASA DE FALLA | L153: =S151 -> 3.57 | N153: SALIDAS x AÑO / 100 km

Sheet DATO
A1: Mes | B1: Mes | C1: Dia | D1: Año
A2: enero | B2: 01 | C2: 31 | D2: 2006
A3: febrero | B3: 02 | C3: =IF(MOD(E14,4)=0,29,28) -> 29 | D3: =+D2+1 -> 2007
A4: marzo | B4: 03 | C4: 31 | D4: 2008
A5: abril | B5: 04 | C5: 30 | D5: 2009
A6: mayo | B6: 05 | C6: 31 | D6: 2010
A7: junio | B7: 06 | C7: 30 | D7: 2011
A8: julio | B8: 07 | C8: 31 | D8: 2012
A9: agosto | B9: 08 | C9: 31 | D9: 2013
A10: septiembre | B10: 09 | C10: 30 | D10: 2014
A11: octubre | B11: 10 | C11: 31 | D11: 2015
A12: noviembre | B12: 11 | C12: 30 | D12: 2016
A13: diciembre | B13: 12 | C13: 31 | I13: Total
A14: 11 | B14: 3 | C14: =CELL("CONTENIDO",OFFSET(A1,B14,0)) -> marzo | D14: =CELL("CONTENIDO",OFFSET(C1,B14,0)) -> 31 | E14: =CELL("CONTENIDO",OFFSET(D1,A14,0)) -> 2016 | F14: ="Desde el 01 al " & D14 & " de " & C14 & " de " & E14 -> Desde el 01 al 31 de marzo de 2016 | G14: =CELL("CONTENIDO",OFFSET(B1,B14,0)) -> 03 | H14: =RIGHT(E14,2) -> 16 | I14: B14
B15: ="\\rugor\files\Transporte\Transporte\AA PROCESO AUT ARCHIVOS J\TRANSNOA\" &E14 -> \\rugor\files\Transporte\Transporte\AA PROCESO AUT ARCHIVOS J\TRANSNOA\2016 | G15: ="J"&G14&H14&"NOA" -> J0316NOA
B16: ="\\rugor\files\Transporte\transporte\AA PROCESO AUT\INTERCAMBIO\" &H14&G14 -> \\rugor\files\Transporte\transporte\AA PROCESO AUT\INTERCAMBIO\1603
A17: Hoja | B17: FilaInicio | C17: FilasPlantilla | D17: Columnas | E17: NombreHoja | F17: OrigenDeDatos | G17: Col00 | H17: Col01 | I17: Col02 | J17: Col03 | K17: Col04 | L17: Col05 | M17: Col06 | N17: Col07 | O17: Col08 | P17: Col09 | Q17: Col10 | R17: Col11 | S17: Col12 | T17: Col13 | U17: Col14 | V17: Col15 | W17: FILHTOTAL | X17: COLHTOTAL | Y17: FILHCALC | Z17: COLHCALC | AA17: FILTRANSP | AB17: COLTRANSP | AC17: COL TSAL
A18: MODELO L | B18: 21 | C18: 20 | D18: 11 | E18: ="LI-" & $G$14 -> LI-03 | F18: TRANSNOA_INDISPONIBILIDADES_LINEAS_TRANSNOA.XLS | G18: 3 | H18: 5 | I18: 4 | J18: 6 | K18: 7 | L18: 8 | M18: 0 | N18: 10 | O18: 11 | P18: 14 | Q18: 0 | R18: 26 | S18: 0 | T18: 0 | U18: 0 | V18: 0 | W18: 19 | X18: 10 | Y18: 42 | Z18: 27 | AA18: 19 | AB18: 27 | AC18: 14
A19: MODELO T | B19: 24 | C19: 20 | D19: 13 | E19: ="T-" & $G$14 -> T-03 | F19: TRANSNOA_INDISPONIBILIDADES_TRAFOS_TRANSNOA.XLS | G19: 3 | H19: 5 | I19: 4 | J19: 6 | K19: 7 | L19: 8 | M19: 9 | N19: 11 | O19: 12 | P19: 15 | Q19: 16 | R19: 18 | S19: 28 | T19: 17 | U19: 0 | V19: 0 | W19: 25 | X19: 10 | Y19: 45 | Z19: 29 | AA19: 22 | AB19: 29 | AC19: 15
A20: MODELO S | B20: 23 | C20: 20 | D20: 10 | E20: ="SA-" & $G$14 -> SA-03 | F20: TRANSNOA_INDISPONIBILIDADES_SALIDAS_TRANSNOA.XLS | G20: 3 | H20: 5 | I20: 4 | J20: 6 | K20: 7 | L20: 8 | M20: 10 | N20: 11 | O20: 14 | P20: 15 | Q20: 21 | R20: 0 | S20: 0 | T20: 0 | U20: 0 | V20: 0 | W20: 29 | X20: 10 | Y20: 44 | Z20: 22 | AA20: 21 | AB20: 22 | AC20: 14
A21: MODELO L RIOJA | B21: 21 | C21: 20 | D21: 11 | E21: ="LI-RIOJA-" & $G$14 -> LI-RIOJA-03 | F21: TRANSNOA_INDISPONIBILIDADES_LINEAS_RIOJA.XLS | G21: 3 | H21: 5 | I21: 4 | J21: 6 | K21: 7 | L21: 8 | M21: 0 | N21: 10 | O21: 11 | P21: 14 | Q21: 2 | R21: 26 | S21: 0 | T21: 0 | U21: 0 | V21: 0 | W21: 21 | X21: 10 | Y21: 42 | Z21: 27 | AA21: 19 | AB21: 27 | AC21: 14
A22: MODELO L EDESA | B22: 21 | C22: 20 | D22: 11 | E22: ="LI-EDESA-" & $G$14 -> LI-EDESA-03 | F22: TRANSNOA_INDISPONIBILIDADES_LINEAS_EDESA.XLS | G22: 3 | H22: 5 | I22: 4 | J22: 6 | K22: 7 | L22: 8 | M22: 0 | N22: 10 | O22: 11 | P22: 14 | Q22: 2 | R22: 26 | S22: 0 | T22: 0 | U22: 0 | V22: 0 | W22: 20 | X22: 10 | Y22: 42 | Z22: 27 | AA22: 19 | AB22: 27 | AC22: 14
A23: MODELO T EDESA | B23: 24 | C23: 20 | D23: 13 | E23: ="T-EDESA-" & $G$14 -> T-EDESA-03 | F23: TRANSNOA_INDISPONIBILIDADES_TRAFOS_EDESA.XLS | G23: 3 | H23: 5 | I23: 4 | J23: 6 | K23: 7 | L23: 8 | M23: 9 | N23: 11 | O23: 12 | P23: 15 | Q23: 16 | R23: 18 | S23: 28 | T23: 17 | U23: 0 | V23: 0 | W23: 26 | X23: 10 | Y23: 45 | Z23: 29 | AA23: 22 | AB23: 29 | AC23: 15
A24: MODELO S EDESA | B24: 23 | C24: 20 | D24: 10 | E24: ="SA-EDESA-" & $G$14 -> SA-EDESA-03 | F24: TRANSNOA_INDISPONIBILIDADES_SALIDAS_EDESA.XLS | G24: 3 | H24: 5 | I24: 4 | J24: 6 | K24: 7 | L24: 8 | M24: 10 | N24: 11 | O24: 14 | P24: 15 | Q24: 21 | R24: 0 | S24: 0 | T24: 0 | U24: 0 | V24: 0 | W24: 30 | X24: 10 | Y24: 44 | Z24: 22 | AA24: 21 | AB24: 22 | AC24: 14
A25: MODELO VST | B25: 19 | C25: 24 | D25: 4 | E25: ="CAUSAS-VST-" & $G$14 -> CAUSAS-VST-03 | F25: TRANSNOA_CAUSAS_VST.XLS | G25: 3 | H25: 4 | I25: 5 | J25: 6 | K25: 7 | L25: 0 | M25: 0 | N25: 0 | O25: 0 | P25: 0 | Q25: 0 | R25: 0 | S25: 0 | T25: 0 | U25: 0 | V25: 0 | W25: 999 | X25: 999 | Y25: 0 | Z25: 0 | AA25: 0 | AB25: 0 | AC25: 0
